{"text_format":"1","workbook":"xlsx","n_sheets":22,"sheets":["Прил.21","Прил.22","Прил.23","Прил.24","Прил.25","Прил.26","Прил.27","Прил.28","Прил.29","Прил.30","Прил.31","Прил.32","Прил.33","Прил.34","Прил.35 (ОЗ)","Прил.36 (ОЗ)","Прил.37 (ПП)","Прил.38 (ДО)","Прил.39 (ДО)","Прил.40 (ДО)","Прил.41 (ДО)","Прил.42 (ДО)"],"not_rendered":{"charts":0,"images":0,"macros":0,"external_links":0,"defined_names":0,"comments":0,"pivot_tables":0},"unopened":[],"bounds":{"document_bytes":16777216,"sheet_cells":100000,"rows_first":2000,"rows_last":500,"rows_between":2000,"halvings":0,"cell_chars":16384,"cell_head_chars":4096},"cells_cut":0,"cells_raw":0,"read":"whole","date_system":"1900"}

{"sheet":"Прил.21","index":0,"n_rows":146,"n_cols":27,"rows_kept":146,"cut":false,"hidden":false,"merged":[[7,2,7,17],[8,2,8,17],[9,2,9,6],[10,2,10,6],[7,0,11,0],[9,7,9,10],[10,7,10,10],[6,0,6,17],[7,1,11,1],[139,0,139,1],[13,0,13,1],[16,0,16,1],[52,0,52,1],[65,0,65,1],[76,0,76,1],[86,0,86,1],[103,0,103,1],[112,0,112,1],[125,0,125,1],[9,12,9,13],[10,12,10,13],[9,14,9,15],[10,14,10,15]]}
[null,null,null,null,null,null,null,null,null,null,null,null,null,null,null,null,"Приложение № 21"]
[null,null,null,null,null,null,null,null,null,null,null,null,null,null,null,null,"УТВЕРЖДЕН"]
[null,null,null,null,null,null,null,null,null,null,null,null,null,null,null,null,"Приказом ФНС России "]
[null,null,null,null,null,null,null,null,null,null,null,null,null,null,null,null,"от \"  \"       20   г."]
[null,null,null,null,null,null,null,null,null,null,null,null,null,null,null,null,"№ "]
[]
["План-график дополнительного профессионального образования гражданских служащих в \"Академии ФНС ЛАБ–Нева\" в 2025 году \n(очная форма обучения)"]
["№ п/п","Структурные подразделения ЦА ФНС России, УФНС России по субъектам РФ, межрегиональные инспекции ФНС России","Численность, человек"]
[null,null,"В том числе по программам повышения квалификации с указанием продолжительности и периодам обучения"]
[null,null,"Администрирование системы защиты информации (Secret Net Studio)",null,null,null,null,"Внешние коммуникации в профессиональной деятельности государственного служащего",null,null,null,"Клиентоцентричность: понятие, принципы, стандарты","Коммуникативная компетентность гражданского служащего (базовый уровень)\n",null,"Коммуникативная компетентность гражданского служащего (повышенный уровень)",null,"Лидерство и развитие высокоэффективных команд (базовый уровень)","Модерация и фасилитация в деятельности налоговых органов"]
[null,null," (32 часа)",null,null,null,null," (32 часа)",null,null,null,"(32 часа)"," (32 часа)",null," (32 часа)",null," (32 часа)"," (32 часа)"]
[null,null,"03.03-07.03","31.03-04.04","23.06-27.06","24.11-28.11","01.12-05.12","27.01-31.01","03.02-07.02","30.06-04.07","07.07-11.07","15.12-19.12","24.02-28.02","03.03-07.03","14.04-18.04","21.04-25.04","17.02-21.02","20.10-24.10"]
[1,2,3,4,5,6,7,8,9,10,11,12,13,14,15,16,17,18]
["Центральный аппарат ФНС России"]
[28,"Управление профессионального развития",null,null,null,null,null,null,null,null,null,null,1,1]
[null,"Итого:",{"$f":"SUM(C15:C15)","v":0},0,0,0,0,0,0,0,0,0,1,1,0,0,0,0,null,null,null,null,null,null,null,null,{"$f":"SUM(V16:Z16)","v":0}]
["Центральный федеральный округ"]
[1,"Белгородская область",1,null,null,null,null,null,1,null,null,null,1,1,null,1]
[2,"Брянская область"]
[3,"Владимирская область",null,null,null,null,null,null,null,1,null,null,null,null,1,1,null,1]
[4,"Воронежская область",null,1,null,1]
[5,"г.Москва",1,1,2,2,2,1,null,null,null,null,null,null,null,null,1]
[6,"Ивановская область",null,null,null,null,null,null,null,null,null,null,1]
[7,"Калужская область",null,null,null,null,null,1,1,1,2,null,null,1,null,1]
[8,"Костромская область",null,null,null,null,null,null,1,null,null,1,null,null,null,null,null,1]
[9,"Курская область"]
[10,"Липецкая область",null,null,null,null,null,1,null,null,null,null,null,null,null,null,1]
[11,"МИ ФНС России по камеральному контролю",null,null,null,null,null,null,null,null,null,null,null,null,null,null,1]
[12,"МИ ФНС России по КН № 1",1,null,null,null,null,null,null,1]
[13,"МИ ФНС России по КН № 2"]
[14,"МИ ФНС России по КН № 3",1]
[15,"МИ ФНС России по КН № 4"]
[16,"МИ ФНС России по КН № 5",null,1]
[17,"МИ ФНС России по КН № 6",null,null,1,null,1]
[18,"МИ ФНС России по КН № 7"]
[19,"МИ ФНС России по КН № 9",1]
[20,"МИ ФНС России по КН № 10",null,null,1]
[21,"МИ ФНС России по ценообразованию для целей налогообложения",null,null,null,null,1]
[22,"МИ ФНС России по Центральному ФО"]
[23,"МИ ФНС России по ЦОД",null,null,null,null,null,null,null,null,1]
[24,"МИ ФНС России по ЦОД №2",null,null,null,null,null,1]
[25,"МИ ФНС России по управлению долгом",null,null,null,null,null,null,null,null,null,null,null,null,1]
[26,"МИ ФНС России по контролю и надзору за налогоплательщиками в сфере бюджетного финансирования",1]
[27,"Московская область",2,null,2,null,2,null,null,1,null,null,null,null,null,1,1]
[28,"Орловская область"]
[29,"Рязанская область",null,1,null,1,null,1,1,null,null,null,1]
[30,"Смоленская область",1]
[31,"Тамбовская область",null,null,null,null,null,null,null,null,1,null,null,null,1]
[32,"Тверская область",null,1,null,1,null,null,null,null,null,1,null,1]
[33,"Тульская область"]
[34,"Ярославская область",null,1,null,null,1]
[null,"Итого:",{"$f":"SUM(C18:C51)","v":9},6,6,5,7,5,4,4,4,2,3,3,3,4,4,2]
["Северо-Западный федеральный округ"]
[1,"Архангельская область и Ненецкий АО",1,null,null,null,null,1,null,null,null,1,1,1]
[2,"Вологодская область"]
[3,"г.Санкт- Петербург",2,2,2,2,1,null,null,1,null,null,1,null,null,null,1,1]
[4,"Калининградская область",null,null,null,null,null,1,1,1,null,2,1,1,null,null,2,2]
[5,"Ленинградская область",null,1,null,1,1]
[6,"МИ ФНС России по Северо-Западному ФО"]
[7,"Мурманская область"]
[8,"Новгородская область",1,null,null,null,null,null,null,1,1,null,null,1]
[9,"Псковская область",null,null,null,null,null,null,null,null,null,1]
[10,"Республика Карелия",null,null,null,null,1,null,1,1,1,1,null,null,null,1]
[11,"Республика Коми",null,1,null,null,null,null,null,1,null,null,null,null,null,null,1]
[null,"Итого:",{"$f":"SUM(C54:C64)","v":4},4,2,3,3,2,2,5,2,5,3,3,0,1,4,3]
["Южный федеральный округ"]
[1,"Астраханская область"]
[2,"Волгоградская область",1,null,null,null,1]
[3,"г.Севастополь"]
[4,"Краснодарский край",1,1,1,1,null,1]
[5,"МИ ФНС России по Южному ФО",null,null,null,null,1]
[6,"Республика Адыгея"]
[7,"Республика Калмыкия"]
[8,"Республика Крым",null,null,null,null,null,null,null,null,null,1,null,null,1]
[9,"Ростовская область",1,1,1,1,1,null,null,1]
[null,"Итого:",{"$f":"SUM(C67:C75)","v":3},2,2,2,3,1,0,1,0,1,0,0,1,0,0,0]
["Северо-Кавказский федеральный округ"]
[1,"Кабардино- Балкарская Республика",null,null,null,null,null,null,null,null,null,null,null,null,null,1]
[2,"Карачаево- Черкесская Республика",null,null,null,null,null,null,1,null,null,2,2,1,3,2,1]
[3,"МИ ФНС России по Северо-Кавказскому ФО"]
[4,"Республика Дагестан",null,null,null,null,null,null,1,1,1,null,1,2,1,1]
[5,"Республика Ингушетия",null,null,null,null,null,1]
[6,"Республика Северная Осетия - Алания"]
[7,"Ставропольский край",null,null,1,1,null,1,1]
[8,"Чеченская Республика",null,null,null,null,1]
[null,"Итого:",{"$f":"SUM(C78:C85)","v":0},0,1,1,1,2,3,1,1,2,3,3,4,4,1,0]
["Приволжский федеральный округ"]
[1,"Кировская область",null,null,null,null,null,2,1,1,1,null,1,1,null,1,1,1]
[2,"МИ ФНС России по Приволжскому ФО"]
[3,"Нижегородская область",1,1,1,1,null,null,null,null,null,null,null,null,null,null,2]
[4,"Оренбургская область",null,null,null,null,2,1,null,null,null,1,null,1,null,null,1,1]
[5,"Пензенская область"]
[6,"Пермский край",null,1,1,1,null,2,2,2,null,null,1,null,4,4,1,1]
[7,"Республика Башкортостан",1,null,2,1,2,null,null,null,2,1,null,1,null,null,1]
[8,"Республика Марий Эл"]
[9,"Республика Мордовия"]
[10,"Республика Татарстан",1,1,1,1,null,1,1,null,null,1,1,1]
[11,"Самарская область",null,null,1,1,1,null,null,null,null,null,null,null,1,null,1]
[12,"Саратовская область",null,1,1,null,null,1,1,1,1,1,null,null,null,null,1]
[13,"Удмуртская Республика",1,null,null,1,1,null,null,null,null,null,null,null,null,null,null,1]
[14,"Ульяновская область"]
[15,"Чувашская Республика",null,null,null,null,null,null,null,null,null,null,null,null,null,1]
[null,"Итого:",{"$f":"SUM(C88:C102)","v":4},4,7,6,6,7,5,4,4,4,3,4,5,6,8,4]
["Уральский федеральный округ"]
[1,"Курганская область",null,1,null,1]
[2,"МИ ФНС России по Уральскому ФО",null,null,null,null,null,null,null,null,1,null,1,null,null,null,1]
[3,"Свердловская область",null,2,2,1,2,null,null,1,null,2,null,1,1,null,null,1]
[4,"Тюменская область",1,1,null,null,null,1,1,null,null,null,null,null,1,2]
[5,"Ханты-Мансийский АО",null,null,1,1,null,null,null,null,null,null,null,null,1]
[6,"Челябинская область",1,null,null,null,null,null,1,1,1,1,1,1,null,null,1]
[7,"Ямало-Ненецкий АО",null,1,1]
[null,"Итого:",{"$f":"SUM(C105:C111)","v":2},5,4,3,2,1,2,2,2,3,2,2,3,2,2,1]
["Сибирский федеральный округ"]
[1,"Алтайский край"]
[2,"Иркутская область",1,1,null,null,null,1,1,1,1,1,1,1,1,1,1]
[3,"Кемеровская область",null,null,1,1,1]
[4,"Красноярский край",null,null,null,null,null,null,null,null,1,null,1,1,null,1,null,1]
[5,"МИ ФНС России по Сибирскому ФО"]
[6,"Новосибирская область",1,1,null,null,null,1,null,null,null,1,null,null,1]
[7,"Омская область",null,null,1,1,null,1,2,1,2,null,1,1,1,2,1]
[8,"Республика Алтай",null,null,null,null,null,1,null,null,null,1,null,null,null,null,1]
[9,"Республика Тыва"]
[10,"Республика Хакасия",null,null,null,null,null,null,1,1,1,null,1]
[11,"Томская область",null,null,null,null,null,null,null,null,null,null,null,1,1,null,null,2]
[null,"Итого:",{"$f":"SUM(C114:C124)","v":2},2,2,2,1,4,4,3,5,3,4,4,4,4,3,3]
["Дальневосточный федеральный округ"]
[1,"Амурская область",null,null,null,null,1]
[2,"Еврейская АО",null,null,null,null,null,null,null,null,null,1]
[3,"Забайкальский край",null,null,null,null,null,1,1,1,1,1,null,null,null,1,null,1]
[4,"Камчатский край",null,null,null,null,null,null,null,null,null,1]
[5,"Магаданская область",1]
[6,"МИ ФНС России по Дальневосточному ФО",null,null,null,null,null,null,null,null,1]
[7,"Приморский край",null,null,null,null,null,1,1,null,null,1,1,null,1,null,null,1]
[8,"Республика Бурятия",null,null,null,null,null,null,1,1,1,null,null,null,null,1,1,2]
[9,"Республика Саха (Якутия)",null,null,null,null,null,null,null,null,null,1,1,1,null,null,null,1]
[10,"Сахалинская область"]
[11,"Хабаровский край",null,null,1,null,null,1,1,2,2,null,null,null,null,null,null,1]
[12,"Чукотский АО"]
[null,"Итого:",{"$f":"SUM(C127:C138)","v":1},0,1,0,1,3,4,4,5,5,2,1,1,2,1,6]
["Новые территории Российской Федерации"]
[1,"Донецкая Народная Республика",null,null,null,null,null,null,null,null,null,1,null,null,null,null,1]
[2,"Запорожская область",null,1]
[3,"Луганская Народная Республика",null,1,null,3,null,null,null,null,1,null,1,1,null,null,1,1]
[4,"Херсонская область"]
[null,"Итого:",{"$f":"SUM(C141:C144)","v":0},2,0,3,0,0,0,0,1,1,1,1,0,0,2,1]
[null,"Всего:",{"$f":"C145+C139+C125+C112+C103+C86+C76+C65+C52+C16","v":25},25,25,25,24,25,24,24,24,26,22,22,21,23,25,20]

{"sheet":"Прил.22","index":1,"n_rows":146,"n_cols":31,"rows_kept":146,"cut":false,"hidden":false,"merged":[[7,2,7,19],[8,2,8,19],[10,2,10,6],[9,7,9,10],[10,7,10,10],[10,14,10,17],[10,11,10,13],[6,0,6,19],[52,0,52,1],[13,0,13,1],[16,0,16,1],[139,0,139,1],[65,0,65,1],[76,0,76,1],[86,0,86,1],[103,0,103,1],[112,0,112,1],[125,0,125,1],[7,1,11,1],[9,11,9,13],[9,14,9,17],[7,0,11,0],[9,2,9,6]]}
[null,null,null,null,null,null,null,null,null,null,null,null,null,null,null,null,null,null,null,"Приложение № 22"]
[null,null,null,null,null,null,null,null,null,null,null,null,null,null,null,null,null,null,null,"УТВЕРЖДЕН"]
[null,null,null,null,null,null,null,null,null,null,null,null,null,null,null,null,null,null,null,"Приказом ФНС России "]
[null,null,null,null,null,null,null,null,null,null,null,null,null,null,null,null,null,null,null,"от \" \"                 20   г."]
[null,null,null,null,null,null,null,null,null,null,null,null,null,null,null,null,null,null,null,"№ "]
[]
["План-график дополнительного профессионального образования гражданских служащих в \"Академии ФНС ЛАБ–Нева\" в 2025 году \n(очная форма обучения)"]
["№ п/п","Структурные подразделения ЦА ФНС России, УФНС России по субъектам РФ, межрегиональные инспекции ФНС России","Численность, человек"]
[null,null,"В том числе по программам повышения квалификации с указанием продолжительности и периодам обучения"]
[null,null,"Психологические аспекты профессиональной деятельности на государственной гражданской службе и предотвращение выгорания (повышенный уровень)",null,null,null,null,"Публичные выступления в работе государственных гражданских служащих",null,null,null,"Развитие мышления государственных гражданских служащих         ",null,null,"Регулярный менеджмент - инструменты эффективного руководителя",null,null,null,"Управление конфликтами на государственной службе (базовый уровень)","Управление конфликтами на государственной службе (повышенный уровень)  "]
[null,null," (32 часа)",null,null,null,null," (32 часа)",null,null,null," (32 часа)",null,null," (32 часа)",null,null,null," (32 часа)"," (32 часа)"]
[null,null,"10.02-14.02","24.02-28.02","24.03-28.03","31.03-04.04","16.06-20.06","07.04-11.04","19.05-23.05","23.06-27.06","01.12-05.12","14.04-18.04","25.08-29.08","01.09-05.09","10.02-14.02","17.02-21.02","17.11-21.11","24.11-28.11","12.05-16.05","01.12-05.12"]
[1,2,3,4,5,6,7,8,9,10,11,12,13,14,15,16,17,18,19,20]
["Центральный аппарат ФНС России"]
[1,"Управление профессионального развития",1,1,1,null,null,null,null,null,null,null,null,null,1,1,1,null,null,1]
[null,"Итого:",{"$f":"SUM(C15:C15)","v":1},1,1,0,0,0,0,0,0,0,0,0,1,1,1,0,0,1,null,null,null,null,null,null,null,null,null,null,{"$f":"SUM(U16:U16)","v":0}]
["Центральный федеральный округ"]
[1,"Белгородская область",1,null,1,null,null,1,1,1,1,2]
[2,"Брянская область",null,null,null,null,null,null,1]
[3,"Владимирская область",1,1,null,null,null,null,null,1,null,null,1,null,1,1]
[4,"Воронежская область",null,null,null,null,null,1]
[5,"г.Москва",2,null,null,1,null,null,null,null,1,null,null,null,null,null,null,1]
[6,"Ивановская область",null,null,null,null,1,null,null,null,null,null,null,null,1,null,null,null,1]
[7,"Калужская область",null,null,null,null,null,null,null,null,null,null,null,1,null,1]
[8,"Костромская область",null,null,null,null,null,1]
[9,"Курская область",null,null,null,null,null,null,null,1,1,null,null,null,null,null,null,null,null,1]
[10,"Липецкая область",1,1,null,null,null,null,1,null,null,null,1,null,null,null,1,null,null,1]
[11,"МИ ФНС России по камеральному контролю",null,null,null,null,null,null,null,1,1,null,null,null,null,null,null,1]
[12,"МИ ФНС России по КН № 1"]
[13,"МИ ФНС России по КН № 2"]
[14,"МИ ФНС России по КН № 3",null,null,null,null,null,null,null,null,null,null,null,null,1,null,null,null,1]
[15,"МИ ФНС России по КН № 4"]
[16,"МИ ФНС России по КН № 5"]
[17,"МИ ФНС России по КН № 6"]
[18,"МИ ФНС России по КН № 7"]
[19,"МИ ФНС России по КН № 9"]
[20,"МИ ФНС России по КН № 10"]
[21,"МИ ФНС России по ценообразованию для целей налогообложения",null,null,null,null,null,null,null,null,null,null,null,1]
[22,"МИ ФНС России по Центральному ФО"]
[23,"МИ ФНС России по ЦОД",null,null,null,null,null,1]
[24,"МИ ФНС России по ЦОД №2"]
[25,"МИ ФНС России по управлению долгом"]
[26,"МИ ФНС России по контролю и надзору за налогоплательщиками в сфере бюджетного финансирования",null,null,null,null,null,null,null,null,null,null,null,null,null,1]
[27,"Московская область",null,null,null,null,1,null,null,1,1,null,1,null,null,null,1]
[28,"Орловская область",null,null,null,null,null,1,null,null,null,null,1]
[29,"Рязанская область"]
[30,"Смоленская область"]
[31,"Тамбовская область",null,null,1,null,null,null,1,null,null,null,null,1]
[32,"Тверская область",null,null,null,null,null,1,null,1,null,null,1]
[33,"Тульская область",null,null,null,null,null,null,null,null,1,null,null,null,null,null,null,null,null,1]
[34,"Ярославская область"]
[null,"Итого:",{"$f":"SUM(C18:C51)","v":5},2,2,1,2,6,4,6,6,2,5,3,{"$f":"SUM(O18:O51)","v":3},3,2,2,{"$f":"SUM(S18:S51)","v":2},{"$f":"SUM(T18:T51)","v":3}]
["Северо-Западный федеральный округ"]
[1,"Архангельская область и Ненецкий АО",null,1,null,null,null,null,1,null,1,3,2,3,null,null,null,1,2,1]
[2,"Вологодская область"]
[3,"г.Санкт- Петербург",null,null,null,null,null,1,null,null,null,1,null,null,1,1,null,null,1]
[4,"Калининградская область",null,null,null,null,null,1,2,1,1,null,null,1,null,null,1,null,2,1]
[5,"Ленинградская область",null,null,null,null,null,1,null,null,null,1,null,null,null,null,null,1]
[6,"МИ ФНС России по Северо-Западному ФО",null,null,null,1]
[7,"Мурманская область",null,null,null,null,null,null,null,null,null,null,null,null,1]
[8,"Новгородская область",null,null,null,1,1,null,null,null,1,null,1,null,null,1]
[9,"Псковская область",null,null,null,null,null,null,null,null,null,null,null,null,null,null,null,null,1,1]
[10,"Республика Карелия",null,null,null,null,null,null,null,null,null,null,null,null,null,null,1,1]
[11,"Республика Коми",null,null,null,null,null,null,1,1,1]
[null,"Итого:",{"$f":"SUM(C54:C64)","v":0},1,0,2,1,3,4,2,4,5,3,4,{"$f":"SUM(O54:O64)","v":2},2,2,3,{"$f":"SUM(S54:S64)","v":6},{"$f":"SUM(T54:T64)","v":3}]
["Южный федеральный округ"]
[1,"Астраханская область",null,null,null,null,null,null,null,null,null,null,null,null,null,null,null,null,null,1]
[2,"Волгоградская область"]
[3,"г.Севастополь"]
[4,"Краснодарский край",1,null,1,null,null,null,null,null,null,null,null,null,null,null,null,null,2,1]
[5,"МИ ФНС России по Южному ФО"]
[6,"Республика Адыгея",null,1]
[7,"Республика Калмыкия"]
[8,"Республика Крым",null,null,null,1,null,1,null,null,null,1,1,null,null,null,null,null,null,1]
[9,"Ростовская область",null,null,null,null,null,null,null,null,null,null,null,null,1,null,null,null,null,1]
[null,"Итого:",{"$f":"SUM(C67:C75)","v":1},1,1,1,0,1,0,0,0,1,1,0,{"$f":"SUM(O67:O75)","v":1},0,0,0,{"$f":"SUM(S67:S75)","v":2},{"$f":"SUM(T67:T75)","v":4}]
["Северо-Кавказский федеральный округ"]
[1,"Кабардино- Балкарская Республика",null,null,null,null,null,null,1]
[2,"Карачаево- Черкесская Республика",null,1,null,null,1,1,1,1,1,null,null,null,null,1,null,null,null,1]
[3,"МИ ФНС России по Северо-Кавказскому ФО"]
[4,"Республика Дагестан",null,null,null,null,null,null,null,null,1,null,null,null,null,null,null,null,null,1]
[5,"Республика Ингушетия",null,null,null,null,null,null,null,null,null,null,null,null,null,null,null,1]
[6,"Республика Северная Осетия - Алания",null,null,null,null,null,null,1]
[7,"Ставропольский край",1,null,1,null,null,null,null,null,null,1,null,null,1,1,1,null,null,1]
[8,"Чеченская Республика",null,null,null,null,null,null,null,null,null,null,1,1]
[null,"Итого:",{"$f":"SUM(C78:C85)","v":1},1,1,0,1,1,3,1,2,1,1,1,{"$f":"SUM(O78:O85)","v":1},2,1,1,{"$f":"SUM(S78:S85)","v":0},{"$f":"SUM(T78:T85)","v":3}]
["Приволжский федеральный округ"]
[1,"Кировская область",null,null,null,null,null,1,null,null,null,null,null,null,1,null,null,1,2,1]
[2,"МИ ФНС России по Приволжскому ФО",null,1,1]
[3,"Нижегородская область",1,null,null,null,null,null,1,2,null,1,null,null,null,1,null,null,null,1]
[4,"Оренбургская область",null,null,null,null,null,null,null,null,null,null,1,null,null,null,1,1,1]
[5,"Пензенская область",null,null,null,null,null,null,null,null,null,null,null,null,1]
[6,"Пермский край",null,null,2,1,null,null,null,1,1,2,null,2,1,1,2,1,null,1]
[7,"Республика Башкортостан",null,1,null,null,1,1,1,1,null,1,2,2,1,1,1,1,1]
[8,"Республика Марий Эл",null,null,null,null,null,null,null,null,null,null,null,null,null,null,null,1]
[9,"Республика Мордовия"]
[10,"Республика Татарстан",1,2,2,2,2,null,null,null,1,null,null,null,1,1,1,1,null,1]
[11,"Самарская область",null,null,1,null,null,1,2,1,1,1,1,null,1,1,1]
[12,"Саратовская область",null,null,null,1,null,null,null,1,null,null,null,null,null,null,null,null,1]
[13,"Удмуртская Республика",null,null,null,null,null,null,null,null,null,null,null,null,null,null,null,null,null,1]
[14,"Ульяновская область",null,null,null,null,null,null,1,null,null,null,null,null,null,null,null,1]
[15,"Чувашская Республика",null,null,null,null,1,null,null,null,1,1,null,null,1]
[null,"Итого:",{"$f":"SUM(C88:C102)","v":2},4,6,4,4,3,5,6,4,6,4,4,{"$f":"SUM(O88:O102)","v":7},5,6,7,{"$f":"SUM(S88:S102)","v":5},{"$f":"SUM(T88:T102)","v":5}]
["Уральский федеральный округ"]
[1,"Курганская область"]
[2,"МИ ФНС России по Уральскому ФО",null,null,null,null,null,null,null,null,null,null,null,1,null,1]
[3,"Свердловская область",2,null,null,null,null,1,null,null,null,1,1,2,null,null,1,1,1]
[4,"Тюменская область",null,1,null,null,1,null,null,1,null,null,1,null,1,null,null,null,1,1]
[5,"Ханты-Мансийский АО",null,null,1,1,null,null,null,null,null,null,null,null,null,1,1,1]
[6,"Челябинская область",2,null,null,1,1,1,1,1,1,1,null,1,1,1,1,null,1]
[7,"Ямало-Ненецкий АО",null,null,null,null,null,null,1,1]
[null,"Итого:",{"$f":"SUM(C105:C111)","v":4},1,1,2,2,2,2,3,1,2,2,4,{"$f":"SUM(O105:O111)","v":2},3,3,2,{"$f":"SUM(S105:S111)","v":3},{"$f":"SUM(T105:T111)","v":1}]
["Сибирский федеральный округ"]
[1,"Алтайский край",null,1,1,null,null,null,null,null,1,1,null,null,1,null,null,1,1,1]
[2,"Иркутская область",1,1,3,2,3,null,null,null,null,1,1,2,1,2,1,1,null,1]
[3,"Кемеровская область"]
[4,"Красноярский край",null,1,null,2,null,1,null,1,null,2,1,null,null,null,1,1,1,1]
[5,"МИ ФНС России по Сибирскому ФО",null,1,1,null,null,1]
[6,"Новосибирская область",1,null,null,null,null,null,null,1,null,null,null,1]
[7,"Омская область",null,1,1,null,1,null,1,1,null,2,2,1,1,1,1]
[8,"Республика Алтай",1,null,null,1,null,1,null,null,1]
[9,"Республика Тыва",null,null,null,null,1,null,1,null,null,null,null,null,null,null,null,null,1]
[10,"Республика Хакасия",2,1,null,null,null,null,null,null,null,null,null,null,1,1,1,1]
[11,"Томская область",null,null,null,1,null,1,null,null,1,null,1]
[null,"Итого:",{"$f":"SUM(C114:C124)","v":5},6,6,6,5,4,2,3,3,6,5,4,{"$f":"SUM(O114:O124)","v":4},4,4,4,{"$f":"SUM(S114:S124)","v":3},{"$f":"SUM(T114:T124)","v":3}]
["Дальневосточный федеральный округ"]
[1,"Амурская область"]
[2,"Еврейская АО"]
[3,"Забайкальский край",null,null,null,null,1,1,null,null,null,null,null,null,null,null,null,1]
[4,"Камчатский край"]
[5,"Магаданская область"]
[6,"МИ ФНС России по Дальневосточному ФО",null,null,1,null,null,null,null,null,null,null,null,null,null,null,null,null,1]
[7,"Приморский край",2,3,null,2,1,null,1,null,null,null,null,null,null,1,1,1,1]
[8,"Республика Бурятия",null,null,null,1,1,null,null,1]
[9,"Республика Саха (Якутия)",null,null,null,1,1,1,1,1,null,null,2,1,null,null,null,null,1]
[10,"Сахалинская область",null,null,1,null,null,null,null,null,null,null,1]
[11,"Хабаровский край",2,2,2,1,1,2,null,null,1,1,null,2,1,1,1,1,1,1]
[12,"Чукотский АО"]
[null,"Итого:",{"$f":"SUM(C127:C138)","v":4},5,4,5,5,4,2,2,1,1,3,3,{"$f":"SUM(O127:O138)","v":1},2,2,3,{"$f":"SUM(S127:S138)","v":4},{"$f":"SUM(T127:T138)","v":1}]
["Новые территории Российской Федерации",null,null,null,null,null,null,null,null,null,null,null,null,null,null,null,null,null," "]
[1,"Донецкая Народная Республика",null,null,null,null,null,null,null,null,2,null,null,null,1,1,1,1,null,1]
[2,"Запорожская область"]
[3,"Луганская Народная Республика",null,null,1,null,null,null,1,null,null,null,null,null,1,1,1,1,1]
[4,"Херсонская область"]
[null,"Итого:",{"$f":"SUM(C141:C144)","v":0},0,1,0,0,0,1,0,2,0,0,0,{"$f":"SUM(O141:O144)","v":2},2,2,2,{"$f":"SUM(S141:S144)","v":1},{"$f":"SUM(T141:T144)","v":1}]
[null,"Всего:",{"$f":"C145+C139+C125+C112+C103+C86+C76+C65+C52+C16","v":23},22,23,21,20,24,23,23,23,24,24,23,{"$f":"O145+O139+O125+O112+O103+O86+O76+O65+O52+O16","v":24},24,23,24,{"$f":"S145+S139+S125+S112+S103+S86+S76+S65+S52+S16","v":26},{"$f":"T145+T139+T125+T112+T103+T86+T76+T65+T52+T16","v":25}]

{"sheet":"Прил.23","index":2,"n_rows":146,"n_cols":20,"rows_kept":146,"cut":false,"hidden":false,"merged":[[9,7,9,8],[6,0,6,19],[7,0,11,0],[9,2,9,4],[10,2,10,4],[10,5,10,6],[9,18,9,19],[9,5,9,6],[10,7,10,8],[10,18,10,19],[9,14,9,17],[10,14,10,17],[9,9,9,13],[10,9,10,13],[7,2,7,19],[8,2,8,19],[7,1,11,1]]}
[null,null,null,null,null,null,null,null,null,null,null,null,null,null,null,null,null,null,"Приложение № 23"]
[null,null,null,null,null,null,null,null,null,null,null,null,null,null,null,null,null,null,"УТВЕРЖДЕН"]
[null,null,null,null,null,null,null,null,null,null,null,null,null,null,null,null,null,null,"Приказом ФНС России "]
[null,null,null,null,null,null,null,null,null,null,null,null,null,null,null,null,null,null,"от \" \"                 20   г."]
[null,null,null,null,null,null,null,null,null,null,null,null,null,null,null,null,null,null,"№ "]
[]
["План-график дополнительного профессионального образования гражданских служащих в \"Академии ФНС ЛАБ–Нева\" в 2025 году\n (очная форма обучения)\n"]
["№ п/п","Структурные подразделения ЦА ФНС России, УФНС России по субъектам РФ, межрегиональные инспекции ФНС России","Численность, человек"]
[null,null,"В том числе по программам повышения квалификации с указанием продолжительности и периодам обучения"]
[null,null,"Эффективные переговоры. Методы влияния и убеждения (базовый уровень)",null,null,"Эффективные переговоры. Методы влияния и убеждения (повышенный уровень)",null,"Эффективные переговоры. Методы влияния и убеждения (мастерский уровень)",null,"Администрирование имущественных налогов физических лиц ",null,null,null,null,"Администрирование имущественных налогов юридических лиц ",null,null,null,"Предоставление государственных услуг органами ФНС России в сфере государственной регистрации налогоплательщиков"]
[null,null," (32 часа)",null,null," (32 часа)",null," (32 часа)",null," (40 часов)",null,null,null,null," (40 часов)",null,null,null," (56 часов)"]
[null,null,"16.06-20.06","23.06-27.06","07.07-11.07","03.03-07.03","07.04-11.04","17.11-21.11","08.12-12.12","31.03-04.04","07.07-11.07","08.09-12.09","27.10-01.11","17.11-21.11","27.01-31.01","03.02-07.02","24.02-28.02","15.12-19.12","05.05-16.05","09.06-20.06"]
[1,2,3,4,5,6,7,8,9,10,11,12,13,14,15,16,17,18,19,20]
["Центральный аппарат ФНС России"]
[1,"Управление профессионального развития",null,null,null,1,1,1,1]
[null,"Итого:",{"$f":"SUM(C15:C15)","v":0},0,0,1,1,1,1,0,0,0,0,{"$f":"SUM(N15:N15)","v":0},0,0,0,0,0,{"$f":"SUM(T15:T15)","v":0}]
["Центральный федеральный округ"]
[1,"Белгородская область",1,null,null,null,null,null,null,1,1,1]
[2,"Брянская область",null,null,null,null,null,null,null,null,1,1,null,1]
[3,"Владимирская область",null,1,null,null,null,null,null,null,null,null,1,1]
[4,"Воронежская область",null,null,null,null,null,null,null,null,null,null,null,null,1,1,1,null,null,1]
[5,"г.Москва",1,null,1,1,1,null,null,1,null,null,null,null,null,1,1]
[6,"Ивановская область",null,null,null,null,null,null,null,null,null,null,null,1,1,null,null,1]
[7,"Калужская область",null,1,1,null,null,null,null,null,1,null,1,null,null,null,null,1,1]
[8,"Костромская область",null,null,null,null,null,null,null,1]
[9,"Курская область",1,null,null,null,null,null,null,null,null,null,null,1,null,null,null,null,null,1]
[10,"Липецкая область",null,1,null,null,null,1,null,null,null,null,null,null,1,2,2,1]
[11,"МИ ФНС России по камеральному контролю",1]
[12,"МИ ФНС России по КН № 1"]
[13,"МИ ФНС России по КН № 2"]
[14,"МИ ФНС России по КН № 3"]
[15,"МИ ФНС России по КН № 4"]
[16,"МИ ФНС России по КН № 5"]
[17,"МИ ФНС России по КН № 6",null,null,1]
[18,"МИ ФНС России по КН № 7"]
[19,"МИ ФНС России по КН № 9",null,null,null,null,null,null,null,null,null,null,null,null,1]
[20,"МИ ФНС России по КН № 10"]
[21,"МИ ФНС России по ценообразованию для целей налогообложения",null,null,1]
[22,"МИ ФНС России по Центральному ФО"]
[23,"МИ ФНС России по ЦОД"]
[24,"МИ ФНС России по ЦОД №2"]
[25,"МИ ФНС России по управлению долгом",null,null,null,null,null,null,1]
[26,"МИ ФНС России по ЦОД по контролю и надзору за налогоплательщиками в сфере бюджетного финансирования"]
[27,"Московская область",null,1,null,null,null,1,null,null,null,null,null,null,null,null,null,null,1]
[28,"Орловская область",null,null,null,null,null,null,null,null,null,1,null,null,null,1]
[29,"Рязанская область",null,null,null,1,null,null,null,null,null,null,null,1,null,null,null,1]
[30,"Смоленская область"]
[31,"Тамбовская область",null,null,null,null,1]
[32,"Тверская область",2,1,null,1,1,null,1,null,null,null,null,null,null,null,null,null,1,2]
[33,"Тульская область",null,null,null,null,1]
[34,"Ярославская область",null,null,null,null,null,null,null,null,null,null,null,null,1]
[null,"Итого:",{"$f":"SUM(C18:C51)","v":6},5,4,3,4,2,2,3,3,3,2,{"$f":"SUM(N18:N51)","v":5},5,5,4,4,3,{"$f":"SUM(T18:T51)","v":4}]
["Северо-Западный федеральный округ"]
[1,"Архангельская область и Ненецкий АО",null,1,1,1,null,1,null,null,null,null,null,1,null,1,1,1]
[2,"Вологодская область"]
[3,"г.Санкт- Петербург",null,null,null,null,1,null,null,null,null,null,null,null,1]
[4,"Калининградская область",1,1,null,null,1,null,null,1,1,null,1,null,null,1]
[5,"Ленинградская область",null,null,null,1]
[6,"МИ ФНС России по Северо-Западному ФО"]
[7,"Мурманская область",null,null,null,null,null,null,null,null,null,null,null,1,null,null,null,1]
[8,"Новгородская область",null,null,1,null,null,null,null,null,1]
[9,"Псковская область",1,1,null,1]
[10,"Республика Карелия",null,1,1,null,1,1,1,1,null,null,1,null,null,1,1]
[11,"Республика Коми",1,null,null,null,null,null,null,null,null,1,null,null,null,null,null,1]
[null,"Итого:",{"$f":"SUM(C54:C64)","v":3},4,3,3,3,2,1,2,2,1,2,{"$f":"SUM(N54:N64)","v":2},1,3,2,3,0,{"$f":"SUM(T54:T64)","v":0}]
["Южный федеральный округ"]
[1,"Астраханская область",null,null,null,null,null,null,null,null,null,null,null,1]
[2,"Волгоградская область",null,null,null,null,null,null,null,null,1,null,1,null,null,null,null,null,1]
[3,"г.Севастополь"]
[4,"Краснодарский край",null,null,1,null,null,1,null,1,1,1,null,1,1,1]
[5,"МИ ФНС России по Южному ФО"]
[6,"Республика Адыгея"]
[7,"Республика Калмыкия",null,null,null,null,null,null,null,null,null,1,1]
[8,"Республика Крым",null,null,null,null,null,null,null,null,1,null,1,null,1,1,1]
[9,"Ростовская область",1,2,null,1,1,1,1,1,1,1,null,2,null,1,1,1,null,1]
[null,"Итого:",{"$f":"SUM(C67:C75)","v":1},2,1,1,1,2,1,2,4,3,3,{"$f":"SUM(N67:N75)","v":4},2,3,2,1,1,{"$f":"SUM(T67:T75)","v":1}]
["Северо-Кавказский федеральный округ"]
[1,"Кабардино- Балкарская Республика",null,null,null,null,null,1,1,null,null,null,null,null,null,null,null,null,1]
[2,"Карачаево- Черкесская Республика",null,null,1,1,null,null,null,null,null,1,null,1]
[3,"МИ ФНС России по Северо-Кавказскому ФО"]
[4,"Республика Дагестан",1,1,null,null,1,1,null,1,null,null,1,null,1]
[5,"Республика Ингушетия",null,null,null,1,null,null,1,null,null,null,null,null,null,null,null,null,null,1]
[6,"Республика Северная Осетия - Алания",null,null,1,null,null,null,null,null,null,null,null,null,null,null,null,null,1]
[7,"Ставропольский край",null,null,null,null,1,null,null,null,null,null,null,1,1,null,null,1,null,1]
[8,"Чеченская Республика"]
[null,"Итого:",{"$f":"SUM(C78:C85)","v":1},1,2,2,2,2,2,1,0,1,1,{"$f":"SUM(N78:N85)","v":2},2,0,0,1,2,{"$f":"SUM(T78:T85)","v":2}]
["Приволжский федеральный округ"]
[1,"Кировская область",1,null,1,null,1,1,null,null,null,null,1,1,null,1,1,null,1]
[2,"МИ ФНС России по Приволжскому ФО"]
[3,"Нижегородская область",1,1,null,1,1,1,2,null,null,null,null,1,1,1,null,1,1,2]
[4,"Оренбургская область",null,null,1,null,1,null,null,null,1,null,2,1,null,null,1,null,1]
[5,"Пензенская область",null,null,null,null,null,null,null,1,null,null,null,null,null,null,1]
[6,"Пермский край",2,1,null,2,1,null,null,null,null,null,null,null,1,1,null,1,null,1]
[7,"Республика Башкортостан",null,1,1,null,null,1,null,null,null,null,null,null,1,null,1,null,2,1]
[8,"Республика Марий Эл",null,null,null,null,null,null,null,null,null,null,null,null,null,1,null,null,null,1]
[9,"Республика Мордовия",null,null,null,null,null,null,null,1,null,1]
[10,"Республика Татарстан",2,1,null,null,1,null,1,1,1,1,null,1,null,1,1,1]
[11,"Самарская область",null,null,1,null,null,1,1,null,null,null,1,null,null,null,null,null,1,1]
[12,"Саратовская область",null,null,null,1,1,null,null,null,null,1,1,null,1]
[13,"Удмуртская Республика",null,null,null,null,null,1,null,1,null,null,1,null,null,1,1,1,null,1]
[14,"Ульяновская область",1,null,null,null,null,null,null,1,null,null,null,null,null,null,null,null,1,1]
[15,"Чувашская Республика",null,1,null,null,null,null,null,null,2,null,null,null,1]
[null,"Итого:",{"$f":"SUM(C88:C102)","v":7},5,4,4,6,5,4,5,4,3,6,{"$f":"SUM(N88:N102)","v":4},5,6,6,4,7,{"$f":"SUM(T88:T102)","v":8}]
["Уральский федеральный округ"]
[1,"Курганская область",null,null,null,null,null,null,null,null,null,null,1,1,null,1,1]
[2,"МИ ФНС России по Уральскому ФО",null,null,1]
[3,"Свердловская область",null,1,2,1,null,null,2,null,1,null,null,null,1,1,1,null,1]
[4,"Тюменская область",null,null,null,null,null,1,null,null,null,null,null,null,null,null,null,2]
[5,"Ханты-Мансийский АО",null,null,null,1,null,null,null,null,null,null,null,null,1,null,null,null,null,1]
[6,"Челябинская область",1,1,null,null,null,1,1,1,null,null,null,null,null,1,null,null,1,1]
[7,"Ямало-Ненецкий АО",null,null,null,1,null,null,null,null,null,null,null,null,null,null,1]
[null,"Итого:",{"$f":"SUM(C105:C111)","v":1},2,3,3,0,2,3,1,1,0,1,{"$f":"SUM(N105:N111)","v":1},2,3,3,2,2,{"$f":"SUM(T105:T111)","v":2}]
["Сибирский федеральный округ"]
[1,"Алтайский край",null,null,null,1,null,1,null,null,1,1,1,null,null,null,null,1,null,1]
[2,"Иркутская область",1,null,null,null,null,1,2,1,null,null,null,1,1,1,1,null,1]
[3,"Кемеровская область",null,null,null,null,null,null,null,null,null,null,null,1,null,null,null,null,null,1]
[4,"Красноярский край",null,1,null,1,null,null,1,null,1,null,null,null,1,null,1,1]
[5,"МИ ФНС России по Сибирскому ФО",null,null,1,null,1]
[6,"Новосибирская область",null,1,null,1,null,null,1,null,1,1,1,null,1,1,null,null,null,1]
[7,"Омская область",1,null,null,null,1,1,null,null,null,null,null,null,null,null,1,null,1]
[8,"Республика Алтай",null,1,null,null,null,1]
[9,"Республика Тыва",1,null,null,null,null,null,null,1,1,null,null,1,null,null,null,null,1,1]
[10,"Республика Хакасия",null,null,null,null,null,null,null,null,null,null,1,null,null,null,null,null,1,1]
[11,"Томская область",null,null,null,null,null,null,1,1,1,null,null,null,null,null,null,null,1]
[null,"Итого:",{"$f":"SUM(C114:C124)","v":3},3,1,3,2,4,5,3,5,2,3,{"$f":"SUM(N114:N124)","v":3},3,2,3,2,5,{"$f":"SUM(T114:T124)","v":5}]
["Дальневосточный федеральный округ"]
[1,"Амурская область"]
[2,"Еврейская АО"]
[3,"Забайкальский край",null,null,null,1,1,null,1,1,1,null,1,null,null,null,null,null,null,1]
[4,"Камчатский край",null,null,null,null,null,null,null,null,null,null,null,null,1,1]
[5,"Магаданская область",null,null,null,null,null,null,null,null,null,null,null,null,null,null,1]
[6,"МИ ФНС России по Дальневосточному ФО",null,null,1,null,null,null,null,null,null,1,null,null,null,null,null,1]
[7,"Приморский край",1,null,1,null,null,null,1,null,1,2,2,null,2,null,1,2,1]
[8,"Республика Бурятия",null,null,null,1,null,null,null,1,1,1,null,null,1,null,1,1,2,1]
[9,"Республика Саха (Якутия)",1,1,null,null,1,1,null,1,null,null,1,null,null,1,1,1]
[10,"Сахалинская область",null,null,null,1,null,1]
[11,"Хабаровский край",null,null,2,null,null,null,1,1,null,2,null,2,null,null,1,1,1,1]
[12,"Чукотский АО"]
[null,"Итого:",{"$f":"SUM(C127:C138)","v":2},1,4,3,2,2,3,4,3,6,4,{"$f":"SUM(N127:N138)","v":2},4,2,5,6,4,{"$f":"SUM(T127:T138)","v":3}]
["Новые территории Российской Федерации"]
[1,"Донецкая Народная Республика",null,1,null,null,1,null,null,null,null,2]
[2,"Запорожская область",null,null,null,null,null,null,null,null,null,null,null,null,null,null,null,null,1]
[3,"Луганская Народная Республика",null,null,1,null,null,null,null,2,null,1,null,null,1,1,null,1]
[4,"Херсонская область"]
[null,"Итого:",{"$f":"SUM(C141:C144)","v":0},1,1,0,1,0,0,2,0,3,0,{"$f":"SUM(N141:N144)","v":0},1,1,0,1,1,{"$f":"SUM(T141:T144)","v":0}]
[null,"Всего:",{"$f":"C145+C139+C125+C112+C103+C86+C76+C65+C52+C16","v":24},24,23,23,22,22,22,23,22,22,22,{"$f":"N145+N139+N125+N112+N103+N86+N76+N65+N52+N16","v":23},25,25,25,24,25,{"$f":"T145+T139+T125+T112+T103+T86+T76+T65+T52+T16","v":25}]

{"sheet":"Прил.24","index":3,"n_rows":146,"n_cols":24,"rows_kept":146,"cut":false,"hidden":false,"merged":[[9,21,9,23],[10,21,10,23],[8,2,8,23],[7,2,7,23],[6,0,6,23],[9,18,9,20],[10,18,10,20],[112,0,112,1],[125,0,125,1],[139,0,139,1],[16,0,16,1],[52,0,52,1],[65,0,65,1],[76,0,76,1],[86,0,86,1],[103,0,103,1],[13,0,13,1],[9,2,9,9],[10,2,10,9],[7,0,11,0],[10,11,10,16],[9,11,9,16],[7,1,11,1]]}
[null,null,null,null,null,null,null,null,null,null,null,null,null,null,null,null,null,null,null,null,null,null,"Приложение № 24"]
[null,null,null,null,null,null,null,null,null,null,null,null,null,null,null,null,null,null,null,null,null,null,"УТВЕРЖДЕН"]
[null,null,null,null,null,null,null,null,null,null,null,null,null,null,null,null,null,null,null,null,null,null,"Приказом ФНС России "]
[null,null,null,null,null,null,null,null,null,null,null,null,null,null,null,null,null,null,null,null,null,null,"от \"  \"       20   г."]
[null,null,null,null,null,null,null,null,null,null,null,null,null,null,null,null,null,null,null,null,null,null,"№ "]
[]
["План-график дополнительного профессионального образования гражданских служащих в \"Академии ФНС ЛАБ–Нева\" в 2025 году \n(очная форма)"]
["№ п/п","Структурные подразделения ЦА ФНС России, УФНС России по субъектам РФ, межрегиональные инспекции ФНС России","Численность, человек"]
[null,null,"В том числе по программам повышения квалификации с указанием продолжительности и периодам обучения"]
[null,null,"Антихрупкость, жизнестойкость и личная трансформация в системе государственной службы",null,null,null,null,null,null,null,"Коммуникативная компетентность гражданского служащего (мастерский уровень)","Коммуникативные стратегии в деятельности руководителя",null,null,null,null,null,"Лидерство и развитие высокоэффективных команд (мастерский уровень)","Логика и риторика в деятельности налоговых органов",null,null,"Предоставление государственных услуг органами ФНС России в сфере учета налогоплательщиков"]
[null,null," (64 часа)",null,null,null,null,null,null,null," (64 часа)"," (64 часа)",null,null,null,null,null," (64 часа)"," (64 часа)",null,null," (64 часа)"]
[null,null,"14.01-24.01","10.02-21.02","24.02-07.03","14.07-25.07","08.09-19.09","20.10-31.10","05.11-14.11","24.11-05.12","05.11-14.11","27.01-07.02","10.02-21.02","10.03-21.03","07.04-18.04","14.07-25.07","27.10-07.11","08.12-19.12","17.03-28.03","21.04-30.04","05.11-14.11","14.01-24.01","25.08-05.09","08.09-19.09"]
[1,2,3,4,5,6,7,8,9,10,11,12,13,14,15,16,17,18,19,20,21,22,23,24]
["Центральный аппарат ФНС России"]
[1,"Управление профессионального развития",1,1,1,null,1,1,null,1,null,null,null,1,null,null,null,1,1]
[null,"Итого:",{"$f":"SUM(C15:C15)","v":1},{"$f":"SUM(D15:D15)","v":1},{"$f":"SUM(E15:E15)","v":1},{"$f":"SUM(F15:F15)","v":0},{"$f":"SUM(G15:G15)","v":1},1,0,1,0,0,0,1,0,0,0,1,1,0,0,{"$f":"SUM(V15:V15)","v":0},{"$f":"SUM(W15:W15)","v":0},{"$f":"SUM(X15:X15)","v":0}]
["Центральный федеральный округ"]
[1,"Белгородская область",1,null,null,null,null,1,null,null,null,1,null,null,1,null,null,null,null,null,null,2,null,1]
[2,"Брянская область",null,1,null,null,1,null,null,null,null,null,null,null,null,null,null,1]
[3,"Владимирская область",null,null,null,1,null,null,1,1,null,null,null,null,null,null,null,null,1]
[4,"Воронежская область",null,null,null,null,null,null,null,null,null,null,null,1,null,null,1,null,null,1,null,1,null,1]
[5,"г.Москва",null,null,null,null,null,null,1,null,2,null,1,null,null,null,null,null,1]
[6,"Ивановская область",null,null,1,null,null,1]
[7,"Калужская область",null,null,null,null,1,null,null,1,null,null,null,null,null,null,null,null,1,null,null,1]
[8,"Костромская область"]
[9,"Курская область",null,null,null,1,null,null,null,null,null,null,null,null,null,null,null,null,null,1]
[10,"Липецкая область",1,null,null,null,null,null,null,null,null,null,null,null,null,null,null,null,null,null,null,null,null,1]
[11,"МИ ФНС России по камеральному контролю"]
[12,"МИ ФНС России по КН № 1",null,null,null,null,null,null,null,null,null,null,null,null,null,1]
[13,"МИ ФНС России по КН № 2"]
[14,"МИ ФНС России по КН № 3"]
[15,"МИ ФНС России по КН № 4"]
[16,"МИ ФНС России по КН № 5",null,null,null,null,null,null,1]
[17,"МИ ФНС России по КН № 6"]
[18,"МИ ФНС России по КН № 7"]
[19,"МИ ФНС России по КН № 9",null,null,null,null,null,null,null,null,1]
[20,"МИ ФНС России по КН № 10"]
[21,"МИ ФНС России по ценообразованию для целей налогообложения"]
[22,"МИ ФНС России по Центральному ФО"]
[23,"МИ ФНС России по ЦОД"]
[24,"МИ ФНС России по ЦОД №2"]
[25,"МИ ФНС России по управлению долгом",1]
[26,"МИ ФНС России по контролю и надзору за налогоплательщиками в сфере бюджетного финансирования",null,null,1,null,null,1]
[27,"Московская область",null,1,null,1,null,null,null,null,null,1,null,1,null,null,null,1,1]
[28,"Орловская область",null,null,1,null,1,null,null,null,null,null,1]
[29,"Рязанская область",null,null,null,null,null,null,null,null,null,null,null,null,null,null,1,null,1,null,null,1,1]
[30,"Смоленская область"]
[31,"Тамбовская область",1,null,null,null,null,null,null,null,null,null,null,null,1]
[32,"Тверская область",null,1,null,null,1,null,null,1,null,null,null,null,null,1,null,1]
[33,"Тульская область",1,1,1,null,1,1,null,1,1,null,null,null,null,null,null,null,null,1,null,null,null,1]
[34,"Ярославская область"]
[null,"Итого:",{"$f":"SUM(C18:C51)","v":5},{"$f":"SUM(D18:D51)","v":4},{"$f":"SUM(E18:E51)","v":4},{"$f":"SUM(F18:F51)","v":3},{"$f":"SUM(G18:G51)","v":5},4,3,4,4,2,2,2,2,2,2,3,5,3,0,{"$f":"SUM(V18:V51)","v":5},{"$f":"SUM(W18:W51)","v":1},{"$f":"SUM(X18:X51)","v":4}]
["Северо-Западный федеральный округ"]
[1,"Архангельская область и Ненецкий АО",1,1,1,null,1,1,null,1,null,2,null,1,1,null,null,null,null,null,null,1]
[2,"Вологодская область"]
[3,"г.Санкт- Петербург",null,null,null,null,1,null,null,null,null,null,1,null,null,null,null,1,1,null,1]
[4,"Калининградская область",1,1,1,1,1,1,1,null,null,null,null,1,null,1,1,null,null,1,1]
[5,"Ленинградская область",null,null,null,1,1,null,null,1]
[6,"МИ ФНС России по Северо-Западному ФО"]
[7,"Мурманская область",1]
[8,"Новгородская область",null,1,null,null,null,null,null,null,null,null,1]
[9,"Псковская область"]
[10,"Республика Карелия",null,null,null,null,null,null,1,null,null,null,null,null,1,null,null,null,1]
[11,"Республика Коми",null,null,null,null,null,null,null,null,null,null,null,null,null,null,1,null,null,1,null,null,1]
[null,"Итого:",{"$f":"SUM(C54:C64)","v":3},{"$f":"SUM(D54:D64)","v":3},{"$f":"SUM(E54:E64)","v":2},{"$f":"SUM(F54:F64)","v":2},{"$f":"SUM(G54:G64)","v":4},2,2,2,0,2,2,2,2,1,2,1,2,2,2,{"$f":"SUM(V54:V64)","v":1},{"$f":"SUM(W54:W64)","v":1},{"$f":"SUM(X54:X64)","v":0}]
["Южный федеральный округ"]
[1,"Астраханская область",null,1,null,null,null,null,null,null,1,null,null,null,null,null,null,1]
[2,"Волгоградская область"]
[3,"г.Севастополь",null,null,null,null,null,null,null,null,null,null,null,null,null,1]
[4,"Краснодарский край",1,1,1,null,1,1,null,1,null,1,null,1,null,1,1]
[5,"МИ ФНС России по Южному ФО"]
[6,"Республика Адыгея"]
[7,"Республика Калмыкия"]
[8,"Республика Крым",null,null,null,null,null,null,1,null,1,null,null,null,null,null,null,1,null,null,1,1,null,1]
[9,"Ростовская область",null,null,null,1,null,null,null,null,null,null,1,null,1,null,null,null,1,1,null,null,1]
[null,"Итого:",{"$f":"SUM(C67:C75)","v":1},{"$f":"SUM(D67:D75)","v":2},{"$f":"SUM(E67:E75)","v":1},{"$f":"SUM(F67:F75)","v":1},{"$f":"SUM(G67:G75)","v":1},1,1,1,2,1,1,1,1,2,1,2,1,1,1,{"$f":"SUM(V67:V75)","v":1},{"$f":"SUM(W67:W75)","v":1},{"$f":"SUM(X67:X75)","v":1}]
["Северо-Кавказский федеральный округ"]
[1,"Кабардино- Балкарская Республика",null,null,null,1,null,null,1,1,null,1,null,null,null,null,null,1]
[2,"Карачаево- Черкесская Республика",1,1,1,1,2,null,1,1,1,null,1,null,null,null,null,null,1,1,1]
[3,"МИ ФНС России по Северо-Кавказскому ФО"]
[4,"Республика Дагестан",null,null,null,null,null,null,1,null,1,null,null,1,null,null,1]
[5,"Республика Ингушетия",null,null,null,null,null,null,null,null,null,null,null,null,null,null,null,null,null,null,null,1]
[6,"Республика Северная Осетия - Алания",null,null,null,null,null,null,null,null,null,null,null,null,null,null,null,1,null,null,null,null,1,1]
[7,"Ставропольский край",1,null,null,null,null,1,null,1,null,null,null,1,null,1,null,null,null,null,1]
[8,"Чеченская Республика"]
[null,"Итого:",{"$f":"SUM(C78:C85)","v":2},{"$f":"SUM(D78:D85)","v":1},{"$f":"SUM(E78:E85)","v":1},{"$f":"SUM(F78:F85)","v":2},{"$f":"SUM(G78:G85)","v":2},1,3,3,2,1,1,2,0,1,1,2,1,1,2,{"$f":"SUM(V78:V85)","v":1},{"$f":"SUM(W78:W85)","v":1},{"$f":"SUM(X78:X85)","v":1}]
["Приволжский федеральный округ"]
[1,"Кировская область",null,null,1,null,1,1,1,1,1,1,1,1,2,1,2,1,1,2,1,2,null,1]
[2,"МИ ФНС России по Приволжскому ФО"]
[3,"Нижегородская область",1,1,2,null,1,null,null,null,1,null,1,null,2,1,null,null,null,null,null,1,1]
[4,"Оренбургская область",null,null,null,null,1,1,null,1,null,1,null,1,null,null,1,null,null,null,1,1,null,1]
[5,"Пензенская область",null,null,null,null,null,null,null,null,1,null,1]
[6,"Пермский край",2,2,2,null,null,null,2,null,1,1,1,2,1,null,1,2,2,2,2,null,1,1]
[7,"Республика Башкортостан",null,1,1,2,null,1,1,2,null,null,1,null,null,1,null,1,1,1,null,1]
[8,"Республика Марий Эл",null,null,null,null,null,null,null,null,null,null,null,1,null,1]
[9,"Республика Мордовия"]
[10,"Республика Татарстан",1,1,1,1,1,1,null,1,1,2,null,1,null,1,1,null,null,null,null,null,1]
[11,"Самарская область",null,null,null,1,null,null,1,1,1,null,1,null,1,null,null,null,null,null,1,1,null,2]
[12,"Саратовская область",1,1,1,1,1,1,null,1,null,2,null,null,null,1,1,2,1,1,null,null,1]
[13,"Удмуртская Республика",null,null,null,null,null,null,null,null,null,null,1,null,1,2]
[14,"Ульяновская область"]
[15,"Чувашская Республика",null,null,null,null,null,null,1,null,null,null,null,null,null,null,null,null,null,null,1,null,1]
[null,"Итого:",{"$f":"SUM(C88:C102)","v":5},{"$f":"SUM(D88:D102)","v":6},{"$f":"SUM(E88:E102)","v":8},{"$f":"SUM(F88:F102)","v":5},{"$f":"SUM(G88:G102)","v":5},5,6,7,6,7,7,6,7,8,6,6,5,6,6,{"$f":"SUM(V88:V102)","v":6},{"$f":"SUM(W88:W102)","v":5},{"$f":"SUM(X88:X102)","v":5}]
["Уральский федеральный округ"]
[1,"Курганская область",null,null,null,null,null,null,null,null,null,null,null,null,null,null,null,1,null,null,null,null,1]
[2,"МИ ФНС России по Уральскому ФО",null,null,null,null,null,null,null,null,null,1,null,null,null,null,null,null,1]
[3,"Свердловская область",1,1,1,null,1,1,null,null,1,null,null,1,null,1,1,null,null,1,null,null,null,1]
[4,"Тюменская область",null,null,null,null,null,null,null,1,null,null,null,null,null,null,null,null,null,null,1,null,null,1]
[5,"Ханты-Мансийский АО",null,null,null,1]
[6,"Челябинская область",null,null,null,null,null,null,1,1,1,2,2,null,1,1,1,1,1,1,null,1]
[7,"Ямало-Ненецкий АО",null,1,null,null,null,null,null,null,null,null,null,null,null,null,null,null,null,null,null,null,1]
[null,"Итого:",{"$f":"SUM(C105:C111)","v":1},{"$f":"SUM(D105:D111)","v":2},{"$f":"SUM(E105:E111)","v":1},{"$f":"SUM(F105:F111)","v":1},{"$f":"SUM(G105:G111)","v":1},1,1,2,2,3,2,1,1,2,2,2,2,2,1,{"$f":"SUM(V105:V111)","v":1},{"$f":"SUM(W105:W111)","v":2},{"$f":"SUM(X105:X111)","v":2}]
["Сибирский федеральный округ"]
[1,"Алтайский край",1,null,null,1,null,1,null,null,1,1,1,null,2,null,null,1,null,null,null,2,null,1]
[2,"Иркутская область",null,1,1,1,1,1,null,1,1,null,null,1,1,2,1,null,1,null,1,null,1]
[3,"Кемеровская область"]
[4,"Красноярский край",2,2,1,2,null,1,1,1,3,1,1,null,1,null,1,null,null,1]
[5,"МИ ФНС России по Сибирскому ФО",null,null,null,null,null,null,null,null,null,null,null,1]
[6,"Новосибирская область",1,null,null,null,null,null,null,null,null,null,null,null,null,1,1]
[7,"Омская область",null,1,1,null,1,1,null,1,1,null,1,1,1,null,1,null,1,1,1,null,null,1]
[8,"Республика Алтай",null,null,null,1,null,null,1,null,null,null,null,null,null,null,null,null,null,null,null,null,1,1]
[9,"Республика Тыва",1,null,null,null,null,null,null,null,null,null,null,null,null,null,null,1]
[10,"Республика Хакасия",null,1,1,null,null,null,null,null,null,null,null,null,null,null,null,null,null,null,null,1]
[11,"Томская область",null,null,null,null,1,1,null,1,null,1,null,1,1,null,null,null,null,null,1,null,1]
[null,"Итого:",{"$f":"SUM(C114:C124)","v":5},{"$f":"SUM(D114:D124)","v":5},{"$f":"SUM(E114:E124)","v":4},{"$f":"SUM(F114:F124)","v":5},{"$f":"SUM(G114:G124)","v":3},5,2,4,6,3,3,4,6,3,4,2,2,2,3,{"$f":"SUM(V114:V124)","v":3},{"$f":"SUM(W114:W124)","v":3},{"$f":"SUM(X114:X124)","v":3}]
["Дальневосточный федеральный округ"]
[1,"Амурская область",null,null,null,null,null,null,null,null,null,null,1]
[2,"Еврейская АО",null,null,null,null,null,null,null,null,1]
[3,"Забайкальский край",null,null,null,1,null,null,1,null,null,null,null,1,null,null,1,1,1,1,null,null,null,1]
[4,"Камчатский край",null,null,null,null,null,null,null,null,null,null,null,null,null,null,null,null,1,null,1]
[5,"Магаданская область",null,null,null,1,null,null,null,null,null,null,null,null,null,null,null,null,null,null,null,null,1]
[6,"МИ ФНС России по Дальневосточному ФО",1,null,1,null,null,1,null,null,null,null,null,null,null,null,1,null,null,1]
[7,"Приморский край",null,null,null,1,1,1,null,null,null,1,2,null,null,null,null,1,1,1,1,2,null,1]
[8,"Республика Бурятия"]
[9,"Республика Саха (Якутия)",null,null,null,1,null,null,1,null,null,null,1,null,null,null,null,null,null,null,1,null,1]
[10,"Сахалинская область",null,null,null,null,null,null,null,null,null,null,null,null,null,null,null,null,null,null,null,null,1]
[11,"Хабаровский край",1,1,1,1,1,1,3,1,null,1,null,1,2,1,null,null,2,2,1,2,2,2]
[12,"Чукотский АО"]
[null,"Итого:",{"$f":"SUM(C127:C138)","v":2},{"$f":"SUM(D127:D138)","v":1},{"$f":"SUM(E127:E138)","v":2},{"$f":"SUM(F127:F138)","v":5},{"$f":"SUM(G127:G138)","v":2},3,5,1,1,2,4,2,2,1,2,2,5,5,4,{"$f":"SUM(V127:V138)","v":4},{"$f":"SUM(W127:W138)","v":5},{"$f":"SUM(X127:X138)","v":4}]
["Новые территории Российской Федерации"]
[1,"Донецкая Народная Республика",null,null,1,null,1,1,null,null,null,1,null,null,1,1,2,1,null,null,null,3,2,3]
[2,"Запорожская область"]
[3,"Луганская Народная Республика",null,null,null,null,null,null,1,null,1,2,2,3,2,3,2,1,null,null,1,1,1,1]
[4,"Херсонская область"]
[null,"Итого:",{"$f":"SUM(C141:C144)","v":0},{"$f":"SUM(D141:D144)","v":0},{"$f":"SUM(E141:E144)","v":1},{"$f":"SUM(F141:F144)","v":0},{"$f":"SUM(G141:G144)","v":1},1,1,0,1,3,2,3,3,4,4,2,0,0,1,{"$f":"SUM(V141:V144)","v":4},{"$f":"SUM(W141:W144)","v":3},{"$f":"SUM(X141:X144)","v":4}]
[null,"Всего:",{"$f":"C145+C139+C125+C112+C103+C86+C76+C65+C52+C16","v":25},{"$f":"D145+D139+D125+D112+D103+D86+D76+D65+D52+D16","v":25},{"$f":"E145+E139+E125+E112+E103+E86+E76+E65+E52+E16","v":25},{"$f":"F145+F139+F125+F112+F103+F86+F76+F65+F52+F16","v":24},{"$f":"G145+G139+G125+G112+G103+G86+G76+G65+G52+G16","v":25},24,24,25,24,24,24,24,24,24,24,23,24,22,20,{"$f":"V145+V139+V125+V112+V103+V86+V76+V65+V52+V16","v":26},{"$f":"W145+W139+W125+W112+W103+W86+W76+W65+W52+W16","v":22},{"$f":"X145+X139+X125+X112+X103+X86+X76+X65+X52+X16","v":24}]

{"sheet":"Прил.25","index":4,"n_rows":146,"n_cols":28,"rows_kept":146,"cut":false,"hidden":false,"merged":[[112,0,112,1],[125,0,125,1],[139,0,139,1],[16,0,16,1],[52,0,52,1],[65,0,65,1],[76,0,76,1],[86,0,86,1],[103,0,103,1],[13,0,13,1],[7,0,11,0],[9,4,9,8],[10,4,10,8],[9,2,9,3],[10,2,10,3],[7,2,7,27],[8,2,8,27],[7,1,11,1],[10,24,10,27],[9,24,9,27],[6,0,6,27],[9,18,9,19],[10,18,10,19],[9,22,9,23],[10,20,10,21],[10,22,10,23],[9,20,9,21],[10,9,10,10],[9,9,9,10],[9,11,9,14],[10,11,10,14],[9,15,9,17],[10,15,10,17]]}
[null,null,null,null,null,null,null,null,null,null,null,null,null,null,null,null,null,null,null,null,null,null,null,null,null,null,"Приложение № 25"]
[null,null,null,null,null,null,null,null,null,null,null,null,null,null,null,null,null,null,null,null,null,null,null,null,null,null,"УТВЕРЖДЕН"]
[null,null,null,null,null,null,null,null,null,null,null,null,null,null,null,null,null,null,null,null,null,null,null,null,null,null,"Приказом ФНС России"]
[null,null,null,null,null,null,null,null,null,null,null,null,null,null,null,null,null,null,null,null,null,null,null,null,null,null,"от \"   \"                      20   г."]
[null,null,null,null,null,null,null,null,null,null,null,null,null,null,null,null,null,null,null,null,null,null,null,null,null,null,"№ "]
[]
["План-график дополнительного профессионального образования гражданских служащих в \"Академии ФНС ЛАБ–Нева\" в 2025 году \n(очная форма обучения)"]
["№ п/п","Структурные подразделения ЦА ФНС России, УФНС России по субъектам РФ, межрегиональные инспекции ФНС России","Численность, человек"]
[null,null,"В том числе по программам повышения квалификации с указанием продолжительности и периодам обучения"]
[null,null,"Предупреждение коррупции на государственной службе",null,"Психологические аспекты профессиональной деятельности на государственной гражданской службе и предотвращение выгорания (базовый уровень)",null,null,null,null,"Психологические аспекты профессиональной деятельности на государственной гражданской службе и предотвращение выгорания (мастерский уровень)",null,"Тактика ведения допроса (базовый уровень)",null,null,null,"Тактика ведения допроса (повышенный уровень)",null,null,"Три ключа к имиджу государственного служащего",null,"Управление конфликтами на государственной службе (мастерский уровень)  ",null,"Школа кадровика (повышенный уровень)",null,"Эффективное взаимодействие с налогоплательщиками (повышенный уровень)"]
[null,null," (64 часа)",null," (64 часа)",null,null,null,null," (64 часа)",null," (64 часа)",null,null,null," (64 часа)",null,null," (64 часа)",null," (64 часа)",null," (64 часа)",null," (64 часа)"]
[null,null,"25.08-05.09","05.11-14.11","14.01-24.01","27.01-07.02","21.04-30.04","26.05-06.06","05.11-14.11","09.06-20.06","06.10-17.10","24.02-07.03","26.05-06.06","25.08-05.09","22.09-03.10","10.02-21.02","17.11-28.11","08.12-19.12","10.03-21.03","26.05-06.06","27.01-07.02","22.09-03.10","27.01-07.02","09.06-20.06","24.02-07.03","10.03-21.03","09.06-20.06","20.10-31.10"]
[1,2,3,4,5,6,7,8,9,10,11,12,13,14,15,16,17,18,19,20,21,22,23,24,25,26,27,28]
["Центральный аппарат ФНС России"]
[1,"Управление профессионального развития",null,null,null,null,1,null,null,1,1,1,1,null,null,null,null,null,null,null,1,1,null,1,null,1]
[null,"Итого:",{"$f":"SUM(C15:C15)","v":0},0,0,0,1,0,0,1,1,1,1,0,0,0,0,0,0,0,1,1,0,1,0,1,0,0]
["Центральный федеральный округ"]
[1,"Белгородская область",null,null,1,null,null,null,null,null,null,1,1,null,null,null,null,null,null,null,null,null,1]
[2,"Брянская область",null,null,null,null,null,null,null,null,null,null,null,null,null,null,null,null,null,null,null,null,null,null,1]
[3,"Владимирская область",null,null,null,1,1,null,null,null,null,null,null,null,null,1,1,1,null,null,null,null,null,null,null,null,1]
[4,"Воронежская область",null,null,null,null,null,null,null,null,null,null,null,1,1,1,1,1,null,null,null,null,null,null,null,1]
[5,"г.Москва",1,1,null,null,null,null,null,1,null,1,null,null,null,1,1,null,null,null,null,null,1,1,null,null,1]
[6,"Ивановская область",1,null,null,null,null,null,null,null,null,null,null,null,null,1,null,null,null,null,null,null,null,1]
[7,"Калужская область",null,null,null,null,null,1,null,null,null,null,1,1,null,null,null,null,1,null,null,null,null,null,1]
[8,"Костромская область",null,null,null,null,null,null,1,null,null,null,null,null,1]
[9,"Курская область",null,null,1,1,null,null,null,null,null,null,null,null,null,null,null,null,null,1,1,null,1]
[10,"Липецкая область",null,null,1,null,null,null,null,null,1,1,null,null,null,null,null,1,1,null,null,null,null,null,null,1]
[11,"МИ ФНС России по камеральному контролю",null,null,null,null,null,null,null,null,null,null,null,null,null,null,null,null,null,null,null,null,1,1]
[12,"МИ ФНС России по КН № 1",null,null,null,null,1]
[13,"МИ ФНС России по КН № 2"]
[14,"МИ ФНС России по КН № 3"]
[15,"МИ ФНС России по КН № 4",null,null,null,null,null,null,null,1,null,null,null,null,null,null,null,null,null,null,null,1]
[16,"МИ ФНС России по КН № 5"]
[17,"МИ ФНС России по КН № 6",1]
[18,"МИ ФНС России по КН № 7"]
[19,"МИ ФНС России по КН № 9"]
[20,"МИ ФНС России по КН № 10"]
[21,"МИ ФНС России по ценообразованию для целей налогообложения"]
[22,"МИ ФНС России по Центральному ФО"]
[23,"МИ ФНС России по ЦОД",null,null,null,null,null,1]
[24,"МИ ФНС России по ЦОД №2"]
[25,"МИ ФНС России по управлению долгом",null,null,null,null,null,null,null,null,null,null,null,null,null,null,null,null,null,null,1]
[26,"МИ ФНС России по контролю и надзору за налогоплательщиками в сфере бюджетного финансирования",null,null,null,null,null,null,1]
[27,"Московская область",null,1,null,null,null,null,null,null,1,null,null,null,null,null,null,null,null,null,null,1,null,2,null,null,1,1]
[28,"Орловская область"]
[29,"Рязанская область",null,null,null,null,null,null,null,null,null,null,null,null,null,null,1]
[30,"Смоленская область",null,null,null,null,null,null,null,null,null,null,null,null,null,null,null,null,null,null,null,null,null,null,1]
[31,"Тамбовская область",null,null,1,1,null,null,null,1,null,1,null,1,null,null,null,1,null,null,1]
[32,"Тверская область",null,null,null,null,1,null,null,1,1,null,1,1,1,null,null,null,null,1,null,1]
[33,"Тульская область",null,null,null,null,null,1,null,null,null,null,null,null,null,null,null,null,1]
[34,"Ярославская область"]
[null,"Итого:",{"$f":"SUM(C18:C51)","v":3},{"$f":"SUM(D18:D51)","v":2},{"$f":"SUM(E18:E51)","v":4},3,3,3,2,{"$f":"SUM(J18:J51)","v":4},3,4,3,4,3,4,4,4,3,2,3,3,4,5,3,2,3,1]
["Северо-Западный федеральный округ"]
[1,"Архангельская область и Ненецкий АО",null,1,1,1,1,1,null,1,null,1,1,null,null,null,null,1,null,null,1,1,1,null,null,1,null,1]
[2,"Вологодская область"]
[3,"г.Санкт- Петербург",null,null,1,1,null,null,2,null,1,1,1,1,1,null,null,null,2,2,null,1,null,null,null,null,1]
[4,"Калининградская область",null,null,1,1,1,1,1,null,null,null,1,1,null,null,1,1,3,2,1,1,null,null,1]
[5,"Ленинградская область",null,null,null,null,null,null,null,null,null,null,1,null,1,null,null,null,null,null,null,null,null,1,null,null,1]
[6,"МИ ФНС России по Северо-Западному ФО"]
[7,"Мурманская область",null,null,null,null,null,null,null,null,null,null,null,null,null,1,1,null,null,1]
[8,"Новгородская область",null,null,null,null,null,null,null,null,1,null,null,null,null,1,null,null,1,null,null,1,null,null,null,1,null,1]
[9,"Псковская область",null,null,null,null,null,null,null,null,null,null,null,null,null,1,1,null,1,1,1,null,null,null,1,1,null,1]
[10,"Республика Карелия",null,null,null,null,null,1,1,null,null,null,null,1,1,null,null,null,1,1,null,null,null,null,1,null,1,1]
[11,"Республика Коми",1]
[null,"Итого:",{"$f":"SUM(C54:C64)","v":1},{"$f":"SUM(D54:D64)","v":1},{"$f":"SUM(E54:E64)","v":3},3,2,3,4,{"$f":"SUM(J54:J64)","v":1},2,2,4,3,3,3,3,2,8,7,3,4,1,1,3,3,3,4]
["Южный федеральный округ"]
[1,"Астраханская область",null,null,null,null,null,null,null,null,null,null,null,null,null,null,null,null,null,null,null,1,null,null,1]
[2,"Волгоградская область"]
[3,"г.Севастополь",1]
[4,"Краснодарский край",null,1,null,null,null,null,null,1,null,1,1,null,null,1,1,1,null,null,null,null,1]
[5,"МИ ФНС России по Южному ФО"]
[6,"Республика Адыгея"]
[7,"Республика Калмыкия",null,null,null,null,null,null,null,null,null,null,null,null,null,null,null,null,null,null,null,null,null,null,null,null,1]
[8,"Республика Крым",null,null,null,null,null,null,1,null,null,null,null,null,null,1,1,null,null,null,null,null,null,1,null,null,1,1]
[9,"Ростовская область",1,null,1,1,null,null,null,null,null,1,1,2,1,null,null,1,null,null,null,1,null,null,1,1,1]
[null,"Итого:",{"$f":"SUM(C67:C75)","v":2},{"$f":"SUM(D67:D75)","v":1},{"$f":"SUM(E67:E75)","v":1},1,0,0,1,{"$f":"SUM(J67:J75)","v":1},0,2,2,2,1,2,2,2,0,0,0,2,1,1,2,1,3,1]
["Северо-Кавказский федеральный округ"]
[1,"Кабардино- Балкарская Республика",null,null,null,null,1]
[2,"Карачаево- Черкесская Республика",1,null,1,null,null,1,1,null,null,null,null,null,null,null,null,null,null,null,1]
[3,"МИ ФНС России по Северо-Кавказскому ФО"]
[4,"Республика Дагестан",null,null,null,1,null,null,null,null,null,1,1,null,null,1,null,null,null,1,1,1,null,1,1]
[5,"Республика Ингушетия"]
[6,"Республика Северная Осетия - Алания",null,null,null,null,null,null,null,null,null,null,null,null,null,null,1,null,null,null,null,null,null,null,null,null,1]
[7,"Ставропольский край",null,null,null,null,null,null,null,null,1,1,null,null,null,null,null,null,null,null,null,null,null,null,1,1,1,1]
[8,"Чеченская Республика"]
[null,"Итого:",{"$f":"SUM(C78:C85)","v":1},{"$f":"SUM(D78:D85)","v":0},{"$f":"SUM(E78:E85)","v":1},1,1,1,1,{"$f":"SUM(J78:J85)","v":0},1,2,1,0,0,1,1,0,0,1,2,1,0,1,2,1,2,1]
["Приволжский федеральный округ"]
[1,"Кировская область",1,2,2,1,2,2,1,2,null,1,1,1,1,null,null,null,null,null,1,2,1,null,1,1,1,2]
[2,"МИ ФНС России по Приволжскому ФО"]
[3,"Нижегородская область",1,null,null,1,1,null,null,null,1,null,1,1,null,1,1,1,null,null,null,null,1,1,1,1]
[4,"Оренбургская область",null,null,null,null,null,1,1,null,null,1,null,null,1,1,null,null,1,null,1,null,1,null,null,null,1]
[5,"Пензенская область",null,null,null,null,null,null,null,null,null,null,1,null,null,null,null,null,null,null,null,null,null,1,null,null,null,1]
[6,"Пермский край",null,1,1,1,1,1,null,null,null,1,1,1,1,null,1,null,1,1,1,1,null,1,null,1,1,1]
[7,"Республика Башкортостан",2,null,1,1,1,null,1,1,null,1,1,1,null,1,null,null,null,null,null,null,2,1,1,1,1]
[8,"Республика Марий Эл",1,null,null,null,null,null,null,null,null,null,null,1,1,null,null,null,null,null,null,null,1,null,null,null,null,1]
[9,"Республика Мордовия",null,null,null,null,null,null,null,null,null,null,null,null,null,null,null,null,null,null,null,null,null,1,1]
[10,"Республика Татарстан",null,2,1,1,1,1,1,null,null,1,1,null,null,1,null,1,1,null,null,1,1,null,null,1,1,1]
[11,"Самарская область",1,2,null,null,null,null,null,null,2,1,1,1,1,1,1,1,1,null,1,1,null,1,2,null,null,1]
[12,"Саратовская область",null,1,1,1,null,1,1,1,1,null,null,null,null,null,1,1,1,1,null,1,2,1,1,null,1]
[13,"Удмуртская Республика",null,1,null,null,null,null,null,null,null,null,null,null,null,null,null,null,null,null,null,null,null,null,1,null,1,1]
[14,"Ульяновская область",null,null,null,null,null,null,null,null,null,null,null,null,null,null,null,null,null,null,1,null,null,null,null,1]
[15,"Чувашская Республика",null,null,1,1,1,1,1,null,null,1,null,null,null,null,null,null,null,null,null,null,null,null,null,null,1]
[null,"Итого:",{"$f":"SUM(C88:C102)","v":6},{"$f":"SUM(D88:D102)","v":9},{"$f":"SUM(E88:E102)","v":7},7,7,7,6,{"$f":"SUM(J88:J102)","v":4},4,7,7,6,5,5,4,4,5,2,5,6,9,7,8,6,8,8]
["Уральский федеральный округ"]
[1,"Курганская область",null,null,null,null,null,null,null,null,null,null,null,1,null,null,null,1]
[2,"МИ ФНС России по Уральскому ФО",null,null,null,null,null,null,null,null,null,null,null,null,null,null,null,null,1]
[3,"Свердловская область",null,null,1,1,1,1,1,null,2,null,null,null,1,1,null,1,1,1,1,1,1,1,1,1,null,1]
[4,"Тюменская область",null,null,null,1,1,1,null,1,null,1,1,null,null,null,null,null,null,null,null,null,null,1,null,null,null,1]
[5,"Ханты-Мансийский АО",null,2,null,null,null,null,null,null,null,null,null,1,null,null,1,null,null,null,1,null,null,null,1,1]
[6,"Челябинская область",2,2,1,null,null,null,1,null,null,1,null,1,1,1,1,null,1,1,1,1,2,1,null,null,1,1]
[7,"Ямало-Ненецкий АО",null,null,null,null,null,null,null,null,1,null,null,null,null,null,1,1,null,null,null,null,1]
[null,"Итого:",{"$f":"SUM(C105:C111)","v":2},{"$f":"SUM(D105:D111)","v":4},{"$f":"SUM(E105:E111)","v":2},2,2,2,2,{"$f":"SUM(J105:J111)","v":1},3,2,1,3,2,2,3,3,3,2,3,2,4,3,2,2,1,3]
["Сибирский федеральный округ"]
[1,"Алтайский край",2,1,null,1,1,null,null,null,null,1,1,null,null,null,null,null,null,1,1,null,null,null,null,null,1]
[2,"Иркутская область",1,null,null,null,null,1,1,2,1,null,null,null,1,1,1,null,1,null,1,2,1]
[3,"Кемеровская область"]
[4,"Красноярский край",2,1,2,2,2,1,1,1,2,1,1,null,null,1,2,1,null,null,1,null,1,1,null,1,1]
[5,"МИ ФНС России по Сибирскому ФО"]
[6,"Новосибирская область",null,1,null,null,null,null,null,null,1,null,null,1,null,null,null,1]
[7,"Омская область",null,null,null,null,null,1,1,null,null,null,null,null,1,1,null,null,1,2,null,1,null,null,null,1]
[8,"Республика Алтай",1,null,1,null,null,null,null,1,null,null,null,null,1]
[9,"Республика Тыва",null,null,null,null,null,null,null,null,null,null,null,null,null,null,null,null,null,null,1,null,null,null,null,null,null,1]
[10,"Республика Хакасия",null,null,null,null,1,null,null,null,null,1,null,null,1,null,null,null,null,null,null,1]
[11,"Томская область",null,null,null,null,null,1,1,null,null,null,null,null,null,null,null,1,null,null,1,null,1,1,1]
[null,"Итого:",{"$f":"SUM(C114:C124)","v":6},{"$f":"SUM(D114:D124)","v":3},{"$f":"SUM(E114:E124)","v":3},3,4,4,4,{"$f":"SUM(J114:J124)","v":4},4,3,2,1,4,3,3,3,2,3,5,4,3,2,1,2,2,1]
["Дальневосточный федеральный округ"]
[1,"Амурская область",null,null,null,null,null,null,null,null,null,null,null,1]
[2,"Еврейская АО",null,null,null,null,null,null,null,null,null,null,null,null,null,null,null,null,null,null,null,null,null,null,null,1]
[3,"Забайкальский край",null,null,1,1,null,null,null,null,null,null,null,null,null,null,null,null,null,null,null,null,null,1,null,null,null,1]
[4,"Камчатский край",null,null,null,null,null,null,null,null,null,null,null,null,null,null,null,null,null,null,null,null,null,null,1]
[5,"Магаданская область",1]
[6,"МИ ФНС России по Дальневосточному ФО",null,null,null,null,1]
[7,"Приморский край",1,2,null,1,null,null,null,2,null,1,1,1,1,1,null,null,1,null,1,1,1,1,1,1,1,2]
[8,"Республика Бурятия",null,null,null,null,null,null,null,2,1,1,1,1,2,null,null,null,null,null,null,1,null,null,null,1,1,1]
[9,"Республика Саха (Якутия)",1,null,1,null,null,1,1,1,null,null,1,1,1,null,null,1,null,null,1,null,1,null,1,1]
[10,"Сахалинская область",null,null,null,null,null,null,null,null,1,null,1,1,null,null,null,null,null,null,null,null,null,2,null,null,1]
[11,"Хабаровский край",null,null,1,2,1,1,1,3,2,1,1,1,1,2,2,3,2,4,null,null,1,null,1,null,null,1]
[12,"Чукотский АО",null,1]
[null,"Итого:",{"$f":"SUM(C127:C138)","v":3},{"$f":"SUM(D127:D138)","v":3},{"$f":"SUM(E127:E138)","v":3},4,2,2,2,{"$f":"SUM(J127:J138)","v":8},4,3,5,6,5,3,2,4,3,4,2,2,3,4,4,4,3,5]
["Новые территории Российской Федерации"]
[1,"Донецкая Народная Республика",null,null,null,null,1,null,null,null,null,null,null,1,2,null,null,null,null,1,1,null,null,null,null,1]
[2,"Запорожская область",null,null,null,null,null,null,null,null,1]
[3,"Луганская Народная Республика",null,null,1,1,null,1,null,null,null,null,null,null,1,null,1,null,null,1,null,null,null,null,null,1,1,1]
[4,"Херсонская область"]
[null,"Итого:",{"$f":"SUM(C141:C144)","v":0},{"$f":"SUM(D141:D144)","v":0},{"$f":"SUM(E141:E144)","v":1},1,1,1,0,{"$f":"SUM(J141:J144)","v":0},1,0,0,1,3,0,1,0,0,2,1,0,0,0,0,2,1,1]
[null,"Всего:",{"$f":"C145+C139+C125+C112+C103+C86+C76+C65+C52+C16","v":24},{"$f":"D145+D139+D125+D112+D103+D86+D76+D65+D52+D16","v":23},{"$f":"E145+E139+E125+E112+E103+E86+E76+E65+E52+E16","v":25},25,23,23,22,{"$f":"J145+J139+J125+J112+J103+J86+J76+J65+J52+J16","v":24},23,26,26,26,26,23,23,22,24,23,25,25,25,25,25,24,26,25]

{"sheet":"Прил.26","index":5,"n_rows":146,"n_cols":15,"rows_kept":146,"cut":false,"hidden":false,"merged":[[6,0,6,13],[7,0,11,0],[7,2,7,14],[8,2,8,14],[9,2,9,4],[10,2,10,4],[10,5,10,6],[10,7,10,9],[10,11,10,12],[10,13,10,14],[9,13,9,14],[9,5,9,6],[9,7,9,9],[9,11,9,12],[7,1,11,1]]}
[0,null,null,null,null,null,null,null,null,null,null,null,null,"Приложение № 26"]
[null,null,null,null,null,null,null,null,null,null,null,null,null,"УТВЕРЖДЕН"]
[null,null,null,null,null,null,null,null,null,null,null,null,null,"Приказом ФНС России"]
[null,null,null,null,null,null,null,null,null,null,null,null,null,"от \" \"                 20   г."]
[null,null,null,null,null,null,null,null,null,null,null,null,null,"№ "]
[]
["План-график дополнительного профессионального образования гражданских служащих в  \"Академии ФНС ЛАБ–Нева\" в 2025 году \n(очная форма обучения)"]
["№ п/п","Структурные подразделения ЦА ФНС России, УФНС России по субъектам РФ, межрегиональные инспекции ФНС России","Численность, человек"]
[null,null,"В том числе по программам повышения квалификации с указанием продолжительности и периодам обучения"]
[null,null,"Администрирование страховых взносов (повышенный уровень)",null,null,"Администрирование страховых взносов (мастерский уровень)",null,"Анализ и прогнозирование налоговых и неналоговых поступлений в бюджетную систему Российской Федерации (повышенный уровень)",null,null,"Анализ и прогнозирование налоговых и неналоговых поступлений в бюджетную систему Российской Федерации (мастерский уровень)","Анализ финансовой деятельности в целях налогового контроля (повышенный уровень)",null,"Анализ финансовой деятельности в целях налогового контроля (мастерский уровень)"]
[null,null," (72 часа)",null,null," (72 часа)",null," (72 часа)",null,null," (72 часа)"," (72 часа)",null," (72 часа)"]
[null,null,"10.02-21.02","31.03-11.04","08.12-19.12","22.09-03.10","27.10-07.11","10.03-21.03","16.06-27.06","25.08-05.09","05.11-14.11","14.01-24.01","27.01-07.02","20.10-31.10","10.11-21.11"]
[1,2,3,4,5,6,7,8,9,10,11,12,13,14,15]
["Центральный аппарат ФНС России"]
[1,"Управление профессионального развития",null,null,null,null,null,null,null,null,null,null,null,1]
[null,"Итого:",{"$f":"SUM(C15:C15)","v":0},0,0,0,0,0,0,0,0,0,0,1,0]
["Центральный федеральный округ"]
[1,"Белгородская область"]
[2,"Брянская область",1,null,null,null,null,1]
[3,"Владимирская область",null,null,null,null,null,null,null,null,null,1]
[4,"Воронежская область",null,null,null,1,null,null,null,1,null,null,1]
[5,"г.Москва",null,null,null,2,2,null,null,1,null,1]
[6,"Ивановская область",null,null,null,null,null,null,null,null,null,null,1]
[7,"Калужская область",null,null,null,null,null,null,null,null,null,1]
[8,"Костромская область",null,1,null,null,null,null,null,null,null,null,1]
[9,"Курская область",null,null,null,null,null,1,null,null,null,null,null,1]
[10,"Липецкая область",1,null,1,null,1,null,1,1,null,null,null,null,1]
[11,"МИ ФНС России по камеральному контролю",null,null,null,null,null,null,null,null,null,1]
[12,"МИ ФНС России по КН № 1"]
[13,"МИ ФНС России по КН № 2"]
[14,"МИ ФНС России по КН № 3"]
[15,"МИ ФНС России по КН № 4",null,1]
[16,"МИ ФНС России по КН № 5",null,null,null,null,null,null,null,null,null,null,null,1]
[17,"МИ ФНС России по КН № 6",null,null,1]
[18,"МИ ФНС России по КН № 7",1]
[19,"МИ ФНС России по КН № 9",null,null,null,null,null,null,null,null,null,null,null,null,1]
[20,"МИ ФНС России по КН № 10"]
[21,"МИ ФНС России по ценообразованию для целей налогообложения"]
[22,"МИ ФНС России по Центральному ФО"]
[23,"МИ ФНС России по ЦОД"]
[24,"МИ ФНС России по ЦОД №2"]
[25,"МИ ФНС России по управлению долгом"]
[26,"МИ ФНС России по контролю и надзору за налогоплательщиками в сфере бюджетного финансирования"]
[27,"Московская область",1,1,null,null,null,null,null,null,1,null,null,1]
[28,"Орловская область",null,null,null,null,null,1,null,null,null,null,null,null,1]
[29,"Рязанская область",null,null,null,null,null,null,null,null,null,1,1,1]
[30,"Смоленская область"]
[31,"Тамбовская область",1,null,null,null,null,null,1,null,1,null,1]
[32,"Тверская область",null,null,null,null,null,null,null,null,1]
[33,"Тульская область",null,null,null,null,null,null,null,null,null,null,null,null,1]
[34,"Ярославская область",null,null,null,null,null,null,null,1,1]
[null,"Итого:",{"$f":"SUM(C18:C51)","v":5},3,2,3,3,3,2,4,4,5,5,4,4]
["Северо-Западный федеральный округ"]
[1,"Архангельская область и Ненецкий АО",null,null,null,null,null,1,null,null,null,1]
[2,"Вологодская область"]
[3,"г.Санкт- Петербург",null,null,null,null,null,null,1,null,null,null,null,1]
[4,"Калининградская область",null,null,null,null,null,null,null,null,null,null,null,null,1]
[5,"Ленинградская область",null,null,null,null,null,null,null,1,null,null,null,1]
[6,"МИ ФНС России по Северо-Западному ФО"]
[7,"Мурманская область"]
[8,"Новгородская область"]
[9,"Псковская область"]
[10,"Республика Карелия",null,null,null,null,null,1,null,null,null,null,1]
[11,"Республика Коми",null,1,null,null,null,null,null,null,null,1]
[null,"Итого:",{"$f":"SUM(C54:C64)","v":0},1,0,0,0,2,1,1,0,2,1,2,1]
["Южный федеральный округ"]
[1,"Астраханская область",null,null,1,null,null,null,null,null,null,null,1]
[2,"Волгоградская область",null,null,null,null,null,null,1]
[3,"г.Севастополь",1,null,null,null,null,null,null,1]
[4,"Краснодарский край",null,1,null,null,null,1,1,null,null,null,null,null,1]
[5,"МИ ФНС России по Южному ФО"]
[6,"Республика Адыгея",null,null,null,null,null,null,null,1,1]
[7,"Республика Калмыкия",1,null,1,1,null,null,null,null,1,1]
[8,"Республика Крым",null,1,1,1,1,1,1,null,null,1,1,1,1]
[9,"Ростовская область",null,null,null,null,null,1,null,1,1,1,1,1]
[null,"Итого:",{"$f":"SUM(C67:C75)","v":2},2,3,2,1,3,3,3,3,3,3,2,2]
["Северо-Кавказский федеральный округ"]
[1,"Кабардино- Балкарская Республика"]
[2,"Карачаево- Черкесская Республика",1,1,null,null,null,null,null,null,1]
[3,"МИ ФНС России по Северо-Кавказскому ФО"]
[4,"Республика Дагестан",1,1,1,null,1,null,1,1,1,1,1,null,1]
[5,"Республика Ингушетия"]
[6,"Республика Северная Осетия - Алания",null,null,1,null,null,1]
[7,"Ставропольский край",null,null,null,1,null,null,1,1,null,null,1]
[8,"Чеченская Республика",null,null,null,null,null,1,1]
[null,"Итого:",{"$f":"SUM(C78:C85)","v":2},2,2,1,1,2,3,2,2,1,2,0,1]
["Приволжский федеральный округ"]
[1,"Кировская область",1,1,null,null,1,1,null,1,1,1]
[2,"МИ ФНС России по Приволжскому ФО",null,null,null,null,null,null,1,null,null,null,null,1]
[3,"Нижегородская область",null,null,1,1,null,1,null,1,1,1,1,null,1]
[4,"Оренбургская область",1,1,null,null,1,null,1,null,1,null,null,1,1]
[5,"Пензенская область",null,null,null,null,null,null,null,null,null,null,null,1]
[6,"Пермский край",null,null,null,null,null,1,1,2,1,null,1,3,2]
[7,"Республика Башкортостан",1,null,1,1,1,1,1,null,null,1,null,1,1]
[8,"Республика Марий Эл",null,null,null,null,null,null,null,1,null,null,1]
[9,"Республика Мордовия",null,1,null,null,null,1,null,null,null,1,null,null,1]
[10,"Республика Татарстан",null,null,null,1,null,null,1,null,null,null,1,1]
[11,"Самарская область",null,null,1,1,2,1,null,1,1,1,1,null,1]
[12,"Саратовская область",1,null,null,null,null,null,null,null,null,1]
[13,"Удмуртская Республика",null,1,null,1,null,null,1,null,1,null,1]
[14,"Ульяновская область",null,null,null,null,null,null,null,null,null,1,null,1]
[15,"Чувашская Республика",null,null,null,null,null,null,null,1,1,null,null,null,1]
[null,"Итого:",{"$f":"SUM(C88:C102)","v":4},4,3,5,5,6,6,7,7,7,6,9,8]
["Уральский федеральный округ"]
[1,"Курганская область",null,null,null,null,null,1,null,null,null,null,null,1]
[2,"МИ ФНС России по Уральскому ФО"]
[3,"Свердловская область",1,null,1,null,null,null,1,1,1,null,null,null,1]
[4,"Тюменская область",null,1]
[5,"Ханты-Мансийский АО",1,1,1,null,null,null,null,null,null,null,1,1]
[6,"Челябинская область",1,null,1,2,3,1,null,null,null,1,null,null,1]
[7,"Ямало-Ненецкий АО",null,null,null,null,null,null,null,null,null,null,null,1,1]
[null,"Итого:",{"$f":"SUM(C105:C111)","v":3},2,3,2,3,2,1,1,1,1,1,3,3]
["Сибирский федеральный округ"]
[1,"Алтайский край",null,1,null,1,null,null,1,1,1,null,1,1]
[2,"Иркутская область",1,null,1,4,4]
[3,"Кемеровская область",null,1]
[4,"Красноярский край",1,null,1,1,1,1,null,null,null,null,null,1,1]
[5,"МИ ФНС России по Сибирскому ФО"]
[6,"Новосибирская область",null,1,null,null,null,null,null,null,null,1,1]
[7,"Омская область"]
[8,"Республика Алтай",null,null,1]
[9,"Республика Тыва",1,1,null,null,1,null,1]
[10,"Республика Хакасия",null,null,1,1,null,null,null,null,null,1]
[11,"Томская область",null,null,null,null,null,null,null,1,1,null,1]
[null,"Итого:",{"$f":"SUM(C114:C124)","v":3},4,4,7,6,1,2,2,2,2,3,2,1]
["Дальневосточный федеральный округ"]
[1,"Амурская область",1,1,null,null,null,1]
[2,"Еврейская АО"]
[3,"Забайкальский край",1,null,1,null,null,null,1,null,null,1]
[4,"Камчатский край",null,null,null,null,null,null,null,1,null,null,null,1,1]
[5,"Магаданская область",null,1,null,null,null,1,1,null,null,null,1]
[6,"МИ ФНС России по Дальневосточному ФО",null,null,null,null,1]
[7,"Приморский край",1,null,1,null,null,1,null,1,1,1]
[8,"Республика Бурятия",null,1,null,null,null,null,1,1,null,null,1,null,1]
[9,"Республика Саха (Якутия)",null,null,2,1,1,1,1,null,1,null,null,1]
[10,"Сахалинская область",null,null,null,null,null,null,null,1]
[11,"Хабаровский край",1,1,1,1,null,1,1,null,null,1,null,null,1]
[12,"Чукотский АО"]
[null,"Итого:",{"$f":"SUM(C127:C138)","v":4},4,5,2,2,5,5,4,2,3,2,2,3]
["Новые территории Российской Федерации"]
[1,"Донецкая Народная Республика",1,1,null,null,null,1,null,1,1,null,1,1]
[2,"Запорожская область",null,null,null,null,null,null,null,null,1,null,null,null,1]
[3,"Луганская Народная Республика",2,2,2,null,null,null,1,1,null,1,1]
[4,"Херсонская область",null,null,null,null,null,null,null,null,1]
[null,"Итого:",{"$f":"SUM(C141:C144)","v":3},3,2,0,0,1,1,2,3,1,2,1,1]
[null,"Всего:",{"$f":"C145+C139+C125+C112+C103+C86+C76+C65+C52+C16","v":26},{"$f":"D145+D139+D125+D112+D103+D86+D76+D65+D52+D16","v":25},24,22,21,25,24,26,24,25,25,26,24]

{"sheet":"Прил.27","index":6,"n_rows":146,"n_cols":13,"rows_kept":146,"cut":false,"hidden":false,"merged":[[9,9,9,12],[10,2,10,8],[10,9,10,12],[6,0,6,12],[7,0,11,0],[7,2,7,12],[8,2,8,12],[9,2,9,8],[7,1,11,1]]}
[null,null,null,null,null,null,null,null,null,null,null,null,"Приложение № 27"]
[null,null,null,null,null,null,null,null,null,null,null,null,"УТВЕРЖДЕН"]
[null,null,null,null,null,null,null,null,null,null,null,null,"Приказом ФНС России"]
[null,null,null,null,null,null,null,null,null,null,null,null,"от \" \"                 20   г."]
[null,null,null,null,null,null,null,null,null,null,null,null,"№ "]
[]
["План-график дополнительного профессионального образования гражданских служащих  в \"Академии ФНС ЛАБ–Нева\" в 2025 году \n(очная форма обучения)"]
["№ п/п","Структурные подразделения ЦА ФНС России, УФНС России по субъектам РФ, межрегиональные инспекции ФНС России","Численность, человек"]
[null,null,"В том числе по программам повышения квалификации с указанием продолжительности и периодам обучения"]
[null,null,"Бухгалтерский и налоговый учёт в программном комплексе \"1С:  Предприятие\" в целях налогового контроля",null,null,null,null,null,null,"Досудебное урегулирование налоговых споров"]
[null,null," (72 часа)",null,null,null,null,null,null," (72 часа)"]
[null,null,"14.01-24.01","10.02-21.02","24.03-04.04 ","07.04-18.04","21.04-07.05 ","25.08-05.09","08.09-19.09","10.02-21.02","03.03-14.03","30.06-11.07","08.12-19.12"]
[1,2,3,4,5,6,7,8,9,10,11,12,13]
["Центральный аппарат ФНС России"]
[1,"Управление профессионального развития"]
[null,"Итого:",{"$f":"SUM(C15:C15)","v":0},0,0,0,0,0,0,0,0,0,0]
["Центральный федеральный округ"]
[1,"Белгородская область",1,1,1,1,1,null,1]
[2,"Брянская область",null,null,null,null,null,1,1,1,null,null,1]
[3,"Владимирская область"]
[4,"Воронежская область",1,null,null,null,null,null,null,null,null,1]
[5,"г.Москва",null,1,1,1]
[6,"Ивановская область",null,null,null,null,null,null,null,null,null,null,1]
[7,"Калужская область",null,null,null,null,1,1]
[8,"Костромская область",null,null,null,null,null,null,1]
[9,"Курская область"]
[10,"Липецкая область",1,null,null,null,null,null,null,1,1]
[11,"МИ ФНС России по камеральному контролю"]
[12,"МИ ФНС России по КН № 1",null,null,null,null,null,null,null,null,null,1]
[13,"МИ ФНС России по КН № 2",null,1]
[14,"МИ ФНС России по КН № 3"]
[15,"МИ ФНС России по КН № 4",null,null,1]
[16,"МИ ФНС России по КН № 5",null,null,null,1]
[17,"МИ ФНС России по КН № 6",null,null,null,null,1,1]
[18,"МИ ФНС России по КН № 7"]
[19,"МИ ФНС России по КН № 9"]
[20,"МИ ФНС России по КН № 10"]
[21,"МИ ФНС России по ценообразованию для целей налогообложения"]
[22,"МИ ФНС России по Центральному ФО",null,null,null,null,null,null,1]
[23,"МИ ФНС России по ЦОД"]
[24,"МИ ФНС России по ЦОД №2"]
[25,"МИ ФНС России по управлению долгом"]
[26,"МИ ФНС России по контролю и надзору за налогоплательщиками в сфере бюджетного финансирования"]
[27,"Московская область",1,1,null,null,null,null,null,null,null,null,1]
[28,"Орловская область",null,null,1,1,null,null,null,1]
[29,"Рязанская область",null,null,null,null,1]
[30,"Смоленская область",null,null,null,null,null,1,1]
[31,"Тамбовская область",1]
[32,"Тверская область",null,1,1,null,null,null,null,null,1]
[33,"Тульская область",null,null,null,1]
[34,"Ярославская область",null,null,null,null,1,1,1]
[null,"Итого:",{"$f":"SUM(C18:C51)","v":5},5,5,5,5,5,6,3,2,2,3]
["Северо-Западный федеральный округ"]
[1,"Архангельская область и Ненецкий АО",1,1]
[2,"Вологодская область"]
[3,"г.Санкт- Петербург",null,null,1,1,1,1,1]
[4,"Калининградская область",1,null,null,null,null,null,null,null,null,1]
[5,"Ленинградская область",null,null,null,null,null,null,null,1,null,null,1]
[6,"МИ ФНС России по Северо-Западному ФО"]
[7,"Мурманская область",null,1]
[8,"Новгородская область"]
[9,"Псковская область",null,1]
[10,"Республика Карелия",null,null,1,1,1]
[11,"Республика Коми"]
[null,"Итого:",{"$f":"SUM(C54:C64)","v":2},{"$f":"SUM(D54:D64)","v":3},2,2,2,1,1,1,0,1,1]
["Южный федеральный округ"]
[1,"Астраханская область"]
[2,"Волгоградская область",null,null,null,null,null,1]
[3,"г.Севастополь",null,null,null,null,null,null,1]
[4,"Краснодарский край"]
[5,"МИ ФНС России по Южному ФО",null,null,null,null,null,null,null,null,1,1]
[6,"Республика Адыгея"]
[7,"Республика Калмыкия",null,null,null,null,null,null,null,null,null,null,1]
[8,"Республика Крым",2,null,1,1,1,1,1,1]
[9,"Ростовская область",null,1,1]
[null,"Итого:",{"$f":"SUM(C67:C75)","v":2},1,2,1,1,2,2,1,1,1,1]
["Северо-Кавказский федеральный округ"]
[1,"Кабардино- Балкарская Республика",null,null,null,1,1]
[2,"Карачаево- Черкесская Республика",null,null,null,null,null,null,null,null,1]
[3,"МИ ФНС России по Северо-Кавказскому ФО",null,null,null,null,null,null,null,null,null,1,1]
[4,"Республика Дагестан",1,1,null,null,null,1,1]
[5,"Республика Ингушетия"]
[6,"Республика Северная Осетия - Алания",null,null,1,1,1,null,null,1]
[7,"Ставропольский край",1,null,null,null,null,1,1,null,1,1]
[8,"Чеченская Республика"]
[null,"Итого:",{"$f":"SUM(C78:C85)","v":2},1,1,2,2,2,2,1,2,2,1]
["Приволжский федеральный округ"]
[1,"Кировская область",null,1,1,1,1,1,1]
[2,"МИ ФНС России по Приволжскому ФО",null,null,null,null,null,null,null,1,1,1,1]
[3,"Нижегородская область",1,1,null,null,null,null,null,1,1,null,1]
[4,"Оренбургская область",null,null,1,1,null,null,null,null,null,1]
[5,"Пензенская область",null,null,null,null,1]
[6,"Пермский край",1,1,1,1,1,2,2,1,1,null,1]
[7,"Республика Башкортостан",1,1,1,2,2,2,2,null,null,1]
[8,"Республика Марий Эл"]
[9,"Республика Мордовия",1,null,null,null,null,null,null,1,null,null,1]
[10,"Республика Татарстан",null,1,1,1,null,null,null,1,1,1,1]
[11,"Самарская область",null,null,null,null,1,1,null,1,1,1,1]
[12,"Саратовская область",1,null,null,null,null,null,1,1,2,2,1]
[13,"Удмуртская Республика",null,1]
[14,"Ульяновская область"]
[15,"Чувашская Республика",null,null,1]
[null,"Итого:",{"$f":"SUM(C88:C102)","v":5},6,6,6,6,6,6,7,7,7,7]
["Уральский федеральный округ"]
[1,"Курганская область",null,null,null,1,null,null,null,null,null,null,1]
[2,"МИ ФНС России по Уральскому ФО",null,null,null,null,null,null,null,1]
[3,"Свердловская область",null,null,null,null,1,1,1]
[4,"Тюменская область",null,null,null,null,null,null,null,null,1,1,1]
[5,"Ханты-Мансийский АО",1,1,1,null,null,null,null,1]
[6,"Челябинская область",1,null,null,1,1,1,1,1,2,2,1]
[7,"Ямало-Ненецкий АО",null,null,null,null,null,null,null,null,null,null,1]
[null,"Итого:",{"$f":"SUM(C105:C111)","v":2},1,1,2,2,2,2,3,3,3,4]
["Сибирский федеральный округ"]
[1,"Алтайский край",null,1,null,null,null,null,null,1,1]
[2,"Иркутская область",1,null,1,1,1,1,1,2,1,2,2]
[3,"Кемеровская область",null,1]
[4,"Красноярский край",null,null,1,1,1,null,null,1,2,1,1]
[5,"МИ ФНС России по Сибирскому ФО"]
[6,"Новосибирская область",null,null,null,null,null,1,null,null,null,1]
[7,"Омская область",null,null,null,null,null,null,1,1,1,null,1]
[8,"Республика Алтай",1,null,null,null,null,null,null,null,null,1]
[9,"Республика Тыва",null,1,1]
[10,"Республика Хакасия"]
[11,"Томская область",null,null,null,1,1,1,null,1,null,null,1]
[null,"Итого:",{"$f":"SUM(C114:C124)","v":2},3,3,3,3,3,2,6,5,5,5]
["Дальневосточный федеральный округ"]
[1,"Амурская область",null,null,null,null,null,null,1]
[2,"Еврейская АО"]
[3,"Забайкальский край",1]
[4,"Камчатский край"]
[5,"Магаданская область",null,1]
[6,"МИ ФНС России по Дальневосточному ФО",null,null,1]
[7,"Приморский край",null,null,null,1,1,1,1,1,2,1,1]
[8,"Республика Бурятия",null,null,null,null,null,null,null,null,null,1]
[9,"Республика Саха (Якутия)",1,1,1,1,1,1,1]
[10,"Сахалинская область"]
[11,"Хабаровский край",1,1,1,null,null,null,null,1,null,null,1]
[12,"Чукотский АО"]
[null,"Итого:",{"$f":"SUM(C127:C138)","v":3},3,3,2,2,2,3,2,2,2,2]
["Новые территории Российской Федерации"]
[1,"Донецкая Народная Республика",null,null,null,1,1,1,1,1,1,1,1]
[2,"Запорожская область"]
[3,"Луганская Народная Республика",1,1,1,null,null,null,null,null,1,1]
[4,"Херсонская область"]
[null,"Итого:",{"$f":"SUM(C141:C144)","v":1},{"$f":"SUM(D141:D144)","v":1},1,1,1,1,1,1,2,2,1]
[null,"Всего:",{"$f":"C145+C139+C125+C112+C103+C86+C76+C65+C52+C16","v":24},{"$f":"D145+D139+D125+D112+D103+D86+D76+D65+D52+D16","v":24},24,24,24,24,25,25,24,25,25]

{"sheet":"Прил.28","index":7,"n_rows":146,"n_cols":23,"rows_kept":146,"cut":false,"hidden":false,"merged":[[6,0,6,22],[7,2,7,22],[8,2,8,22],[9,2,9,6],[9,7,9,13],[9,14,9,15],[9,16,9,20],[9,21,9,22],[7,0,11,0],[7,1,11,1],[10,2,10,6],[10,7,10,13],[10,14,10,15],[10,16,10,20],[10,21,10,22]]}
[null,null,null,null,null,null,null,null,null,null,null,null,null,null,null,null,null,null,null,null,null,null,"Приложение № 28"]
[null,null,null,null,null,null,null,null,null,null,null,null,null,null,null,null,null,null,null,null,null,null,"УТВЕРЖДЕН"]
[null,null,null,null,null,null,null,null,null,null,null,null,null,null,null,null,null,null,null,null,null,null,"Приказом ФНС России"]
[null,null,null,null,null,null,null,null,null,null,null,null,null,null,null,null,null,null,null,null,null,null,"от \" \"                 20   г."]
[null,null,null,null,null,null,null,null,null,null,null,null,null,null,null,null,null,null,null,null,null,null,"№ "]
[]
["План-график дополнительного профессионального образования гражданских служащих в в \"Академии ФНС ЛАБ–Нева\" в 2025 году \n(очная форма обучения)"]
["№ п/п","Структурные подразделения ЦА ФНС России, УФНС России по субъектам РФ, межрегиональные инспекции ФНС России","Численность, человек"]
[null,null,"В том числе по программам повышения квалификации с указанием продолжительности, группам и категориям должностей и периодам обучения"]
[null,null,"Камеральный контроль по устранению расхождений в налоговой декларации по НДС с использованием аналитических систем ФНС России",null,null,null,null,"Контрольно-аналитическая работа налоговых органов по устранению «налоговых разрывов»",null,null,null,null,null,null,"Лидерство и развитие высокоэффективных команд (повышенный уровень)",null,"Налог на добавленную стоимость (повышенный уровень)",null,null,null,null,"Налог на добавленную стоимость (мастерский уровень)"]
[null,null," (72 часа)",null,null,null,null," (72 часа)",null,null,null,null,null,null," (72 часа)",null," (72 часа)",null,null,null,null," (72 часа)"]
[null,null,"07.04-18.04","25.08-05.09","22.09-03.10  ","20.10-31.10","01.12-12.12","10.02-21.02","21.04-07.05 ","16.06-27.06","08.09-19.09","06.10-17.10","05.11-14.11","08.12-19.12","24.03-04.04","06.10-17.10","14.01-24.01","24.02-07.03","24.03-04.04","12.05-23.05","17.11-28.11","30.06-11.07","24.11-05.12"]
[1,2,3,4,5,6,7,8,9,10,11,12,13,14,15,16,17,18,19,20,21,22,23]
["Центральный аппарат ФНС России"]
[1,"Управление профессионального развития"]
[null,"Итого:",{"$f":"SUM(C15:C15)","v":0},0,0,null,0,0,0,0,0,0,0,0,0,0,0,0,0,0,0,0,0]
["Центральный федеральный округ"]
[1,"Белгородская область",1,1,null,null,null,1,1,1]
[2,"Брянская область",null,null,null,null,null,null,null,null,1]
[3,"Владимирская область",null,null,1,null,null,null,null,null,null,1,null,null,null,null,null,null,null,null,null,1]
[4,"Воронежская область",1,null,null,null,1,1,null,null,null,null,1,1,null,null,1,1]
[5,"г.Москва",null,1,null,null,null,null,1,1,null,null,null,null,1]
[6,"Ивановская область",null,null,null,null,null,null,null,null,1,null,null,null,null,1,null,null,1,null,null,null,1]
[7,"Калужская область",null,null,1,null,null,null,null,null,null,1,null,null,null,null,1,1,null,1,1]
[8,"Костромская область",null,1,null,null,null,null,null,null,null,null,null,null,1]
[9,"Курская область",null,null,null,null,null,null,null,null,null,null,null,null,null,null,null,null,1,null,null,1]
[10,"Липецкая область",null,null,null,null,null,1,1,null,null,1,null,1,null,null,null,null,null,1,null,1,1]
[11,"МИ ФНС России по камеральному контролю"]
[12,"МИ ФНС России по КН № 1",1,null,null,null,null,null,null,null,null,null,null,null,null,1]
[13,"МИ ФНС России по КН № 2",null,null,null,null,null,1]
[14,"МИ ФНС России по КН № 3",null,null,null,null,null,null,null,null,1,1]
[15,"МИ ФНС России по КН № 4",null,null,null,null,null,null,null,null,null,null,1]
[16,"МИ ФНС России по КН № 5",null,1,null,null,null,null,null,null,null,1,null,1,null,null,null,null,null,null,1]
[17,"МИ ФНС России по КН № 6"]
[18,"МИ ФНС России по КН № 7",null,null,1,null,1]
[19,"МИ ФНС России по КН № 9"]
[20,"МИ ФНС России по КН № 10"]
[21,"МИ ФНС России по ценообразованию для целей налогообложения",null,null,null,null,null,null,null,null,null,null,null,null,1]
[22,"МИ ФНС России по Центральному ФО",null,null,null,null,null,null,null,null,null,null,null,null,null,null,1,1]
[23,"МИ ФНС России по ЦОД"]
[24,"МИ ФНС России по ЦОД №2"]
[25,"МИ ФНС России по управлению долгом"]
[26,"МИ ФНС России по контролю и надзору за налогоплательщиками в сфере бюджетного финансирования"]
[27,"Московская область",2,1,1,null,1,null,null,null,null,null,null,null,null,1,null,null,1]
[28,"Орловская область",null,1,null,null,null,1,1,1,null,null,null,null,null,null,null,null,null,1,1,1,1]
[29,"Рязанская область"]
[30,"Смоленская область"]
[31,"Тамбовская область",null,null,null,null,null,null,null,null,null,null,null,null,null,null,null,null,null,null,null,1,1]
[32,"Тверская область",null,null,null,null,null,1,1,null,1,1,1,1]
[33,"Тульская область",1,null,1,null,1,null,null,1,null,null,null,null,1,1,1,1]
[34,"Ярославская область"]
[null,"Итого:",{"$f":"SUM(C18:C51)","v":6},{"$f":"SUM(D18:D51)","v":6},5,0,4,6,5,4,4,6,3,4,4,4,4,4,3,3,3,5,4]
["Северо-Западный федеральный округ"]
[1,"Архангельская область и Ненецкий АО",null,null,null,null,null,null,null,null,1,1,null,null,null,null,null,null,1,null,null,null,1]
[2,"Вологодская область"]
[3,"г.Санкт- Петербург",null,null,null,null,null,null,null,1,null,null,null,null,null,null,null,null,null,1,null,1]
[4,"Калининградская область",null,1,1,null,null,null,null,null,null,null,null,1,2,1,1,null,null,null,1]
[5,"Ленинградская область"]
[6,"МИ ФНС России по Северо-Западному ФО"]
[7,"Мурманская область",null,null,null,null,null,1]
[8,"Новгородская область",null,null,null,null,1,null,1,null,null,null,null,null,null,1,null,1,1,1]
[9,"Псковская область",1,null,null,null,null,null,null,null,null,1]
[10,"Республика Карелия",null,1,1,1,null,null,null,null,1]
[11,"Республика Коми",null,null,null,null,null,null,null,null,null,null,null,null,1]
[null,"Итого:",{"$f":"SUM(C54:C64)","v":1},{"$f":"SUM(D54:D64)","v":2},2,1,1,1,1,1,2,2,0,1,3,2,1,1,2,2,1,1,1]
["Южный федеральный округ"]
[1,"Астраханская область",null,null,null,null,1]
[2,"Волгоградская область",1,1,null,1,null,null,null,null,null,null,1]
[3,"г.Севастополь",null,null,null,null,null,null,null,null,null,null,null,null,null,null,null,null,null,null,1]
[4,"Краснодарский край",null,null,1,null,1,null,null,null,null,null,1,1,null,null,1,1,1,1,null,1,1]
[5,"МИ ФНС России по Южному ФО",1,null,null,null,null,1,null,null,null,null,null,null,null,1,null,null,null,null,null,null,1]
[6,"Республика Адыгея"]
[7,"Республика Калмыкия"]
[8,"Республика Крым",null,null,null,null,null,null,1,1,1,1,1,1]
[9,"Ростовская область",null,null,null,null,null,1,1,null,null,null,null,null,null,null,null,null,null,null,null,3,2]
[null,"Итого:",{"$f":"SUM(C67:C75)","v":2},1,1,1,2,2,2,1,1,1,3,2,0,1,1,1,1,1,1,4,4]
["Северо-Кавказский федеральный округ"]
[1,"Кабардино- Балкарская Республика",null,null,null,null,null,null,null,null,null,null,null,null,1]
[2,"Карачаево- Черкесская Республика",null,null,null,null,null,null,1,null,null,null,null,null,null,null,null,null,null,null,1]
[3,"МИ ФНС России по Северо-Кавказскому ФО"]
[4,"Республика Дагестан",null,1,1,null,1,null,null,null,1,1,null,1,null,1,1,1,1,1,1,2,2]
[5,"Республика Ингушетия",1]
[6,"Республика Северная Осетия - Алания",null,1]
[7,"Ставропольский край",null,null,1,null,1,1,1,null,null,null,null,1,1]
[8,"Чеченская Республика"]
[null,"Итого:",{"$f":"SUM(C78:C85)","v":1},{"$f":"SUM(D78:D85)","v":2},2,0,2,1,2,0,1,1,0,2,2,1,1,1,1,1,2,2,2]
["Приволжский федеральный округ"]
[1,"Кировская область",1,1,null,null,null,null,1,null,null,null,null,null,null,null,1,1,1,1,1,1,1]
[2,"МИ ФНС России по Приволжскому ФО"]
[3,"Нижегородская область",1,null,1,1,1,null,null,null,1,1,1,1,1,1,1,1,1,null,null,2,1]
[4,"Оренбургская область",null,1,1,null,null,1,1,1,1,null,null,null,null,1,1,null,null,1,1]
[5,"Пензенская область",null,null,null,null,null,null,null,null,null,1,null,null,null,null,null,1,1,null,null,1,1]
[6,"Пермский край",1,null,null,1,1,1,null,null,null,null,1,1,1,1,null,null,null,1,1,null,1]
[7,"Республика Башкортостан",null,1,1,2,1,1,2,2,2,1,1,1,1,null,1,1,1,1]
[8,"Республика Марий Эл",1,null,null,null,null,null,null,null,null,1]
[9,"Республика Мордовия"]
[10,"Республика Татарстан",null,1,1,null,null,2,2,1,1,1,2,2,1,1,2,1,1,1,2,1,1]
[11,"Самарская область",1,null,null,2,1,1,1,2,1,1,1,1,null,1,null,1,1,null,null,null,1]
[12,"Саратовская область",null,1,null,null,null,null,null,null,null,null,null,null,1,null,1,null,null,1,1,1]
[13,"Удмуртская Республика",null,null,1]
[14,"Ульяновская область",null,null,null,null,null,null,null,null,1,1,null,null,null,null,null,1]
[15,"Чувашская Республика",null,null,null,null,1,null,null,null,null,null,null,null,null,null,null,null,1,1]
[null,"Итого:",{"$f":"SUM(C88:C102)","v":5},5,5,6,5,6,7,6,7,7,6,6,5,5,7,7,7,7,6,6,6]
["Уральский федеральный округ"]
[1,"Курганская область",null,null,null,null,null,null,null,null,null,null,null,null,null,1,null,null,null,null,1]
[2,"МИ ФНС России по Уральскому ФО",1,null,null,null,null,null,null,null,null,null,1]
[3,"Свердловская область",null,1,1,null,1,1,1,null,null,null,null,1,1,null,1]
[4,"Тюменская область",1,null,null,null,null,null,null,1,1,null,null,null,null,null,null,1,1,1,1,1,1]
[5,"Ханты-Мансийский АО",null,1,null,null,null,null,null,null,null,1,null,null,null,null,1]
[6,"Челябинская область",1,null,1,4,1,1,1,1,null,null,1,1,1,1,null,1,1,1,1,1,1]
[7,"Ямало-Ненецкий АО",null,null,null,null,null,null,null,null,1,null,null,null,null,null,1,null,null,null,null,null,1]
[null,"Итого:",{"$f":"SUM(C105:C111)","v":3},{"$f":"SUM(D105:D111)","v":2},2,4,2,2,2,2,2,1,2,2,2,2,3,2,2,2,3,2,3]
["Сибирский федеральный округ"]
[1,"Алтайский край",null,1,null,null,null,null,null,null,null,1,null,null,null,null,null,1,1,1]
[2,"Иркутская область",1,1,1,2,1,1,1,1,null,null,1,1,1,2,1,1,1,null,1]
[3,"Кемеровская область",null,null,1,null,1,null,null,null,null,null,null,null,null,null,null,null,null,1]
[4,"Красноярский край",1,1,1,2,null,null,null,null,1,1,1,1,1,null,null,null,null,null,null,1,1]
[5,"МИ ФНС России по Сибирскому ФО"]
[6,"Новосибирская область",null,null,null,null,null,1,null,null,null,null,null,null,null,null,null,null,null,null,1]
[7,"Омская область",null,null,null,null,null,null,1,null,null,null,null,null,null,1,1]
[8,"Республика Алтай"]
[9,"Республика Тыва",1,null,null,null,1,null,null,1,1,1,1]
[10,"Республика Хакасия",null,1,null,null,null,null,null,null,null,null,null,1,1]
[11,"Томская область",null,null,null,null,null,1,1,1,null,null,null,null,null,null,null,1,1,1]
[null,"Итого:",{"$f":"SUM(C114:C124)","v":3},{"$f":"SUM(D114:D124)","v":4},3,4,3,3,3,3,2,3,3,3,3,3,2,3,3,3,2,1,1]
["Дальневосточный федеральный округ"]
[1,"Амурская область",null,null,null,null,null,null,null,null,1,1,1,1,null,null,1,1,null,null,1]
[2,"Еврейская АО",null,null,1]
[3,"Забайкальский край",null,null,null,null,1,1,null,null,null,null,null,null,null,1,null,null,1,1]
[4,"Камчатский край",null,null,null,null,null,null,1,1]
[5,"Магаданская область"]
[6,"МИ ФНС России по Дальневосточному ФО",null,null,null,null,null,null,null,null,1,null,null,null,1,null,null,null,null,null,1]
[7,"Приморский край",1,null,null,1,null,1,1,1,1,1,1,1,null,null,1]
[8,"Республика Бурятия",null,null,null,null,null,null,null,null,null,null,null,null,null,null,null,1,1,null,null,2,1]
[9,"Республика Саха (Якутия)",1,1,1,null,1,1,null,null,null,1,1,1,1,1,1,1,null,1,1,2,1]
[10,"Сахалинская область",null,null,1]
[11,"Хабаровский край",1,1,1,2,1,null,1,1,1,1,null,null,null,null,null,null,1,1,1,null,1]
[12,"Чукотский АО",null,null,null,null,null,null,null,null,null,null,null,null,null,null,1]
[null,"Итого:",{"$f":"SUM(C127:C138)","v":3},{"$f":"SUM(D127:D138)","v":2},4,3,3,3,3,3,4,4,3,3,2,2,4,3,3,3,4,4,3]
["Новые территории Российской Федерации"]
[1,"Донецкая Народная Республика",null,null,null,null,1,1,null,null,null,null,1,1,1,2,null,1]
[2,"Запорожская область"]
[3,"Луганская Народная Республика",1,1,1,3,1,null,1,1,1,1,1,null,null,1,null,null,1]
[4,"Херсонская область"]
[null,"Итого:",{"$f":"SUM(C141:C144)","v":1},{"$f":"SUM(D141:D144)","v":1},1,3,2,1,1,1,1,1,2,1,1,3,0,1,1,0,0,0,0]
[null,"Всего:",{"$f":"C145+C139+C125+C112+C103+C86+C76+C65+C52+C16","v":25},{"$f":"D145+D139+D125+D112+D103+D86+D76+D65+D52+D16","v":25},25,22,24,25,26,21,24,26,22,24,22,23,23,23,23,22,22,25,24]

{"sheet":"Прил.29","index":8,"n_rows":146,"n_cols":15,"rows_kept":146,"cut":false,"hidden":false,"merged":[[6,0,6,14],[7,0,11,0],[7,2,7,14],[8,2,8,14],[9,2,9,5],[9,11,9,12],[9,13,9,14],[10,2,10,5],[10,6,10,8],[10,9,10,10],[10,11,10,12],[10,13,10,14],[9,6,9,8],[9,9,9,10],[7,1,11,1]]}
[null,null,null,null,null,null,null,null,null,null,null,null,null,null,"Приложение № 29"]
[null,null,null,null,null,null,null,null,null,null,null,null,null,null,"УТВЕРЖДЕНО"]
[null,null,null,null,null,null,null,null,null,null,null,null,null,null,"приказом ФНС России"]
[null,null,null,null,null,null,null,null,null,null,null,null,null,null,"от \"   \"                 20  г."]
[null,null,null,null,null,null,null,null,null,null,null,null,null,null,"№ "]
[]
["План-график дополнительного профессионального образования гражданских служащих в \"Академии ФНС ЛАБ–Нева\" в 2025 году \n(очная форма обучения)"]
["№ п/п","Структурные подразделения ЦА ФНС России, УФНС России по субъектам РФ, межрегиональные инспекции ФНС России","Численность, человек"]
[null,null,"В том числе по программам повышения квалификации с указанием продолжительности и периодам обучения"]
[null,null,"Налогообложение доходов физических лиц (мастерский уровень)",null,null,null,"Налогообложение при применении специальных налоговых режимов (повышенный уровень)",null,null,"Налогообложение при применении специальных налоговых режимов (мастерский уровень)",null,"Налогообложение прибыли организаций (повышенный уровень)",null,"Налогообложение прибыли организаций (мастерский уровень)"]
[null,null," (72 часа)",null,null,null," (72 часа)",null,null," (72 часа)",null," (72 часа)",null," (72 часа)"]
[null,null,"14.01-24.01","12.05-23.05","26.05-06.06","10.11-21.11","10.03-21.03","09.06-20.06","29.09-10.10","21.04-07.05","25.08-05.09","14.01-24.01","27.01-07.02","24.03-04.04","01.12-12.12"]
[1,2,3,4,5,6,7,8,9,10,11,12,13,14,15]
["Центральный аппарат ФНС России"]
[1,"Управление профессионального развития"]
[null,"Итого:",{"$f":"SUM(C15:C15)","v":0},0,0,0,0,0,0,0,0,0,0,0,0]
["Центральный федеральный округ"]
[1,"Белгородская область",1,1,null,null,1,null,null,1,null,null,1]
[2,"Брянская область",null,null,1]
[3,"Владимирская область",null,null,null,1,null,null,null,null,null,1]
[4,"Воронежская область",1]
[5,"г.Москва",1,null,1,null,null,null,null,1,2]
[6,"Ивановская область"]
[7,"Калужская область"]
[8,"Костромская область",1,null,null,1,null,null,1,1,1]
[9,"Курская область"]
[10,"Липецкая область",null,null,null,null,1,null,1]
[11,"МИ ФНС России по камеральному контролю"]
[12,"МИ ФНС России по КН № 1",null,null,null,null,null,null,null,null,null,1,null,1]
[13,"МИ ФНС России по КН № 2"]
[14,"МИ ФНС России по КН № 3"]
[15,"МИ ФНС России по КН № 4",null,null,null,null,null,null,null,null,null,1,1]
[16,"МИ ФНС России по КН № 5",null,null,null,null,null,null,null,null,null,2,2]
[17,"МИ ФНС России по КН № 6"]
[18,"МИ ФНС России по КН № 7",null,1,null,null,null,null,null,null,null,null,null,null,1]
[19,"МИ ФНС России по КН № 9",null,null,1]
[20,"МИ ФНС России по КН № 10"]
[21,"МИ ФНС России по ценообразованию для целей налогообложения"]
[22,"МИ ФНС России по Центральному ФО",null,null,null,1,null,null,null,null,null,null,1,1]
[23,"МИ ФНС России по ЦОД"]
[24,"МИ ФНС России по ЦОД №2"]
[25,"МИ ФНС России по управлению долгом"]
[26,"МИ ФНС России по контролю и надзору за налогоплательщиками в сфере бюджетного финансирования"]
[27,"Московская область",null,null,null,null,null,null,null,null,1]
[28,"Орловская область",null,null,null,null,null,null,null,null,null,null,null,null,1]
[29,"Рязанская область",1]
[30,"Смоленская область"]
[31,"Тамбовская область",null,1,1,null,null,1,null,null,null,1]
[32,"Тверская область",1,null,null,1,1,null,null,1]
[33,"Тульская область",null,1]
[34,"Ярославская область",null,null,1]
[null,"Итого:",{"$f":"SUM(C18:C51)","v":6},{"$f":"SUM(D18:D51)","v":4},5,4,3,1,2,4,4,6,5,2,2]
["Северо-Западный федеральный округ"]
[1,"Архангельская область и Ненецкий АО",null,null,null,1,1,1,1,null,1]
[2,"Вологодская область"]
[3,"г.Санкт- Петербург",1]
[4,"Калининградская область",null,null,null,null,null,null,null,1]
[5,"Ленинградская область"]
[6,"МИ ФНС России по Северо-Западному ФО"]
[7,"Мурманская область",null,1]
[8,"Новгородская область",null,null,1]
[9,"Псковская область",null,null,null,1]
[10,"Республика Карелия",1,1,null,null,null,1,1,null,1]
[11,"Республика Коми",null,null,null,null,1]
[null,"Итого:",{"$f":"SUM(C54:C64)","v":2},{"$f":"SUM(D54:D64)","v":2},1,2,2,2,2,1,2,0,0,0,0]
["Южный федеральный округ"]
[1,"Астраханская область",null,null,1,1]
[2,"Волгоградская область",1,1]
[3,"г.Севастополь",null,null,1,null,null,null,null,null,null,1,1]
[4,"Краснодарский край",null,null,null,1,null,null,null,null,1]
[5,"МИ ФНС России по Южному ФО"]
[6,"Республика Адыгея"]
[7,"Республика Калмыкия",1]
[8,"Республика Крым",null,1,null,null,1,null,1,1,null,null,1,1,1]
[9,"Ростовская область",1,1,1,1,null,1,null,null,1,1,null,1]
[null,"Итого:",{"$f":"SUM(C67:C75)","v":3},{"$f":"SUM(D67:D75)","v":3},3,3,1,1,1,1,2,2,2,2,1]
["Северо-Кавказский федеральный округ"]
[1,"Кабардино- Балкарская Республика"]
[2,"Карачаево- Черкесская Республика",null,null,1,null,1,null,1]
[3,"МИ ФНС России по Северо-Кавказскому ФО",null,null,null,null,null,1]
[4,"Республика Дагестан",null,null,null,1,1,1,1]
[5,"Республика Ингушетия"]
[6,"Республика Северная Осетия - Алания"]
[7,"Ставропольский край",null,null,null,null,null,null,null,null,null,null,1,1,1]
[8,"Чеченская Республика",1,1]
[null,"Итого:",{"$f":"SUM(C78:C85)","v":1},{"$f":"SUM(D78:D85)","v":1},1,1,2,2,2,0,0,0,1,1,1]
["Приволжский федеральный округ"]
[1,"Кировская область",null,null,1,null,1,null,null,1,null,1,null,1,1]
[2,"МИ ФНС России по Приволжскому ФО"]
[3,"Нижегородская область",1,null,null,1,1,1,1,null,1,null,1,1,1]
[4,"Оренбургская область",null,1,1,null,null,1,null,null,null,null,1,null,1]
[5,"Пензенская область",null,null,null,null,null,null,null,1]
[6,"Пермский край",null,null,null,1,1,1,1,1,2,null,null,1]
[7,"Республика Башкортостан",null,null,null,null,1,1,1,2,1,null,null,1,1]
[8,"Республика Марий Эл",null,null,null,null,null,null,null,null,1]
[9,"Республика Мордовия",1,null,null,null,null,null,null,1]
[10,"Республика Татарстан",null,1,1,null,1,1,1,null,null,1]
[11,"Самарская область",1,null,null,1,1,1,2,1,1,null,null,1,1]
[12,"Саратовская область",null,null,null,null,1,1,2,null,null,1,1,1,1]
[13,"Удмуртская Республика",null,null,null,null,1,1,2,null,null,1,null,1,1]
[14,"Ульяновская область",null,null,null,null,null,null,null,null,null,null,1,1,2]
[15,"Чувашская Республика",null,1]
[null,"Итого:",{"$f":"SUM(C88:C102)","v":3},{"$f":"SUM(D88:D102)","v":3},3,3,8,8,10,7,6,4,4,8,9]
["Уральский федеральный округ"]
[1,"Курганская область"]
[2,"МИ ФНС России по Уральскому ФО"]
[3,"Свердловская область",null,null,1,null,null,1,null,null,null,1,null,1]
[4,"Тюменская область",1,null,null,1,1,null,null,1,1,1,1,null,1]
[5,"Ханты-Мансийский АО",null,null,null,null,null,null,null,1,1]
[6,"Челябинская область",null,1,1,null,null,null,null,null,null,1,1]
[7,"Ямало-Ненецкий АО",null,null,null,1,null,null,null,null,null,null,1]
[null,"Итого:",{"$f":"SUM(C105:C111)","v":1},{"$f":"SUM(D105:D111)","v":1},2,2,1,1,0,2,2,3,3,1,1]
["Сибирский федеральный округ"]
[1,"Алтайский край",1,1,1,null,null,null,null,null,null,1]
[2,"Иркутская область",1,1,1,1,1,1,2,1,2,1,1,2,1]
[3,"Кемеровская область",null,null,null,null,null,null,null,null,null,null,null,null,1]
[4,"Красноярский край",null,null,null,1,null,null,null,1]
[5,"МИ ФНС России по Сибирскому ФО",1]
[6,"Новосибирская область",null,null,1,1,null,1,null,null,1]
[7,"Омская область",1,1,null,null,null,null,null,1,null,null,1,1,1]
[8,"Республика Алтай"]
[9,"Республика Тыва",null,null,1,1,1,null,null,null,1,1]
[10,"Республика Хакасия",1,1,null,null,1,1,1,1]
[11,"Томская область",null,null,1,1,1,null,null,null,1]
[null,"Итого:",{"$f":"SUM(C114:C124)","v":5},{"$f":"SUM(D114:D124)","v":4},5,5,4,3,3,4,5,3,2,3,3]
["Дальневосточный федеральный округ"]
[1,"Амурская область",null,null,null,1,null,null,null,null,null,null,1,1]
[2,"Еврейская АО"]
[3,"Забайкальский край",1,null,null,null,null,1,null,1,null,1]
[4,"Камчатский край",null,1]
[5,"Магаданская область",null,null,null,null,null,null,null,null,null,null,1,null,1]
[6,"МИ ФНС России по Дальневосточному ФО"]
[7,"Приморский край",1,1,1,1,1,1,2,null,1]
[8,"Республика Бурятия",1,null,1,1,null,null,null,null,null,null,1]
[9,"Республика Саха (Якутия)",null,1,1,1,1,null,null,null,null,null,1]
[10,"Сахалинская область",null,null,null,null,null,1]
[11,"Хабаровский край",1,null,null,null,2,1,2,null,null,null,1,1]
[12,"Чукотский АО"]
[null,"Итого:",{"$f":"SUM(C127:C138)","v":4},{"$f":"SUM(D127:D138)","v":3},3,4,4,4,4,1,1,1,5,2,1]
["Новые территории Российской Федерации"]
[1,"Донецкая Народная Республика",null,1,null,null,null,1,null,null,null,null,null,null,1]
[2,"Запорожская область",null,null,null,null,null,null,null,1]
[3,"Луганская Народная Республика",1,1,2,1,null,null,null,null,null,null,1,1,1]
[4,"Херсонская область"]
[null,"Итого:",{"$f":"SUM(C141:C144)","v":1},{"$f":"SUM(D141:D144)","v":2},2,1,0,1,0,1,0,0,1,1,2]
[null,"Всего:",{"$f":"C145+C139+C125+C112+C103+C86+C76+C65+C52+C16","v":26},{"$f":"D145+D139+D125+D112+D103+D86+D76+D65+D52+D16","v":23},25,25,25,23,24,21,22,19,23,20,20]

{"sheet":"Прил.30","index":9,"n_rows":146,"n_cols":14,"rows_kept":146,"cut":false,"hidden":false,"merged":[[10,11,10,13],[9,9,9,10],[6,0,6,13],[7,0,11,0],[7,2,7,13],[8,2,8,13],[9,2,9,3],[10,2,10,3],[10,9,10,10],[7,1,9,1],[9,11,9,13],[10,5,10,8],[9,5,9,8],[103,0,103,1],[112,0,112,1],[125,0,125,1],[139,0,139,1],[13,0,13,1],[16,0,16,1],[52,0,52,1],[65,0,65,1],[76,0,76,1],[86,0,86,1]]}
[null,null,null,null,null,null,null,null,null,null,null,null,null,"Приложение № 30"]
[null,null,null,null,null,null,null,null,null,null,null,null,null,"УТВЕРЖДЕНО"]
[null,null,null,null,null,null,null,null,null,null,null,null,null,"приказом ФНС России"]
[null,null,null,null,null,null,null,null,null,null,null,null,null,"от \"   \"                 20  г."]
[null,null,null,null,null,null,null,null,null,null,null,null,null,"№ "]
[]
["План-график дополнительного профессионального образования гражданских служащих  в \"Академии ФНС ЛАБ–Нева\" в 2025 году \n(очная форма обучения)"]
["№ п/п","Структурные подразделения ЦА ФНС России, УФНС России по субъектам РФ, межрегиональные инспекции ФНС России","Численность, человек"]
[null,null,"В том числе по программам повышения квалификации с указанием продолжительности и периодам обучения"]
[null,null,"Обеспечение безопасности персональных данных при их обработке в информационных системах персональных данных",null,"Обеспечение процедур банкротства (базовый уровень)","Обеспечение процедур банкротства (повышенный уровень)",null,null,null,"Обеспечение процедур банкротства (мастерский уровень)",null,"Организация делопроизводства и архивного дела"]
[null,"Продолжительность"," (72 часа)",null," (72 часа)"," (72 часа)",null,null,null," (72 часа)",null," (72 часа)"]
[null,"Период обучения","27.01-07.02","07.04-18.04","06.10-17.10","10.03-21.03","24.03-04.04 ","07.04-18.04","14.07-25.07","24.02-07.03","17.11-28.11","14.01-24.01","14.07-25.07","24.11-05.12"]
[1,2,3,4,5,6,7,8,9,10,11,12,13,14]
["Центральный аппарат ФНС России"]
[1,"Управление профессионального развития"]
[null,"Итого:",{"$f":"SUM(C15:C15)","v":0},0,0,{"$f":"SUM(F15:F15)","v":0},0,0,0,0,0,0,{"$f":"SUM(M15:M15)","v":0},0]
["Центральный федеральный округ"]
[1,"Белгородская область",null,null,null,1,1,1,null,1,null,null,1]
[2,"Брянская область",null,null,null,1,null,1,1]
[3,"Владимирская область",null,null,1,null,1,null,null,null,null,1]
[4,"Воронежская область",null,null,null,null,null,1,null,null,null,null,null,1]
[5,"г.Москва",1,null,null,1,null,1,1,1,1]
[6,"Ивановская область",null,null,null,null,1,null,null,null,1]
[7,"Калужская область",null,null,null,null,null,1]
[8,"Костромская область",null,null,null,1,null,null,null,null,null,null,null,1]
[9,"Курская область",null,null,1,null,1,null,1]
[10,"Липецкая область"]
[11,"МИ ФНС России по камеральному контролю"]
[12,"МИ ФНС России по КН № 1"]
[13,"МИ ФНС России по КН № 2",null,null,null,null,1]
[14,"МИ ФНС России по КН № 3"]
[15,"МИ ФНС России по КН № 4"]
[16,"МИ ФНС России по КН № 5"]
[17,"МИ ФНС России по КН № 6",null,null,null,null,1]
[18,"МИ ФНС России по КН № 7",null,null,null,null,null,null,null,null,null,null,1]
[19,"МИ ФНС России по КН № 9",null,1]
[20,"МИ ФНС России по КН № 10"]
[21,"МИ ФНС России по ценообразованию для целей налогообложения"]
[22,"МИ ФНС России по Центральному ФО"]
[23,"МИ ФНС России по ЦОД"]
[24,"МИ ФНС России по ЦОД №2",null,null,null,null,null,null,null,null,null,1]
[25,"МИ ФНС России по управлению долгом"]
[26,"МИ ФНС России по контролю и надзору за налогоплательщиками в сфере бюджетного финансирования"]
[27,"Московская область",1,1,null,1,1,1,null,null,1]
[28,"Орловская область",1,1,null,1,1]
[29,"Рязанская область",null,1,null,null,null,null,null,null,null,null,1,1]
[30,"Смоленская область"]
[31,"Тамбовская область",1,null,1,null,null,null,1,1]
[32,"Тверская область"]
[33,"Тульская область"]
[34,"Ярославская область"]
[null,"Итого:",{"$f":"SUM(C18:C51)","v":4},{"$f":"SUM(D18:D51)","v":4},3,{"$f":"SUM(F18:F51)","v":6},8,6,4,3,3,2,{"$f":"SUM(M18:M51)","v":3},3]
["Северо-Западный федеральный округ"]
[1,"Архангельская область и Ненецкий АО",null,null,null,null,1,1]
[2,"Вологодская область"]
[3,"г.Санкт- Петербург",1,null,null,1,null,null,null,null,null,1]
[4,"Калининградская область",null,null,3,2,1,1,2,1,1,null,null,1]
[5,"Ленинградская область",null,1]
[6,"МИ ФНС России по Северо-Западному ФО",null,null,null,null,null,null,null,null,null,null,1]
[7,"Мурманская область",null,null,null,null,null,null,null,null,null,1]
[8,"Новгородская область",null,null,1,null,1,1,null,2,1]
[9,"Псковская область"]
[10,"Республика Карелия",null,null,null,null,null,null,1,null,1]
[11,"Республика Коми"]
[null,"Итого:",{"$f":"SUM(C54:C64)","v":1},{"$f":"SUM(D54:D64)","v":1},4,{"$f":"SUM(F54:F64)","v":3},3,3,3,3,3,2,{"$f":"SUM(M54:M64)","v":1},1]
["Южный федеральный округ"]
[1,"Астраханская область",1]
[2,"Волгоградская область",null,null,null,null,null,null,null,null,null,null,null,1]
[3,"г.Севастополь",null,null,null,null,1]
[4,"Краснодарский край",null,1,null,null,null,null,null,1]
[5,"МИ ФНС России по Южному ФО",null,null,null,null,null,null,null,null,null,null,1]
[6,"Республика Адыгея"]
[7,"Республика Калмыкия",null,null,null,null,null,1]
[8,"Республика Крым",null,null,1,1,null,null,null,null,null,1,1]
[9,"Ростовская область",1,1,null,null,null,null,1,null,null,2,1,2]
[null,"Итого:",{"$f":"SUM(C67:C75)","v":2},{"$f":"SUM(D67:D75)","v":2},1,{"$f":"SUM(F67:F75)","v":1},1,1,1,1,0,3,{"$f":"SUM(M67:M75)","v":3},3]
["Северо-Кавказский федеральный округ"]
[1,"Кабардино- Балкарская Республика",1,null,null,null,null,null,null,null,1]
[2,"Карачаево- Черкесская Республика"]
[3,"МИ ФНС России по Северо-Кавказскому ФО"]
[4,"Республика Дагестан",null,null,null,null,1,null,null,null,null,1]
[5,"Республика Ингушетия"]
[6,"Республика Северная Осетия - Алания",null,null,1,null,null,1,null,1]
[7,"Ставропольский край",1,1,null,1,null,null,1]
[8,"Чеченская Республика",1]
[null,"Итого:",{"$f":"SUM(C78:C85)","v":3},{"$f":"SUM(D78:D85)","v":1},1,{"$f":"SUM(F78:F85)","v":1},1,1,1,1,1,1,{"$f":"SUM(M78:M85)","v":0},0]
["Приволжский федеральный округ"]
[1,"Кировская область",1,null,null,null,null,null,null,1,null,1,1,1]
[2,"МИ ФНС России по Приволжскому ФО"]
[1,"Нижегородская область",null,1,1,null,1,1,null,2,2,1]
[4,"Оренбургская область",null,null,null,null,null,null,null,null,null,null,1,1]
[5,"Пензенская область",null,null,null,null,null,null,null,null,null,1]
[6,"Пермский край",null,null,1,1,null,null,1,1,1,null,null,1]
[7,"Республика Башкортостан",1,1,null,null,1,null,null,null,1,1,2,1]
[8,"Республика Марий Эл",null,null,null,null,null,1]
[9,"Республика Мордовия",null,1,null,1]
[10,"Республика Татарстан",1,1,1,2,1,1,2,null,null,null,1]
[11,"Самарская область",null,null,2,null,1,1,null,null,null,1]
[12,"Саратовская область",1,2,null,null,1,null,1,null,null,1,null,1]
[13,"Удмуртская Республика",null,null,null,null,null,1,null,1,1,1,1]
[14,"Ульяновская область",null,null,null,1,null,null,1]
[15,"Чувашская Республика",null,null,null,null,null,1,null,null,null,null,null,1]
[null,"Итого:",{"$f":"SUM(C88:C102)","v":4},{"$f":"SUM(D88:D102)","v":6},5,{"$f":"SUM(F88:F102)","v":5},5,6,5,5,5,7,{"$f":"SUM(M88:M102)","v":6},6]
["Уральский федеральный округ"]
[1,"Курганская область",null,null,null,null,null,null,null,null,null,1]
[2,"МИ ФНС России по Уральскому ФО",null,null,null,null,null,null,null,null,null,null,1]
[3,"Свердловская область",null,null,2,1,1,1,2,2,2,1]
[4,"Тюменская область",1,null,1,1,1,null,null,1]
[5,"Ханты-Мансийский АО",null,1,1,null,1]
[6,"Челябинская область",1,null,2,2,1,2,2,null,1,2,2,2]
[7,"Ямало-Ненецкий АО",null,null,null,null,null,1,null,1]
[null,"Итого:",{"$f":"SUM(C105:C111)","v":2},{"$f":"SUM(D105:D111)","v":1},6,{"$f":"SUM(F105:F111)","v":4},4,4,4,4,3,4,{"$f":"SUM(M105:M111)","v":3},2]
["Сибирский федеральный округ"]
[1,"Алтайский край",1,1,1,null,null,null,null,null,null,1,1]
[2,"Иркутская область",null,null,null,null,1,null,null,1,2,1,1,3]
[3,"Кемеровская область"]
[4,"Красноярский край",null,null,1,1,null,1,1,1,null,null,1]
[5,"МИ ФНС России по Сибирскому ФО"]
[6,"Новосибирская область",1,1,null,null,null,1,null,null,1]
[7,"Омская область",null,1,1,null,1,null,null,1,1,1,null,1]
[8,"Республика Алтай",null,null,null,null,null,null,null,1]
[9,"Республика Тыва",null,null,null,null,null,null,null,null,null,null,1]
[10,"Республика Хакасия",1,null,null,1,null,null,null,null,null,null,null,1]
[11,"Томская область",null,null,null,null,null,null,1,null,1,1]
[null,"Итого:",{"$f":"SUM(C114:C124)","v":3},3,3,{"$f":"SUM(F114:F124)","v":2},2,2,2,4,5,4,{"$f":"SUM(M114:M124)","v":4},5]
["Дальневосточный федеральный округ"]
[1,"Амурская область",null,null,1]
[2,"Еврейская АО",null,null,null,null,1,null,null,1]
[3,"Забайкальский край",null,1,null,null,null,1,null,null,1,null,1]
[4,"Камчатский край",null,null,null,1,null,null,1,null,1,null,null,1]
[5,"Магаданская область"]
[6,"МИ ФНС России по Дальневосточному ФО",1,null,null,null,1,null,null,null,null,null,null,1]
[7,"Приморский край",null,null,null,1,null,1,1,null,null,null,null,1]
[8,"Республика Бурятия",null,null,null,null,null,null,null,1,1,1,1]
[9,"Республика Саха (Якутия)",null,1,1,1,null,null,null,null,null,null,1,2]
[10,"Сахалинская область",null,1]
[11,"Хабаровский край",1,null,null,null,null,null,null,null,null,null,1]
[12,"Чукотский АО"]
[null,"Итого:",{"$f":"SUM(C127:C138)","v":2},{"$f":"SUM(D127:D138)","v":3},2,{"$f":"SUM(F127:F138)","v":3},2,2,2,2,3,1,{"$f":"SUM(M127:M138)","v":4},5]
["Новые территории Российской Федерации"]
[1,"Донецкая Народная Республика",null,null,null,null,null,null,null,null,null,1,1]
[2,"Запорожская область"]
[3,"Луганская Народная Республика",null,null,null,null,null,null,1,null,null,null,1,1]
[4,"Херсонская область"]
[null,"Итого:",{"$f":"SUM(C141:C144)","v":0},{"$f":"SUM(D141:D144)","v":0},0,{"$f":"SUM(F141:F144)","v":0},0,0,1,0,0,1,{"$f":"SUM(M141:M144)","v":2},1]
[null,"Всего:",{"$f":"C145+C139+C125+C112+C103+C86+C76+C65+C52+C16","v":21},{"$f":"D145+D139+D125+D112+D103+D86+D76+D65+D52+D16","v":21},25,{"$f":"F145+F139+F125+F112+F103+F86+F76+F65+F52+F16","v":25},26,25,23,23,23,25,{"$f":"M145+M139+M125+M112+M103+M86+M76+M65+M52+M16","v":26},26]

{"sheet":"Прил.31","index":10,"n_rows":146,"n_cols":12,"rows_kept":146,"cut":false,"hidden":false,"merged":[[13,0,13,1],[16,0,16,1],[6,0,6,11],[7,0,11,0],[7,2,7,11],[8,2,8,11],[9,2,9,3],[9,10,9,11],[10,2,10,3],[10,4,10,6],[10,8,10,9],[10,10,10,11],[9,4,9,6],[9,8,9,9],[7,1,11,1],[125,0,125,1],[139,0,139,1],[147,10,147,11],[52,0,52,1],[65,0,65,1],[76,0,76,1],[103,0,103,1],[112,0,112,1],[86,0,86,1]]}
[null,null,null,null,null,null,null,null,null,null,null,"Приложение № 31"]
[null,null,null,null,null,null,null,null,null,null,null,"УТВЕРЖДЕНО"]
[null,null,null,null,null,null,null,null,null,null,null,"приказом ФНС России"]
[null,null,null,null,null,null,null,null,null,null,null,"от \"   \"                 20  г."]
[null,null,null,null,null,null,null,null,null,null,null,"№ "]
[]
["План-график дополнительного профессионального образования гражданских служащих  в \"Академии ФНС ЛАБ–Нева\" в 2025 году \n(очная форма обучения)"]
["№ п/п","Структурные подразделения ЦА ФНС России, УФНС России по субъектам РФ, межрегиональные инспекции ФНС России","Численность, человек"]
[null,null,"В том числе по программам повышения квалификации с указанием продолжительности и периодам обучения"]
[null,null,"Организация и осуществление внутреннего финансового аудита",null,"Организация и технология проведения камеральных налоговых проверок (повышенный уровень)",null,null,"Организация и технология проведения камеральных налоговых проверок (мастерский уровень)","Планирование, организация и проведение выездных налоговых проверок (повышенный уровень)",null,"Планирование, организация и проведение выездных налоговых проверок (мастерский уровень)"]
[null,null," (72 часа)",null," (72 часа)",null,null," (72 часа)"," (72 часа)",null," (72 часа)"]
[null,null,"12.05-23.05 ","13.10-24.10","10.03-21.03","23.06-04.07","22.09-03.10","06.10-17.10","27.01-07.02","05.05-16.05","25.08-05.09","20.10-31.10"]
[1,2,3,4,5,6,7,8,9,10,11,12]
["Центральный аппарат ФНС России"]
[1,"Управление профессионального развития",1]
[null,"Итого:",{"$f":"SUM(C15:C15)","v":1},0,0,0,0,0,0,0,0,0]
["Центральный федеральный округ"]
[1,"Белгородская область",null,null,1,1,null,1]
[2,"Брянская область",null,null,null,null,1,null,1,null,1]
[3,"Владимирская область"]
[4,"Воронежская область",null,null,null,null,null,null,null,null,null,1]
[5,"г.Москва"]
[6,"Ивановская область",1,null,null,null,null,null,1,1]
[7,"Калужская область"]
[8,"Костромская область"]
[9,"Курская область"]
[10,"Липецкая область",null,null,1,null,null,null,1,2]
[11,"МИ ФНС России по камеральному контролю",null,1]
[12,"МИ ФНС России по КН № 1"]
[13,"МИ ФНС России по КН № 2",1]
[14,"МИ ФНС России по КН № 3"]
[15,"МИ ФНС России по КН № 4"]
[16,"МИ ФНС России по КН № 5",null,1]
[17,"МИ ФНС России по КН № 6"]
[18,"МИ ФНС России по КН № 7"]
[19,"МИ ФНС России по КН № 9"]
[20,"МИ ФНС России по КН № 10"]
[21,"МИ ФНС России по ценообразованию для целей налогообложения"]
[22,"МИ ФНС России по Центральному ФО"]
[23,"МИ ФНС России по ЦОД",1,1]
[24,"МИ ФНС России по ЦОД №2",1]
[25,"МИ ФНС России по управлению долгом"]
[26,"МИ ФНС России по контролю и надзору за налогоплательщиками в сфере бюджетного финансирования"]
[27,"Московская область"]
[28,"Орловская область"]
[29,"Рязанская область",1,1,null,null,null,null,1]
[30,"Смоленская область"]
[31,"Тамбовская область",1,1,null,1,1,1,null,null,1]
[32,"Тверская область",null,1,null,null,null,null,null,null,null,1]
[33,"Тульская область",null,1,null,null,null,null,null,1]
[34,"Ярославская область"]
[null,"Итого:",{"$f":"SUM(C18:C51)","v":6},7,2,2,2,2,4,4,2,2]
["Северо-Западный федеральный округ"]
[1,"Архангельская область и Ненецкий АО",1,1,1,null,null,null,1]
[2,"Вологодская область"]
[3,"г.Санкт- Петербург"]
[4,"Калининградская область",1,null,null,1,null,null,null,1]
[5,"Ленинградская область"]
[6,"МИ ФНС России по Северо-Западному ФО"]
[7,"Мурманская область"]
[8,"Новгородская область",null,1]
[9,"Псковская область"]
[10,"Республика Карелия",null,null,1,1,1]
[11,"Республика Коми"]
[null,"Итого:",{"$f":"SUM(C54:C64)","v":2},{"$f":"SUM(D54:D64)","v":2},2,2,1,0,1,1,0,0]
["Южный федеральный округ"]
[1,"Астраханская область",null,null,null,null,null,null,1]
[2,"Волгоградская область",null,null,null,null,null,1]
[3,"г.Севастополь",null,null,null,null,null,null,null,null,1]
[4,"Краснодарский край",null,null,null,null,null,null,null,1]
[5,"МИ ФНС России по Южному ФО",null,null,null,null,null,null,null,null,null,1]
[6,"Республика Адыгея",1]
[7,"Республика Калмыкия"]
[8,"Республика Крым",null,null,null,1,null,null,null,null,1]
[9,"Ростовская область",null,1,1,null,null,null,1,null,null,1]
[null,"Итого:",{"$f":"SUM(C67:C75)","v":1},{"$f":"SUM(D67:D75)","v":1},1,1,0,1,2,1,2,2]
["Северо-Кавказский федеральный округ"]
[1,"Кабардино- Балкарская Республика"]
[2,"Карачаево- Черкесская Республика",null,null,null,null,null,null,null,null,null,1]
[3,"МИ ФНС России по Северо-Кавказскому ФО",1]
[4,"Республика Дагестан",null,null,null,null,null,null,null,null,4,4]
[5,"Республика Ингушетия"]
[6,"Республика Северная Осетия - Алания",null,null,null,null,null,null,null,1,1]
[7,"Ставропольский край",null,1,null,null,1]
[8,"Чеченская Республика",1]
[null,"Итого:",{"$f":"SUM(C78:C85)","v":2},{"$f":"SUM(D78:D85)","v":1},0,0,1,0,0,1,5,5]
["Приволжский федеральный округ"]
[1,"Кировская область",1,null,null,null,null,null,null,null,1]
[2,"МИ ФНС России по Приволжскому ФО"]
[3,"Нижегородская область",null,null,1,null,null,2,1,1,1,1]
[4,"Оренбургская область",null,1,null,null,null,null,null,1,null,1]
[5,"Пензенская область"]
[6,"Пермский край",1,null,1,1,1]
[7,"Республика Башкортостан",1,1,null,null,1,null,1,null,1,1]
[8,"Республика Марий Эл",null,1]
[9,"Республика Мордовия"]
[10,"Республика Татарстан",1,1,1,null,null,1,1,2,null,1]
[11,"Самарская область",1,null,null,null,null,null,1]
[12,"Саратовская область",1,null,null,1,null,3,null,null,1,1]
[13,"Удмуртская Республика",null,null,null,null,null,null,null,1]
[14,"Ульяновская область"]
[15,"Чувашская Республика"]
[null,"Итого:",{"$f":"SUM(C88:C102)","v":6},{"$f":"SUM(D88:D102)","v":4},3,2,2,6,4,5,4,5]
["Уральский федеральный округ"]
[1,"Курганская область",null,null,null,1,1,null,null,null,1]
[2,"МИ ФНС России по Уральскому ФО"]
[3,"Свердловская область",1,1,null,null,null,1,1,null,2,1]
[4,"Тюменская область",null,null,null,null,null,null,1,1,null,1]
[5,"Ханты-Мансийский АО",1]
[6,"Челябинская область",null,1,1,null,null,null,null,1]
[7,"Ямало-Ненецкий АО"]
[null,"Итого:",{"$f":"SUM(C105:C111)","v":2},2,1,1,1,1,2,2,3,2]
["Сибирский федеральный округ"]
[1,"Алтайский край",null,null,null,1,null,1,1,null,1,1]
[2,"Иркутская область",null,null,1,1,1,4,2,1,2,2]
[3,"Кемеровская область"]
[4,"Красноярский край",null,1,1,null,null,null,1,1,1,1]
[5,"МИ ФНС России по Сибирскому ФО",null,1]
[6,"Новосибирская область",null,null,null,null,null,null,1,1,1]
[7,"Омская область",null,null,null,1,1,1,null,1]
[8,"Республика Алтай",null,1,1]
[9,"Республика Тыва",null,null,null,1,null,1]
[10,"Республика Хакасия",null,null,1]
[11,"Томская область",null,null,null,1,1,1,null,null,null,1]
[null,"Итого:",{"$f":"SUM(C114:C124)","v":0},3,4,5,3,8,5,4,5,5]
["Дальневосточный федеральный округ"]
[1,"Амурская область",null,null,null,null,null,null,1,1]
[2,"Еврейская АО",null,1,1]
[3,"Забайкальский край",null,null,null,null,1]
[4,"Камчатский край",1,1]
[5,"Магаданская область"]
[6,"МИ ФНС России по Дальневосточному ФО",null,null,null,null,null,null,null,1]
[7,"Приморский край",1,1,null,3,3,2,1,2]
[8,"Республика Бурятия",null,null,null,null,null,null,1]
[9,"Республика Саха (Якутия)",null,1,1,null,1,1,1]
[10,"Сахалинская область",null,null,null,null,null,null,null,null,1]
[11,"Хабаровский край",1,1,4,2,1,1]
[12,"Чукотский АО"]
[null,"Итого:",{"$f":"SUM(C127:C138)","v":3},{"$f":"SUM(D127:D138)","v":5},6,5,6,4,4,4,1,0]
["Новые территории Российской Федерации"]
[1,"Донецкая Народная Республика"]
[2,"Запорожская область"]
[3,"Луганская Народная Республика",1,null,1,1,3,1]
[4,"Херсонская область",1]
[null,"Итого:",{"$f":"SUM(C141:C144)","v":2},{"$f":"SUM(D141:D144)","v":0},1,1,3,1,0,0,0,0]
[null,"Всего:",{"$f":"C145+C139+C125+C112+C103+C86+C76+C65+C52+C16","v":25},{"$f":"D145+D139+D125+D112+D103+D86+D76+D65+D52+D16","v":25},20,19,19,23,22,22,22,21]

{"sheet":"Прил.32","index":11,"n_rows":146,"n_cols":17,"rows_kept":146,"cut":false,"hidden":false,"merged":[[9,7,9,11],[6,0,6,16],[7,0,11,0],[7,2,7,16],[8,2,8,16],[9,2,9,6],[10,2,10,6],[10,7,10,11],[9,15,9,16],[10,15,10,16],[10,12,10,13],[9,12,9,13],[7,1,11,1],[112,0,112,1],[125,0,125,1],[139,0,139,1],[16,0,16,1],[52,0,52,1],[65,0,65,1],[76,0,76,1],[86,0,86,1],[103,0,103,1]]}
[null,null,null,null,null,null,null,null,null,null,null,null,null,null,null,null,"Приложение № 32"]
[null,null,null,null,null,null,null,null,null,null,null,null,null,null,null,null,"УТВЕРЖДЕНО"]
[null,null,null,null,null,null,null,null,null,null,null,null,null,null,null,null,"приказом ФНС России"]
[null,null,null,null,null,null,null,null,null,null,null,null,null,null,null,null,"от \"   \"                 20  г."]
[null,null,null,null,null,null,null,null,null,null,null,null,null,null,null,null,"№ "]
[]
["План-график дополнительного профессионального образования гражданских служащих в  \"Академии ФНС ЛАБ–Нева\" в 2025 году \n(очная форма обучения)"]
["№ п/п","Структурные подразделения ЦА ФНС России, УФНС России по субъектам РФ, межрегиональные инспекции ФНС России","Численность, человек"]
[null,null,"В том числе по программам повышения квалификации с указанием продолжительности и периодам обучения"]
[null,null,"Программно-аналитические комплексы АИС Налог-3 в контрольной работе налоговых органов",null,null,null,null,"Схемы, применяемые налогоплательщиками при исчислении и уплате налогов и страховых взносов. Побуждение к добровольному уточнению налоговых обязательств",null,null,null,null,"Тактика ведения допроса (мастерский уровень)",null,"Техническая защита информации. Организация защиты информации ограниченного доступа, не содержащей сведения, составляющие государственную тайну","Техническая защита информации. Способы и средства защиты информации от несанкционированного доступа"]
[null,null," (72 часа)",null,null,null,null," (72 часа)",null,null,null,null," (72 часа)",null," (72 часа)"," (72 часа)"]
[null,null,"27.01-07.02","10.02-21.02","10.03-21.03","26.05-06.06","15.09-26.09","14.01-24.01","24.03-04.04","21.04-07.05","25.08-05.09","05.11-14.11","21.04-07.05","08.09-19.09","14.01-24.01","14.07-25.07 ","20.10-31.10"]
[1,2,3,4,5,6,7,8,9,10,11,12,13,14,15,16,17]
["Центральный аппарат ФНС России"]
[1,"Управление профессионального развития"]
[null,"Итого:",{"$f":"SUM(C15:C15)","v":0},{"$f":"SUM(D15:D15)","v":0},{"$f":"SUM(E15:E15)","v":0},{"$f":"SUM(F15:F15)","v":0},0,0,0,0,0,0,0,0,0,{"$f":"SUM(P15:P15)","v":0},{"$f":"SUM(Q15:Q15)","v":0}]
["Центральный федеральный округ"]
[1,"Белгородская область",1,1,null,1,null,1,1,1,1,null,1,null,null,null,1]
[2,"Брянская область"]
[3,"Владимирская область"]
[4,"Воронежская область",null,null,null,null,null,null,null,null,1,1]
[5,"г.Москва",null,null,null,null,1,1,1,null,null,null,null,null,null,2,1]
[6,"Ивановская область",null,null,null,null,null,null,null,null,null,null,null,1]
[7,"Калужская область",1,null,1,null,null,null,null,1,null,null,null,null,1]
[8,"Костромская область",null,1,null,1,null,null,1]
[9,"Курская область",null,null,null,null,null,null,null,null,null,1]
[10,"Липецкая область",null,null,null,null,null,null,null,1,1,null,null,null,null,null,1]
[11,"МИ ФНС России по камеральному контролю"]
[12,"МИ ФНС России по КН № 1",null,null,null,null,null,1,null,null,null,null,1]
[13,"МИ ФНС России по КН № 2"]
[14,"МИ ФНС России по КН № 3"]
[15,"МИ ФНС России по КН № 4",null,null,null,null,null,null,null,null,null,null,null,null,1]
[16,"МИ ФНС России по КН № 5",null,null,null,null,1,null,1]
[17,"МИ ФНС России по КН № 6"]
[18,"МИ ФНС России по КН № 7",null,null,1,null,null,null,null,1,null,null,null,1]
[19,"МИ ФНС России по КН № 9"]
[20,"МИ ФНС России по КН № 10"]
[21,"МИ ФНС России по ценообразованию для целей налогообложения"]
[22,"МИ ФНС России по Центральному ФО"]
[23,"МИ ФНС России по ЦОД",null,null,null,null,null,null,null,null,null,null,null,null,1,1,1]
[24,"МИ ФНС России по ЦОД №2"]
[25,"МИ ФНС России по управлению долгом"]
[26,"МИ ФНС России по контролю и надзору за налогоплательщиками в сфере бюджетного финансирования"]
[27,"Московская область",1,null,null,null,null,null,null,null,1]
[28,"Орловская область",null,1]
[29,"Рязанская область",null,null,null,null,null,null,null,null,null,null,null,null,null,null,1]
[30,"Смоленская область",null,null,null,null,null,null,null,null,null,null,null,null,1]
[31,"Тамбовская область",null,null,null,1,null,null,null,null,null,null,2,2]
[32,"Тверская область",null,null,null,null,null,1,null,1,1,null,1,1,1,null,1]
[33,"Тульская область",null,null,null,null,null,null,null,null,null,null,1]
[34,"Ярославская область",null,null,null,null,1,null,null,null,null,null,1,1]
[null,"Итого:",{"$f":"SUM(C18:C51)","v":3},{"$f":"SUM(D18:D51)","v":3},{"$f":"SUM(E18:E51)","v":2},{"$f":"SUM(F18:F51)","v":3},3,4,4,5,5,2,7,6,5,{"$f":"SUM(P18:P51)","v":3},{"$f":"SUM(Q18:Q51)","v":6}]
["Северо-Западный федеральный округ"]
[1,"Архангельская область и Ненецкий АО",null,null,1,null,1,null,null,null,null,null,null,1,null,null,1]
[2,"Вологодская область"]
[3,"г.Санкт- Петербург",null,null,null,null,null,null,1,null,null,null,2,2,2,2]
[4,"Калининградская область",1,null,null,null,null,null,null,1,1,null,1,2]
[5,"Ленинградская область",null,1,null,1,null,null,null,null,null,null,1]
[6,"МИ ФНС России по Северо-Западному ФО",null,null,null,null,null,1]
[7,"Мурманская область",null,null,null,null,null,null,null,null,null,1]
[8,"Новгородская область"]
[9,"Псковская область"]
[10,"Республика Карелия",null,null,1,null,1,1,1,1,null,null,1,1,2]
[11,"Республика Коми",null,null,null,null,null,null,null,null,1]
[null,"Итого:",{"$f":"SUM(C54:C64)","v":1},{"$f":"SUM(D54:D64)","v":1},{"$f":"SUM(E54:E64)","v":2},{"$f":"SUM(F54:F64)","v":1},2,2,2,2,2,1,5,6,4,{"$f":"SUM(P54:P64)","v":2},{"$f":"SUM(Q54:Q64)","v":1}]
["Южный федеральный округ"]
[1,"Астраханская область",null,null,null,null,null,null,null,null,null,1,null,null,1,null,1]
[2,"Волгоградская область",null,null,null,null,null,null,null,null,null,null,null,null,null,1]
[3,"г.Севастополь",null,null,null,null,null,null,null,null,null,null,1]
[4,"Краснодарский край",null,1,1,1,1,1]
[5,"МИ ФНС России по Южному ФО",1,null,null,null,null,null,null,null,null,null,null,null,1,null,1]
[6,"Республика Адыгея",null,null,null,null,null,null,null,null,null,null,null,null,null,1]
[7,"Республика Калмыкия",null,null,null,null,null,null,1]
[8,"Республика Крым",null,1,null,null,null,null,null,null,null,null,null,1,null,null,1]
[9,"Ростовская область",1,1,1,1,1,1,null,1,1,1,null,null,1,1,1]
[null,"Итого:",{"$f":"SUM(C67:C75)","v":2},{"$f":"SUM(D67:D75)","v":3},{"$f":"SUM(E67:E75)","v":2},{"$f":"SUM(F67:F75)","v":2},2,2,1,1,1,2,1,1,3,{"$f":"SUM(P67:P75)","v":3},{"$f":"SUM(Q67:Q75)","v":4}]
["Северо-Кавказский федеральный округ"]
[1,"Кабардино- Балкарская Республика"]
[2,"Карачаево- Черкесская Республика"]
[3,"МИ ФНС России по Северо-Кавказскому ФО"]
[4,"Республика Дагестан",null,null,null,null,null,null,null,null,null,null,null,null,null,null,1]
[5,"Республика Ингушетия",null,null,null,null,null,null,null,null,null,null,null,null,1]
[6,"Республика Северная Осетия - Алания"]
[7,"Ставропольский край",null,null,null,1,1,1,1,null,null,null,null,null,null,1]
[8,"Чеченская Республика",null,null,null,null,null,null,null,null,null,null,null,null,null,null,1]
[null,"Итого:",{"$f":"SUM(C78:C85)","v":0},{"$f":"SUM(D78:D85)","v":0},{"$f":"SUM(E78:E85)","v":0},{"$f":"SUM(F78:F85)","v":1},1,1,1,0,0,0,0,0,1,{"$f":"SUM(P78:P85)","v":1},{"$f":"SUM(Q78:Q85)","v":2}]
["Приволжский федеральный округ"]
[1,"Кировская область",1,null,1,null,null,null,null,1,1,1,1,null,null,null,1]
[2,"МИ ФНС России по Приволжскому ФО"]
[3,"Нижегородская область",null,1,null,1,null,1,1,null,null,null,1,1,1,1]
[4,"Оренбургская область",null,null,null,null,1,null,null,1,1,null,2,2]
[5,"Пензенская область"]
[6,"Пермский край",1,null,null,null,null,null,null,null,1,1,1,1,null,1,1]
[7,"Республика Башкортостан",1,1,1,2,1,1,1,null,null,null,null,null,1,1]
[8,"Республика Марий Эл",null,null,null,null,1,null,null,1]
[9,"Республика Мордовия",null,null,null,null,null,null,null,null,null,null,null,null,1]
[10,"Республика Татарстан",null,null,1,null,null,null,null,null,1,1,null,null,1,null,1]
[11,"Самарская область",1,1,null,1,null,null,null,null,null,null,1]
[12,"Саратовская область",null,1,1,null,1,1,1,1,1,1,null,1]
[13,"Удмуртская Республика",1,1,null,null,null,1]
[14,"Ульяновская область",null,null,null,null,null,null,1]
[15,"Чувашская Республика",null,null,null,null,null,null,null,1]
[null,"Итого:",{"$f":"SUM(C88:C102)","v":5},{"$f":"SUM(D88:D102)","v":5},{"$f":"SUM(E88:E102)","v":4},{"$f":"SUM(F88:F102)","v":4},4,4,4,5,5,4,6,5,4,{"$f":"SUM(P88:P102)","v":3},{"$f":"SUM(Q88:Q102)","v":3}]
["Уральский федеральный округ"]
[1,"Курганская область",1,null,null,null,null,1]
[2,"МИ ФНС России по Уральскому ФО",null,1,null,1]
[3,"Свердловская область",1,1,1,null,1,null,1,1,null,null,null,1,null,1,1]
[4,"Тюменская область",null,null,null,1,1,1,null,null,null,null,null,null,null,1]
[5,"Ханты-Мансийский АО"]
[6,"Челябинская область",null,null,1,null,null,2,2,1,1,1,1,null,2,2,1]
[7,"Ямало-Ненецкий АО"]
[null,"Итого:",{"$f":"SUM(C105:C111)","v":2},{"$f":"SUM(D105:D111)","v":2},{"$f":"SUM(E105:E111)","v":2},{"$f":"SUM(F105:F111)","v":2},2,4,3,2,1,1,1,1,2,{"$f":"SUM(P105:P111)","v":4},{"$f":"SUM(Q105:Q111)","v":2}]
["Сибирский федеральный округ"]
[1,"Алтайский край",1,null,null,null,null,null,null,null,1,1,null,1]
[2,"Иркутская область",null,1,1,1,1,2,1,1,1,1,null,null,1,1]
[3,"Кемеровская область",1,null,null,null,null,null,1,1,null,null,1,1,null,null,1]
[4,"Красноярский край",null,1,1,1,1,1,1,1,1,1,null,1,3,1,1]
[5,"МИ ФНС России по Сибирскому ФО",null,null,null,null,null,null,null,null,null,null,null,null,1]
[6,"Новосибирская область",1,1,1,1,1,null,null,1,1,1]
[7,"Омская область",null,null,null,1,null,null,1,null,null,1,null,null,null,1,1]
[8,"Республика Алтай"]
[9,"Республика Тыва",null,1,null,null,null,null,null,1,null,null,null,null,null,1]
[10,"Республика Хакасия",null,null,null,null,null,null,null,null,null,null,null,null,null,1]
[11,"Томская область",null,1,1,1,1,null,1,1,1,1,null,null,null,null,1]
[null,"Итого:",{"$f":"SUM(C114:C124)","v":3},{"$f":"SUM(D114:D124)","v":5},{"$f":"SUM(E114:E124)","v":4},{"$f":"SUM(F114:F124)","v":5},4,3,5,6,5,6,1,3,5,{"$f":"SUM(P114:P124)","v":5},{"$f":"SUM(Q114:Q124)","v":4}]
["Дальневосточный федеральный округ"]
[1,"Амурская область",1,null,null,null,null,null,null,null,null,1]
[2,"Еврейская АО",null,1]
[3,"Забайкальский край",null,null,null,1,1,null,null,null,null,1]
[4,"Камчатский край",1,null,1]
[5,"Магаданская область"]
[6,"МИ ФНС России по Дальневосточному ФО"]
[7,"Приморский край",null,1,null,1,null,null,1,1,1,1,null,null,1,1,1]
[8,"Республика Бурятия",null,1,null,null,null,1]
[9,"Республика Саха (Якутия)",1,null,1,1,1,null,1,1,null,null,null,null,null,null,1]
[10,"Сахалинская область"]
[11,"Хабаровский край",1,null,1,1,2,2,2,1,2,1]
[12,"Чукотский АО"]
[null,"Итого:",{"$f":"SUM(C127:C138)","v":4},{"$f":"SUM(D127:D138)","v":3},{"$f":"SUM(E127:E138)","v":3},{"$f":"SUM(F127:F138)","v":4},4,3,4,3,3,4,0,0,1,{"$f":"SUM(P127:P138)","v":1},{"$f":"SUM(Q127:Q138)","v":2}]
["Новые территории Российской Федерации"]
[1,"Донецкая Народная Республика",1,null,1,null,null,null,1,null,null,2,null,null,1,2]
[2,"Запорожская область",null,null,null,null,null,null,null,null,1,1]
[3,"Луганская Народная Республика",1,null,null,null,null,null,null,null,null,null,null,null,null,1,1]
[4,"Херсонская область"]
[null,"Итого:",{"$f":"SUM(C141:C144)","v":2},{"$f":"SUM(D141:D144)","v":0},{"$f":"SUM(E141:E144)","v":1},{"$f":"SUM(F141:F144)","v":0},0,0,1,0,1,3,0,0,1,{"$f":"SUM(P141:P144)","v":3},{"$f":"SUM(Q141:Q144)","v":1}]
[null,"Всего:",{"$f":"C145+C139+C125+C112+C103+C86+C76+C65+C52+C16","v":22},{"$f":"D145+D139+D125+D112+D103+D86+D76+D65+D52+D16","v":22},{"$f":"E145+E139+E125+E112+E103+E86+E76+E65+E52+E16","v":20},{"$f":"F145+F139+F125+F112+F103+F86+F76+F65+F52+F16","v":22},22,23,25,24,23,23,21,22,26,{"$f":"P145+P139+P125+P112+P103+P86+P76+P65+P52+P16","v":25},{"$f":"Q145+Q139+Q125+Q112+Q103+Q86+Q76+Q65+Q52+Q16","v":25}]

{"sheet":"Прил.33","index":12,"n_rows":146,"n_cols":17,"rows_kept":146,"cut":false,"hidden":false,"merged":[[6,0,6,16],[7,0,11,0],[7,2,7,16],[8,2,8,16],[9,2,9,9],[10,2,10,9],[10,10,10,12],[9,10,9,12],[9,13,9,14],[10,13,10,14],[9,15,9,16],[10,15,10,16],[7,1,11,1],[112,0,112,1],[125,0,125,1],[139,0,139,1],[16,0,16,1],[52,0,52,1],[65,0,65,1],[76,0,76,1],[86,0,86,1],[103,0,103,1]]}
[null,null,null,null,null,null,null,null,null,null,null,null,null,null,null,null,"Приложение № 33"]
[null,null,null,null,null,null,null,null,null,null,null,null,null,null,null,null,"УТВЕРЖДЕН"]
[null,null,null,null,null,null,null,null,null,null,null,null,null,null,null,null,"Приказом ФНС России"]
[null,null,null,null,null,null,null,null,null,null,null,null,null,null,null,null,"от \"   \"                 20  г."]
[null,null,null,null,null,null,null,null,null,null,null,null,null,null,null,null,"№ "]
[]
["План-график дополнительного профессионального образования гражданских служащих  в \"Академии ФНС ЛАБ–Нева\" в 2025 году \n(очная форма обучения)"]
["№ п/п","Структурные подразделения ЦА ФНС России, УФНС России по субъектам РФ, межрегиональные инспекции ФНС России","Численность, человек"]
[null,null,"В том числе по программам повышения квалификации с указанием продолжительности и периодам обучения"]
[null,null,"Урегулирование и взыскание задолженности (повышенный уровень)",null,null,null,null,null,null,null,"Урегулирование и взыскание задолженности (мастерский уровень)",null,null,"Учебный доктринальный курс по правовым и судебным аспектам  деятельности налоговых органов (повышенный уровень)",null,"Учебный доктринальный курс по правовым и судебным аспектам  деятельности налоговых органов (мастерский уровень)"]
[null,null," (72 часа)",null,null,null,null,null,null,null," (72 часа)",null,null," (72 часа)",null," (72 часа)"]
[null,null,"24.02-07.03","17.03-28.03","07.04-18.04","14.07-25.07","25.08-05.09","08.09-19.09","24.11-05.12","08.12-19.12","21.04-07.05","09.06-20.06","30.06-11.07","21.04-07.05","08.12-19.12","12.05-23.05","22.09-03.10"]
[1,2,3,4,5,6,7,8,9,10,11,12,13,14,15,16,17]
["Центральный аппарат ФНС России"]
[1,"Управление профессионального развития"]
[null,"Итого:",{"$f":"SUM(C15:C15)","v":0},0,0,{"$f":"SUM(F15:F15)","v":0},0,0,0,0,0,0,0,0,0,0,0]
["Центральный федеральный округ"]
[1,"Белгородская область",null,1,null,1,1,null,1,null,1,null,1]
[2,"Брянская область",1,null,null,null,null,1,null,null,null,1]
[3,"Владимирская область",null,1,1,null,1,1,1,1,null,null,null,1,1,1,1]
[4,"Воронежская область",null,null,null,1,null,null,null,null,1,1]
[5,"г.Москва"]
[6,"Ивановская область",1]
[7,"Калужская область",null,1]
[8,"Костромская область",null,null,null,null,null,null,null,null,null,null,1]
[9,"Курская область",null,null,1,null,1,null,null,null,1,2,1,null,1]
[10,"Липецкая область",null,null,null,null,null,null,null,null,1,null,null,1,null,null,1]
[11,"МИ ФНС России по камеральному контролю",null,null,null,null,null,null,null,null,null,null,null,null,null,null,1]
[12,"МИ ФНС России по КН № 1"]
[13,"МИ ФНС России по КН № 2"]
[14,"МИ ФНС России по КН № 3",null,null,null,null,null,null,null,null,null,null,1]
[15,"МИ ФНС России по КН № 4",null,null,null,null,null,null,1]
[16,"МИ ФНС России по КН № 5"]
[17,"МИ ФНС России по КН № 6"]
[18,"МИ ФНС России по КН № 7"]
[19,"МИ ФНС России по КН № 9"]
[20,"МИ ФНС России по КН № 10"]
[21,"МИ ФНС России по ценообразованию для целей налогообложения"]
[22,"МИ ФНС России по Центральному ФО"]
[23,"МИ ФНС России по ЦОД"]
[24,"МИ ФНС России по ЦОД №2"]
[25,"МИ ФНС России по управлению долгом",null,null,null,null,null,null,null,null,1,null,1]
[26,"МИ ФНС России по контролю и надзору за налогоплательщиками в сфере бюджетного финансирования"]
[27,"Московская область",null,null,null,null,null,null,null,1,null,1,null,null,1,null,1]
[28,"Орловская область",1,null,null,null,null,null,null,null,null,null,null,1]
[29,"Рязанская область"]
[30,"Смоленская область"]
[31,"Тамбовская область"]
[32,"Тверская область",null,null,1,null,null,null,null,null,null,1]
[33,"Тульская область"]
[34,"Ярославская область"]
[null,"Итого:",{"$f":"SUM(C18:C51)","v":3},3,3,{"$f":"SUM(F18:F51)","v":2},3,2,3,2,5,6,5,3,3,1,4]
["Северо-Западный федеральный округ"]
[1,"Архангельская область и Ненецкий АО",1,null,null,1,1,null,1,1]
[2,"Вологодская область"]
[3,"г.Санкт- Петербург",null,null,null,null,1,null,null,null,null,null,null,null,null,2,1]
[4,"Калининградская область",null,null,null,null,null,null,null,null,null,null,null,null,null,1]
[5,"Ленинградская область"]
[6,"МИ ФНС России по Северо-Западному ФО",null,null,null,null,null,null,null,null,null,null,null,null,null,null,1]
[7,"Мурманская область",null,null,null,null,null,null,1]
[8,"Новгородская область",null,null,1,null,1,1,1,1,1,null,null,1]
[9,"Псковская область",null,null,null,1]
[10,"Республика Карелия",1,1,null,null,null,null,null,null,null,null,1]
[11,"Республика Коми"]
[null,"Итого:",{"$f":"SUM(C54:C64)","v":2},1,1,{"$f":"SUM(F54:F64)","v":2},3,1,3,2,1,0,1,1,0,3,2]
["Южный федеральный округ"]
[1,"Астраханская область",null,null,null,1]
[2,"Волгоградская область",1,null,null,null,null,null,null,null,1]
[3,"г.Севастополь",null,1,null,null,1,null,1,null,null,1]
[4,"Краснодарский край",null,null,null,null,null,null,null,null,null,null,null,1,1]
[5,"МИ ФНС России по Южному ФО"]
[6,"Республика Адыгея"]
[7,"Республика Калмыкия",null,null,null,null,null,null,null,null,null,null,null,1,null,1]
[8,"Республика Крым",null,null,null,null,null,null,1,1,1,1,null,null,1,1,1]
[9,"Ростовская область",1,null,null,1,null,null,null,null,null,null,1,null,null,null,1]
[null,"Итого:",{"$f":"SUM(C67:C75)","v":2},1,0,{"$f":"SUM(F67:F75)","v":2},1,0,2,1,2,2,1,2,2,2,2]
["Северо-Кавказский федеральный округ"]
[1,"Кабардино- Балкарская Республика",null,null,null,null,null,null,null,null,null,null,null,null,null,1]
[2,"Карачаево- Черкесская Республика",1,1,1,null,1,1,null,null,null,null,null,1]
[3,"МИ ФНС России по Северо-Кавказскому ФО",null,null,null,null,null,null,null,null,null,null,null,null,null,null,1]
[4,"Республика Дагестан",null,null,null,null,null,null,1,null,null,null,null,null,null,1]
[5,"Республика Ингушетия",null,null,null,null,1,1]
[6,"Республика Северная Осетия - Алания",1,1,1,null,null,null,null,null,null,null,1,null,null,null,1]
[7,"Ставропольский край",1,1,1,1,null,1,null,1,null,null,null,null,1,null,1]
[8,"Чеченская Республика",null,null,null,null,null,null,1]
[null,"Итого:",{"$f":"SUM(C78:C85)","v":3},3,3,{"$f":"SUM(F78:F85)","v":1},2,3,2,1,0,0,1,1,1,2,3]
["Приволжский федеральный округ"]
[1,"Кировская область",2,2,1,1,null,1,null,1,1]
[2,"МИ ФНС России по Приволжскому ФО"]
[3,"Нижегородская область",1,null,null,null,null,null,1,null,null,1,null,1,1,1]
[4,"Оренбургская область",null,1,1,null,1,null,null,null,1,1,1,1,1,2,1]
[5,"Пензенская область",null,1,null,1,1,null,null,1]
[6,"Пермский край",1,1,1,1,1,1,1,null,1,1,1,1,1]
[7,"Республика Башкортостан",1,null,1,null,null,null,null,null,null,1,null,null,null,1]
[8,"Республика Марий Эл",null,null,null,null,1]
[9,"Республика Мордовия",null,1,null,null,1,null,1,2,null,1,2]
[10,"Республика Татарстан",1,1,1,null,null,1,null,null,2,1,1,1]
[11,"Самарская область",null,null,null,null,null,null,null,null,null,1,null,1,1,null,1]
[12,"Саратовская область",null,1,1,1,null,null,null,1,1,null,1,null,null,1]
[13,"Удмуртская Республика",null,null,null,null,null,null,null,null,null,1]
[14,"Ульяновская область",null,null,null,null,null,2,1,1]
[15,"Чувашская Республика",2,null,2,1,null,2,2,1,null,null,null,null,1]
[null,"Итого:",{"$f":"SUM(C88:C102)","v":8},8,8,{"$f":"SUM(F88:F102)","v":5},5,7,6,7,6,8,6,5,5,5,2]
["Уральский федеральный округ"]
[1,"Курганская область",null,null,null,null,null,null,null,1]
[2,"МИ ФНС России по Уральскому ФО"]
[3,"Свердловская область",null,1,null,null,1,null,null,null,null,1,null,1,1]
[4,"Тюменская область",null,null,1,null,1,1,1,1,null,null,null,null,null,1,1]
[5,"Ханты-Мансийский АО",1,1,1,2,null,null,null,null,1,null,1]
[6,"Челябинская область",1,1,1,1,null,null,null,1,null,null,null,null,1,2,2]
[7,"Ямало-Ненецкий АО"]
[null,"Итого:",{"$f":"SUM(C105:C111)","v":2},3,3,{"$f":"SUM(F105:F111)","v":3},2,1,1,3,1,1,1,1,2,3,3]
["Сибирский федеральный округ"]
[1,"Алтайский край",null,null,null,null,null,null,null,1,null,1,1,null,1,1]
[2,"Иркутская область",2,null,1,null,1,null,null,1,1,null,null,2,1]
[3,"Кемеровская область",null,null,null,null,null,null,null,null,null,null,1,null,null,null,1]
[4,"Красноярский край",2,3,1,2,1,2,2,3,null,1,null,1]
[5,"МИ ФНС России по Сибирскому ФО"]
[6,"Новосибирская область",null,null,null,1,null,null,null,null,null,null,null,null,2,1]
[7,"Омская область",null,1,null,null,1,null,1,null,1,null,1,null,null,null,1]
[8,"Республика Алтай"]
[9,"Республика Тыва",1,null,1]
[10,"Республика Хакасия",null,1,null,1,1,null,1,null,1,null,null,1,null,1]
[11,"Томская область",null,null,null,null,null,null,null,1]
[null,"Итого:",{"$f":"SUM(C114:C124)","v":5},5,3,{"$f":"SUM(F114:F124)","v":4},4,2,4,6,3,2,3,4,4,3,2]
["Дальневосточный федеральный округ"]
[1,"Амурская область",null,null,null,null,null,1]
[2,"Еврейская АО",null,null,null,null,null,null,1]
[3,"Забайкальский край",null,null,1,null,null,1,null,null,null,null,null,1]
[4,"Камчатский край",null,null,1,1,null,1,null,null,null,null,null,null,1]
[5,"Магаданская область",null,null,1,null,1,null,null,null,null,null,1,null,null,null,1]
[6,"МИ ФНС России по Дальневосточному ФО",null,null,null,1,null,null,null,null,null,null,null,null,null,null,1]
[7,"Приморский край",null,null,null,null,null,null,1,1,1,1,1,1,1,1,2]
[8,"Республика Бурятия",null,null,null,2,null,2,null,1,1,2,2,1]
[9,"Республика Саха (Якутия)",null,null,1,null,1,1]
[10,"Сахалинская область",null,null,null,null,null,null,null,null,1]
[11,"Хабаровский край",1,1,null,2,null,1]
[12,"Чукотский АО",null,null,null,null,null,null,null,null,null,null,null,null,1]
[null,"Итого:",{"$f":"SUM(C127:C138)","v":1},1,4,{"$f":"SUM(F127:F138)","v":6},2,7,2,2,3,3,4,3,3,1,4]
["Новые территории Российской Федерации\t"]
[1,"Донецкая Народная Республика ",null,null,null,null,null,null,null,null,null,null,null,2]
[2,"Запорожская область",null,null,null,null,null,null,null,null,null,null,null,null,1]
[3,"Луганская Народная Республика",null,null,null,null,null,1,1,1,null,null,null,null,1,1]
[4,"Херсонская область"]
[null,"Итого:",{"$f":"SUM(C141:C144)","v":0},0,0,{"$f":"SUM(F141:F144)","v":0},0,1,1,1,0,0,0,2,2,1,0]
[null,"Всего:",{"$f":"SUM(C145+C139+C125+C112+C103+C86+C76+C65+C52+C16)","v":26},25,25,{"$f":"SUM(F145+F139+F125+F112+F103+F86+F76+F65+F52+F16)","v":25},22,24,24,25,21,22,22,22,22,21,22]

{"sheet":"Прил.34","index":13,"n_rows":146,"n_cols":21,"rows_kept":146,"cut":false,"hidden":false,"merged":[[6,0,6,18],[7,0,11,0],[7,2,7,20],[8,2,8,20],[9,2,9,4],[10,18,10,20],[9,7,9,9],[9,18,9,20],[10,2,10,4],[10,5,10,6],[10,7,10,9],[10,11,10,13],[10,14,10,17],[9,11,9,13],[9,14,9,17],[9,5,9,6],[13,0,13,1],[16,0,16,1],[52,0,52,1],[65,0,65,1],[7,1,11,1],[139,0,139,1],[76,0,76,1],[86,0,86,1],[103,0,103,1],[112,0,112,1],[125,0,125,1]]}
[null,null,null,null,null,null,null,null,null,null,null,null,null,null,null,null,null,null,"Приложение № 34"]
[null,null,null,null,null,null,null,null,null,null,null,null,null,null,null,null,null,null,"УТВЕРЖДЕНО"]
[null,null,null,null,null,null,null,null,null,null,null,null,null,null,null,null,null,null,"приказом ФНС России"]
[null,null,null,null,null,null,null,null,null,null,null,null,null,null,null,null,null,null,"от \"   \"                 20  г."]
[null,null,null,null,null,null,null,null,null,null,null,null,null,null,null,null,null,null,"№ "]
[]
["План-график дополнительного профессионального образования гражданских служащих в в \"Академии ФНС ЛАБ–Нева\" в 2025 году \n(очная форма обучения)"]
["№ п/п","Структурные подразделения ЦА ФНС России, УФНС России по субъектам РФ, межрегиональные инспекции ФНС России","Численность, человек"]
[null,null,"В том числе по программам повышения квалификации с указанием продолжительности и периодам обучения"]
[null,null,"Формирование доказательственной базы при выявлении нарушений пределов осуществления прав по исчислению налоговой базы и (или) суммы налога, сбора, страховых взносов (повышенный уровень)",null,null,"Формирование доказательственной базы при выявлении нарушений пределов осуществления прав по исчислению налоговой базы и (или) суммы налога, сбора, страховых взносов (мастерский уровень)",null,"Формирование команд и организация командной работы на государственной службе",null,null,"Школа кадровика (мастерский уровень)","Эффективное взаимодействие с налогоплательщиками (мастерский уровень)",null,null,"Персональная эффективность гражданского служащего",null,null,null,"Контрактная система в сфере закупок товаров, работ, услуг для обеспечения государственных нужд (мастерский уровень)"]
[null,null," (72 часа)",null,null," (72 часа)",null," (72 часа)",null,null," (72 часа)"," (72 часа)",null,null," (96 часов)",null,null,null," (112 часов)"]
[null,null,"10.02-21.02","07.04-18.04","22.09-03.10","26.05-06.06","20.10-31.10","07.04-18.04","14.07-25.07 ","08.09-19.09","14.07-25.07","08.09-19.09","06.10-17.10","17.11-28.11","10.03-28.03","14.04-30.04","05.05-23.05","23.06-11.07","24.02-14.03","19.05-06.06","23.06-11.07"]
[1,2,3,4,5,6,7,8,9,10,11,12,13,14,15,16,17,18,19,20,21]
["Центральный аппарат ФНС России"]
[1,"Управление профессионального развития",1,1,1,null,1,null,null,null,null,null,null,null,null,1]
[null,"Итого:",{"$f":"SUM(C15:C15)","v":1},1,1,0,1,0,{"$f":"SUM(I15:I15)","v":0},0,0,0,0,0,0,1,0,0,0,0,0]
["Центральный федеральный округ"]
[1,"Белгородская область",1,null,null,null,null,null,null,null,null,null,null,null,null,null,null,null,1]
[2,"Брянская область",null,1,null,1,null,null,1,null,null,1,1,null,1,null,1]
[3,"Владимирская область",null,null,1,null,null,null,null,null,null,null,null,null,null,null,null,null,null,1,1]
[4,"Воронежская область"]
[5,"г.Москва",1,1,null,null,null,null,null,null,1,null,null,null,null,null,1,1]
[6,"Ивановская область",null,null,null,null,null,null,null,null,null,null,null,null,1,1]
[7,"Калужская область",null,null,null,null,null,null,null,null,null,null,null,null,null,null,1]
[8,"Костромская область",null,null,1,null,1,1,null,null,null,null,null,1,null,null,null,1,1]
[9,"Курская область",null,null,null,null,null,null,null,null,null,null,null,null,1,1]
[10,"Липецкая область",null,null,null,1,null,null,null,null,null,1]
[11,"МИ ФНС России по камеральному контролю",null,null,null,null,1,null,null,1,null,null,null,null,null,null,null,null,null,1]
[12,"МИ ФНС России по КН № 1",null,null,null,null,null,null,1,null,1]
[13,"МИ ФНС России по КН № 2"]
[14,"МИ ФНС России по КН № 3"]
[15,"МИ ФНС России по КН № 4",null,null,null,null,null,null,null,null,null,null,null,null,null,null,1]
[16,"МИ ФНС России по КН № 5",null,null,null,1,null,null,null,null,null,null,null,null,null,null,null,null,null,null,1]
[17,"МИ ФНС России по КН № 6",1,null,null,null,null,null,null,null,null,null,null,null,null,null,null,null,1]
[18,"МИ ФНС России по КН № 7",null,null,null,null,1]
[19,"МИ ФНС России по КН № 9"]
[20,"МИ ФНС России по КН № 10"]
[21,"МИ ФНС России по ценообразованию для целей налогообложения"]
[22,"МИ ФНС России по Центральному ФО"]
[23,"МИ ФНС России по ЦОД",null,null,null,null,null,null,null,null,null,null,null,null,null,null,null,1]
[24,"МИ ФНС России по ЦОД №2"]
[25,"МИ ФНС России по управлению долгом"]
[26,"МИ ФНС России по контролю и надзору за налогоплательщиками в сфере бюджетного финансирования"]
[27,"Московская область",null,1,null,null,null,1,null,null,null,null,1,1,null,null,null,null,null,1]
[28,"Орловская область",null,null,1,1,null,null,null,null,null,null,null,null,1,null,null,null,null,null,1]
[29,"Рязанская область",null,null,null,null,null,null,null,null,null,null,null,null,null,1]
[30,"Смоленская область"]
[31,"Тамбовская область",1,1,1,1,2,null,null,null,1]
[32,"Тверская область",null,1,null,null,null,null,null,1,null,1,null,null,null,null,null,null,1]
[33,"Тульская область",null,null,null,null,null,null,1,null,null,null,null,null,null,null,null,null,null,1]
[34,"Ярославская область"]
[null,"Итого:",{"$f":"SUM(C18:C51)","v":4},{"$f":"SUM(D18:D51)","v":5},4,5,5,2,{"$f":"SUM(I18:I51)","v":3},2,3,3,2,2,4,3,4,3,4,4,3]
["Северо-Западный федеральный округ"]
[1,"Архангельская область и Ненецкий АО",1,null,1,null,null,null,null,null,null,1,1,1,1,null,1,1,1,null,1]
[2,"Вологодская область"]
[3,"г.Санкт- Петербург",null,1,null,null,null,1,null,null,null,null,null,null,1,1,1,1,null,1]
[4,"Калининградская область",null,null,null,null,null,null,null,null,null,null,1,null,1,2,2,1,null,null,1]
[5,"Ленинградская область",null,null,1,null,null,null,null,1]
[6,"МИ ФНС России по Северо-Западному ФО",null,null,null,null,null,null,null,null,null,null,null,null,null,null,null,null,1]
[7,"Мурманская область",1,null,null,null,null,null,null,null,null,null,null,null,null,null,null,null,null,1]
[8,"Новгородская область",null,null,null,null,null,null,1,null,1,1,null,1,1,null,null,1]
[9,"Псковская область",null,null,null,null,null,2,1,1,null,1,1,1]
[10,"Республика Карелия",null,null,null,1,null,null,null,1,null,null,null,null,null,null,null,null,null,null,1]
[11,"Республика Коми",null,null,null,null,1,null,null,null,null,null,null,null,null,1,null,null,1]
[null,"Итого:",{"$f":"SUM(C54:C64)","v":2},{"$f":"SUM(D54:D64)","v":1},2,1,1,3,{"$f":"SUM(I54:I64)","v":2},3,1,3,3,3,4,4,4,4,3,2,3]
["Южный федеральный округ"]
[1,"Астраханская область"]
[2,"Волгоградская область"]
[3,"г.Севастополь",null,1,null,1,null,null,null,null,null,null,null,null,null,null,1,null,null,1,1]
[4,"Краснодарский край",null,null,1,null,1,null,1,null,1,null,null,null,null,null,null,1,1]
[5,"МИ ФНС России по Южному ФО",null,null,null,null,null,null,null,null,null,null,null,null,1]
[6,"Республика Адыгея",null,null,null,1]
[7,"Республика Калмыкия"]
[8,"Республика Крым",1,null,null,null,1,null,null,null,null,null,1,null,null,1,null,null,null,1]
[9,"Ростовская область",null,null,null,1,null,1,null,null,2,1,1,1,1,null,1,1,null,null,1]
[null,"Итого:",{"$f":"SUM(C67:C75)","v":1},{"$f":"SUM(D67:D75)","v":1},1,3,2,1,{"$f":"SUM(I67:I75)","v":1},0,3,1,2,1,2,1,2,2,1,2,2]
["Северо-Кавказский федеральный округ"]
[1,"Кабардино- Балкарская Республика",null,null,null,null,null,null,null,null,null,null,null,null,null,null,null,null,1]
[2,"Карачаево- Черкесская Республика",null,null,null,null,null,null,null,1]
[3,"МИ ФНС России по Северо-Кавказскому ФО"]
[4,"Республика Дагестан",null,null,null,null,null,null,1,null,null,null,null,null,null,1,null,null,null,1]
[5,"Республика Ингушетия"]
[6,"Республика Северная Осетия - Алания"]
[7,"Ставропольский край",null,1,null,null,null,1,null,1,1,1,1,2,null,null,null,null,1,null,1]
[8,"Чеченская Республика"]
[null,"Итого:",{"$f":"SUM(C78:C85)","v":0},{"$f":"SUM(D78:D85)","v":1},0,0,0,1,{"$f":"SUM(I78:I85)","v":1},2,1,1,1,2,0,1,0,0,2,1,1]
["Приволжский федеральный округ"]
[1,"Кировская область",1,1,1,null,1,1,1,null,null,null,null,null,null,null,1,null,1,1,2]
[2,"МИ ФНС России по Приволжскому ФО",null,null,null,null,null,null,null,null,null,null,null,null,null,null,null,1]
[3,"Нижегородская область",1,null,1,2,1,null,1,1,2,1,1,null,1,null,null,null,null,1]
[4,"Оренбургская область",null,1,null,2,1,1,null,1,null,null,null,1,null,1,null,null,null,null,1]
[5,"Пензенская область",null,null,null,null,null,null,null,null,null,1,1]
[6,"Пермский край",1,null,1,null,1,2,2,2,null,1,1,1]
[7,"Республика Башкортостан",1,1,1,null,null,null,null,null,null,1,1,2,1,1,1,1,1,1]
[8,"Республика Марий Эл",null,null,null,1,1]
[9,"Республика Мордовия"]
[10,"Республика Татарстан",null,null,1,null,null,null,1,null,1,null,null,null,null,null,1,1,null,null,1]
[11,"Самарская область",2,1,1,null,null,null,null,null,null,1,null,null,1]
[12,"Саратовская область",null,1,null,null,null,1,null,null,null,null,null,null,null,1,1,1]
[13,"Удмуртская Республика",null,null,1,null,null,null,null,null,1,1,1,1]
[14,"Ульяновская область",1]
[15,"Чувашская Республика",null,1,null,null,null,null,null,null,null,null,1,null,null,null,null,null,1]
[null,"Итого:",{"$f":"SUM(C88:C102)","v":7},{"$f":"SUM(D88:D102)","v":6},7,5,5,5,{"$f":"SUM(I88:I102)","v":5},4,4,6,6,5,3,3,4,4,3,3,4]
["Уральский федеральный округ"]
[1,"Курганская область",null,null,null,1,1,null,null,null,1,null,null,null,1,null,null,null,null,1]
[2,"МИ ФНС России по Уральскому ФО",null,null,1,null,null,null,null,null,null,null,null,null,null,null,null,null,null,null,1]
[3,"Свердловская область",null,null,null,null,null,null,1,1,null,2,1,2,1,2,1,1,1,1]
[4,"Тюменская область",1,null,null,1,null,null,null,null,1,null,1,1,null,null,1]
[5,"Ханты-Мансийский АО",null,1,null,null,null,1,null,null,null,null,null,null,null,null,null,null,null,null,1]
[6,"Челябинская область",1,1,1,null,1,1,1,2,1,1,1,1,null,null,null,1,1,1]
[7,"Ямало-Ненецкий АО"]
[null,"Итого:",{"$f":"SUM(C105:C111)","v":2},{"$f":"SUM(D105:D111)","v":2},2,2,2,2,{"$f":"SUM(I105:I111)","v":2},3,3,3,3,4,2,2,2,2,2,3,2]
["Сибирский федеральный округ"]
[1,"Алтайский край",null,null,1,1,null,null,1,null,2,1,null,null,1,1]
[2,"Иркутская область",1,1,null,null,1,2,1,1,null,null,null,null,2,2,2,3,1,1,2]
[3,"Кемеровская область",null,null,null,1,1,null,null,1,null,null,1,null,null,null,null,null,1,1]
[4,"Красноярский край",null,null,1,1,null,2,2,2,1,1,1,1,3,2,2,3,1]
[5,"МИ ФНС России по Сибирскому ФО",null,null,null,null,null,null,null,null,null,null,null,null,null,1]
[6,"Новосибирская область",null,null,null,null,1,1,2,1,null,null,null,null,null,null,null,null,1,1,1]
[7,"Омская область",1,null,null,null,null,1,1,1,2,1,null,1,2,1,1,1,null,1,1]
[8,"Республика Алтай",null,null,null,null,null,1,null,null,null,null,null,null,null,null,null,null,1]
[9,"Республика Тыва",null,1,null,1,null,null,null,null,null,null,null,null,null,null,null,null,null,1]
[10,"Республика Хакасия",1,null,1,null,null,null,null,1,null,null,null,null,null,1,null,null,null,null,1]
[11,"Томская область",null,null,null,null,null,1,1,1,null,1,1,1,null,null,1]
[null,"Итого:",{"$f":"SUM(C114:C124)","v":3},{"$f":"SUM(D114:D124)","v":2},3,4,3,8,{"$f":"SUM(I114:I124)","v":8},8,5,4,3,3,8,8,6,7,5,5,5]
["Дальневосточный федеральный округ"]
[1,"Амурская область",null,null,null,null,null,null,1]
[2,"Еврейская АО"]
[3,"Забайкальский край",null,1,null,null,null,1,null,null,null,null,1,null,1,null,1,1,2,2,1]
[4,"Камчатский край",null,null,null,null,null,null,null,null,null,null,null,null,null,null,1,null,1,1]
[5,"Магаданская область",null,null,null,null,1,null,null,null,1]
[6,"МИ ФНС России по Дальневосточному ФО",null,null,null,1,null,null,null,1,null,null,null,null,null,null,null,1,null,null,1]
[7,"Приморский край",1,null,1,null,1,1,1,1,null,2,2,2,null,1,1,null,1,1]
[8,"Республика Бурятия",null,null,null,1,null,null,null,null,1,null,null,null,null,null,1,null,null,null,1]
[9,"Республика Саха (Якутия)",1,1,null,null,null,null,null,null,null,null,null,1,null,null,null,1]
[10,"Сахалинская область",null,null,null,null,null,null,null,null,null,1]
[11,"Хабаровский край",1,1,1,null,1,1,2,1,null,1,1,1]
[12,"Чукотский АО"]
[null,"Итого:",{"$f":"SUM(C127:C138)","v":3},{"$f":"SUM(D127:D138)","v":3},2,2,3,3,{"$f":"SUM(I127:I138)","v":4},3,2,4,4,4,1,1,4,3,4,4,3]
["Новые территории Российской Федерации\t"]
[1,"Донецкая Народная Республика",1,2,2,null,null,1,null,null,null,null,null,null,1]
[2,"Запорожская область"]
[3,"Луганская Народная Республика",null,null,null,null,null,null,null,1,3,null,1,1,null,null,null,null,null,null,1]
[4,"Херсонская область"]
[null,"Итого:",{"$f":"SUM(C141:C144)","v":1},{"$f":"SUM(D141:D144)","v":2},2,0,0,1,{"$f":"SUM(I141:I144)","v":0},1,3,0,1,1,1,0,0,0,0,0,1]
[null,"Всего:",{"$f":"C145+C139+C125+C112+C103+C86+C76+C65+C52+C16","v":24},{"$f":"D145+D139+D125+D112+D103+D86+D76+D65+D52+D16","v":24},24,22,22,26,{"$f":"I145+I139+I125+I112+I103+I86+I76+I65+I52+I16","v":26},26,25,25,25,25,25,24,26,25,24,24,24]

{"sheet":"Прил.35 (ОЗ)","index":14,"n_rows":149,"n_cols":25,"rows_kept":149,"cut":false,"hidden":false,"merged":[[9,11,9,15],[14,22,14,23],[10,11,10,15],[9,22,9,23],[10,22,10,23],[14,19,14,20],[14,16,14,18],[7,1,14,1],[6,0,6,24],[9,2,9,3],[10,2,10,3],[9,5,9,9],[10,5,10,9],[7,0,14,0],[7,2,7,24],[8,2,8,24],[9,19,9,20],[10,19,10,20],[14,2,14,3],[14,5,14,9],[14,11,14,15],[9,16,9,18],[10,16,10,18],[142,0,142,1],[16,0,16,1],[19,0,19,1],[55,0,55,1],[68,0,68,1],[79,0,79,1],[89,0,89,1],[106,0,106,1],[115,0,115,1],[128,0,128,1]]}
[null,null,null,null,null,null,null,null,null,null,null,null,null,null,null,null,null,null,null,null,null,null,null,null,"Приложение № 35"]
[null,null,null,null,null,null,null,null,null,null,null,null,null,null,null,null,null,null,null,null,null,null,null,null,"УТВЕРЖДЕН"]
[null,null,null,null,null,null,null,null,null,null,null,null,null,null,null,null,null,null,null,null,null,null,null,null,"Приказом ФНС России"]
[null,null,null,null,null,null,null,null,null,null,null,null,null,null,null,null,null,null,null,null,null,null,null,null,"от \"   \"                 20  г."]
[null,null,null,null,null,null,null,null,null,null,null,null,null,null,null,null,null,null,null,null,null,null,null,null,"№"]
[]
["План-график дополнительного профессионального образования гражданских служащих в \"Академии ФНС ЛАБ–Нева\" в 2025 году \n(очная-заочная форма обучения с применением дистанционных образовательных технологий и электронного обучения) "]
["№ п/п","Структурные подразделения ЦА ФНС России, УФНС России по субъектам РФ, межрегиональные инспекции ФНС России","Численность, человек"]
[null,null,"В том числе по программам повышения квалификации с указанием продолжительности и периодам обучения"]
[null,null,"Методы влияния и убеждения. Как эффективно провести переговоры, рабочие встречи и совещания\n",null,"Профессиональное развитие на государственной службе: лидерство, управление, технологии (1 ступень)\n","Профессиональное развитие на государственной службе: лидерство, управление, технологии (2 ступень)\n",null,null,null,null,"Управление проектами","Эффективное решение проблем",null,null,null,null,"Контроль и надзор за применением контрольно-кассовой техники и полнотой учета выручки. Контроль за использованием специальных банковских счетов  (повышенный уровень)",null,null,"Контроль и надзор за применением контрольно-кассовой техники и полнотой учета выручки. Контроль за использованием специальных банковских счетов  (мастерский уровень)",null,"Лидер. Современные вызовы:  эмоциональный интеллект и ситуационное лидерство\n","Эффективный старт руководителя\n",null,"Организация продуктивных коммуникаций в закупочной деятельности "]
[null,null," (72 часа)",null," (72 часа)"," (72 часа)",null,null,null,null," (72 часа)"," (72 часа)",null,null,null,null," (96 часов)",null,null," (96 часов)",null," (96 часов)"," (96 часов)",null,"(128 часов)"]
[null,null,"19.05-30.05","13.10-24.10","17.02-28.02","12.05-23.05","16.06-27.06","30.06-11.07","10.11-21.11","08.12-19.12","24.11-05.12","27.01-07.02","24.02-07.03","31.03-11.04","19.05-30.05","16.06-27.06","19.05-06.06","23.06-11.07","07.07-25.07","29.09-17.10","01.12-19.12","15.09-03.10","14.04-30.04","26.05-11.06","17.03-04.04"]
[null,null,"19.05-23.05*","13.10-17.10*","17.02-21.02*","12.05-16.05*","16.06-20.06*","30.06-04.07*","10.11-14.11*","08.12-12.12*","24.11-28.11*","27.01-31.01*","24.02-28.02*","31.03-04.04*","19.05-23.05*","16.06-20.06*","19.05-23.05*","23.06-27.06*","07.07-11.07*","29.09-03.10*","01.12-05.12*","15.09-19.09*","14.04-25.04*","26.05-06.06*","17.03-21.03*"]
[null,null,"26.05-30.05**","20.10-24.10**","24.02-28.02**","19.05-23.05**","23.06-27.06**","07.07-11.07**","17.11-21.11**","15.12-19.12**","01.12-05.12**","03.02-07.02**","03.03-07.03**","07.04-11.04**","26.05-30.05**","23.06-27.06**","26.05-06.06**","30.06-11.07**","14.07-25.07**","06.10-17.10**","08.12-19.12**","22.09-03.10**","28.04-30.04**","09.06-11.06**","24.03-04.04**"]
[null,null," * обучение с применением дистанционных образовательных технологий и электронного обучения без выезда в образовательное учреждение; \n** обучение в очной форме",null," * обучение с применением дистанционных образовательных технологий и электронного обучения без выезда в образовательное учреждение; \n** обучение в очной форме"," * обучение с применением дистанционных образовательных технологий и электронного обучения без выезда в образовательное учреждение; \n** обучение в очной форме",null,null,null,null," * обучение с применением дистанционных образовательных технологий и электронного обучения без выезда в образовательное учреждение; \n** обучение в очной форме"," * обучение с применением дистанционных образовательных технологий и электронного обучения без выезда в образовательное учреждение; \n** обучение в очной форме",null,null,null,null," * обучение с применением дистанционных образовательных технологий и электронного обучения без выезда в образовательное учреждение; \n** обучение в очной форме",null,null," * обучение с применением дистанционных образовательных технологий и электронного обучения без выезда в образовательное учреждение; \n** обучение в очной форме",null," * обучение с применением дистанционных образовательных технологий и электронного обучения без выезда в образовательное учреждение; \n** обучение в очной форме"," * обучение с применением дистанционных образовательных технологий и электронного обучения без выезда в образовательное учреждение; \n** обучение в очной форме",null," * обучение с применением дистанционных образовательных технологий и электронного обучения без выезда в образовательное учреждение; \n** обучение в очной форме"]
[1,2,3,4,5,6,7,8,9,10,11,12,13,14,15,16,17,18,19,20,21,22,23,24,25]
["Центральный аппарат ФНС России"]
[1,"Управление профессионального развития",1,1,null,null,null,null,null,null,null,null,2,1,null,null,null,null,null,null,null,null,12,12]
[null,"Итого:",{"$f":"SUM(C18:C18)","v":1},1,0,0,0,0,0,0,0,0,2,1,0,0,0,0,0,0,0,0,12,12,0]
["Центральный федеральный округ"]
[1,"Белгородская область",null,null,null,null,null,null,1,null,1,null,null,1,null,null,1,1]
[2,"Брянская область",null,null,null,null,null,1,null,null,null,null,null,null,null,null,null,null,null,null,null,1]
[3,"Владимирская область",1,null,null,null,null,1,null,null,null,null,null,null,null,null,null,1,1]
[4,"Воронежская область",null,null,null,null,null,1,null,null,null,null,null,null,null,null,1,1,null,1,1]
[5,"г.Москва",null,1,null,null,null,null,null,null,1,null,1,null,null,null,null,1,1,1,null,{"$f":"3-2","v":1}]
[6,"Ивановская область",null,null,null,null,null,null,1,null,null,null,null,null,null,null,1,null,1]
[7,"Калужская область",null,null,null,null,null,null,1,null,null,null,null,null,null,null,null,null,null,null,1]
[8,"Костромская область",1,null,null,null,1,null,null,null,null,1,null,null,1,null,null,1,null,null,null,{"$f":"3-1","v":2}]
[9,"Курская область",null,null,null,1,null,null,null,null,1,null,null,null,null,1,1,null,1,1]
[10,"Липецкая область",null,null,null,1,null,null,null,null,null,null,1]
[11,"МИ ФНС России по камеральному контролю",null,null,null,null,1]
[12,"МИ ФНС России по КН № 1",null,1,null,null,1,null,null,null,null,3,null,2,2,1]
[13,"МИ ФНС России по КН № 2",null,null,null,null,1]
[14,"МИ ФНС России по КН № 3",null,null,null,null,1,null,null,null,1,null,1]
[15,"МИ ФНС России по КН № 4",null,null,null,null,1]
[16,"МИ ФНС России по КН № 5",null,null,null,null,1]
[17,"МИ ФНС России по КН № 6",null,null,null,null,null,1,null,null,null,null,null,1,null,2,null,null,null,null,null,null,null,null,1]
[18,"МИ ФНС России по КН № 7",null,null,null,null,null,1,null,null,null,null,null,null,1,1]
[19,"МИ ФНС России по КН № 9"]
[20,"МИ ФНС России по КН № 10",null,null,null,null,1]
[21,"МИ ФНС России по ценообразованию для целей налогообложения",1,null,null,null,1,null,null,null,1]
[22,"МИ ФНС России по Центральному ФО",null,null,null,null,null,null,1,null,null,null,null,1]
[23,"МИ ФНС России по ЦОД",null,null,null,null,1,null,null,null,1]
[24,"МИ ФНС России по ЦОД №2",null,null,null,null,1]
[25,"МИ ФНС России по управлению долгом",null,null,null,null,1,null,null,null,null,null,null,3]
[26,"МИ ФНС России по контролю и надзору за налогоплательщиками в сфере бюджетного финансирования",null,null,null,null,null,null,null,null,null,null,null,null,null,1,null,null,null,null,null,1]
[27,"Московская область",null,null,null,null,null,null,null,null,null,null,null,1,null,null,1,null,null,1,1]
[28,"Орловская область",null,null,null,null,null,null,1,null,null,null,2,null,null,1,1,1]
[29,"Рязанская область",null,1,null,1,null,null,null,null,null,null,null,1,null,1,null,null,null,null,1]
[30,"Смоленская область",null,null,null,1,null,null,null,null,1,1,null,null,null,null,null,null,1]
[31,"Тамбовская область",1,null,null,null,1]
[32,"Тверская область",null,null,null,null,null,null,1,null,null,null,null,null,null,1]
[33,"Тульская область",null,1,null,null,1,null,null,null,2,2]
[34,"Ярославская область",null,null,null,1]
[null,"Итого:",{"$f":"SUM(C21:C54)","v":4},{"$f":"SUM(D21:D54)","v":4},0,5,14,5,6,0,9,7,5,10,4,9,6,6,5,4,4,5,0,0,1]
["Северо-Западный федеральный округ"]
[1,"Архангельская область и Ненецкий АО",null,null,null,1,null,null,null,null,null,null,null,null,2,null,null,null,null,null,null,{"$f":"2-1","v":1}]
[2,"Вологодская область",null,null,null,null,null,null,1]
[3,"г.Санкт- Петербург",null,null,null,null,null,null,1,null,1,1,null,null,null,null,1,null,null,1,1,{"$f":"3-2","v":1}]
[4,"Калининградская область",null,null,null,null,null,null,1,null,null,1,1,null,null,null,null,1,null,1,null,1,null,null,1]
[5,"Ленинградская область",1,null,null,null,null,1,null,null,null,null,1,1,null,null,null,null,1,null,1]
[6,"МИ ФНС России по Северо-Западному ФО",null,null,null,null,null,1]
[7,"Мурманская область",null,null,null,null,null,1,null,null,null,null,null,null,null,null,null,null,null,null,null,1]
[8,"Новгородская область",null,null,null,1,null,null,null,null,1,null,null,null,null,null,null,null,null,null,null,1]
[9,"Псковская область",null,1,null,null,null,null,1,null,null,5,1,null,null,null,null,null,null,1]
[10,"Республика Карелия",1,1,null,null,null,null,1,null,null,null,1,null,null,null,1,null,1]
[11,"Республика Коми",null,null,null,1,null,null,null,null,null,null,2,null,null,null,null,null,null,null,1]
[null,"Итого:",{"$f":"SUM(C57:C67)","v":2},{"$f":"SUM(D57:D67)","v":2},0,3,0,3,5,0,2,7,6,1,2,0,2,1,2,3,3,5,0,0,1]
["Южный федеральный округ"]
[1,"Астраханская область",null,null,null,1,null,null,null,null,null,null,null,null,null,1]
[2,"Волгоградская область",null,null,null,null,null,null,1]
[3,"г.Севастополь",null,null,null,null,null,null,null,null,null,1,null,null,null,2,null,null,null,1]
[4,"Краснодарский край",1,null,null,null,null,1,null,null,null,null,null,null,null,null,1,1,null,null,1]
[5,"МИ ФНС России по Южному ФО",null,1,null,null,null,null,1,null,null,1,null,null,null,null,null,null,null,null,null,null,null,null,1]
[6,"Республика Адыгея",null,null,null,null,null,null,1]
[7,"Республика Калмыкия",1]
[8,"Республика Крым",null,1,null,null,null,null,null,null,null,null,null,null,null,null,1,1,1,1]
[9,"Ростовская область",null,null,null,2,null,null,null,null,1,null,null,null,null,null,null,1,1,null,1,null,null,null,2]
[null,"Итого:",{"$f":"SUM(C70:C78)","v":2},2,0,3,0,1,3,0,1,2,0,0,0,3,2,3,2,2,2,0,0,0,3]
["Северо-Кавказский федеральный округ"]
[1,"Кабардино- Балкарская Республика",null,null,null,1,null,null,null,null,null,null,null,null,null,null,null,null,null,null,null,null,null,null,1]
[2,"Карачаево- Черкесская Республика",null,null,null,1]
[3,"МИ ФНС России по Северо-Кавказскому ФО",null,null,null,null,1]
[4,"Республика Дагестан",null,null,null,null,null,1]
[5,"Республика Ингушетия",null,null,null,null,null,null,1]
[6,"Республика Северная Осетия - Алания",null,null,null,null,null,null,1,null,null,null,null,null,null,null,1,null,null,1]
[7,"Ставропольский край",1,null,null,null,null,1,null,null,1,null,null,null,null,null,1,null,null,null,null,null,null,null,1]
[8,"Чеченская Республика",null,null,null,null,null,1,null,null,null,null,null,null,null,null,null,null,null,2,3]
[null,"Итого:",{"$f":"SUM(C81:C88)","v":1},0,0,2,1,3,2,0,1,0,0,0,0,0,2,0,0,3,3,0,0,0,2]
["Приволжский федеральный округ"]
[1,"Кировская область",null,1,null,null,null,1,null,null,null,null,null,null,null,null,null,null,null,1,1]
[2,"МИ ФНС России по Приволжскому ФО",null,null,null,null,1,null,null,null,null,null,null,null,null,null,null,null,null,null,null,null,null,null,1]
[3,"Нижегородская область",2,1,null,1,null,null,null,null,1,4,null,null,null,1,null,1,1,1]
[4,"Оренбургская область",1,null,null,null,null,null,null,null,1,null,1,5,1,null,1,1,null,null,null,1]
[5,"Пензенская область",1,2,null,null,null,1]
[6,"Пермский край",1,2,null,null,1,null,1,null,2,null,1,null,6,null,null,1,1,null,null,{"$f":"3-1","v":2},null,null,1]
[7,"Республика Башкортостан",2,1,null,1,null,null,null,null,null,null,null,null,1,null,1,null,1,null,1,{"$f":"2-1","v":1},null,null,4]
[8,"Республика Марий Эл",null,null,null,null,null,1,null,null,1,null,null,null,null,2]
[9,"Республика Мордовия",null,null,null,null,1,null,null,null,null,null,null,null,null,null,null,1,null,1]
[10,"Республика Татарстан",1,null,1,null,null,1,null,null,null,null,null,null,null,null,1,null,null,1,1,{"$f":"2-1","v":1},null,null,1]
[11,"Самарская область",null,1,null,null,null,null,null,null,null,null,1,null,null,1,null,1,null,null,1]
[12,"Саратовская область",1,null,null,null,null,null,1,null,null,1,null,null,null,3,null,null,null,1]
[13,"Удмуртская Республика",null,null,null,null,null,1,null,null,null,null,null,null,null,null,null,1,1]
[14,"Ульяновская область",null,null,null,null,null,1]
[15,"Чувашская Республика",null,null,null,null,null,null,null,null,null,null,null,null,null,1]
[null,"Итого:",{"$f":"SUM(C91:C105)","v":9},{"$f":"SUM(D91:D105)","v":8},1,2,3,6,2,0,5,5,3,5,8,8,3,6,4,5,4,5,0,0,7]
["Уральский федеральный округ"]
[1,"Курганская область",null,null,null,null,null,null,1,null,null,null,null,null,6]
[2,"МИ ФНС России по Уральскому ФО",null,null,null,null,1]
[3,"Свердловская область",1,null,null,1,null,1,null,null,null,null,null,null,1,null,1,null,null,null,null,1]
[4,"Тюменская область",null,null,null,null,null,1,null,null,1,null,null,1,null,5,null,1,1,null,1,1]
[5,"Ханты-Мансийский АО",null,null,null,1,null,null,null,null,null,1,1,null,null,null,null,null,null,1]
[6,"Челябинская область",null,1,null,null,null,null,null,null,null,1,1,null,null,null,1,1,null,1,1]
[7,"Ямало-Ненецкий АО",1,1,null,null,null,null,1,null,null,null,null,null,null,null,null,null,1,1,1]
[null,"Итого:",{"$f":"SUM(C108:C114)","v":2},{"$f":"SUM(D108:D114)","v":2},0,2,1,2,2,0,1,2,2,1,7,5,2,2,2,3,3,2,0,0,0]
["Сибирский федеральный округ"]
[1,"Алтайский край",1,null,null,null,null,1,null,null,null,null,null,null,null,null,1,null,1]
[2,"Иркутская область",null,1,null,null,null,1,null,null,null,null,null,2,null,null,null,null,1,null,1,{"$f":"2-1","v":1}]
[3,"Кемеровская область",1,null,null,1,null,null,null,null,null,1,null,null,1,null,null,null,null,1]
[4,"Красноярский край",null,null,null,null,null,null,1,null,1,null,5,1,null,null,1,1,1,null,null,1,null,null,2]
[5,"МИ ФНС России по Сибирскому ФО",null,null,null,null,1,null,null,null,1]
[6,"Новосибирская область",null,null,null,null,null,null,null,null,null,1,null,null,2,null,1]
[7,"Омская область",null,null,null,null,1,null,null,null,null,null,null,2,null,null,null,1,1,null,1,1]
[8,"Республика Алтай",null,null,null,null,null,null,1,null,null,null,null,null,null,null,1,1]
[9,"Республика Тыва",null,1,null,1,null,null,null,null,null,null,1,null,null,null,null,1,1]
[10,"Республика Хакасия",null,null,null,null,null,null,1,null,null,null,null,null,null,null,null,null,null,1]
[11,"Томская область",null,null,null,null,null,1,null,null,null,null,null,1]
[null,"Итого:",{"$f":"SUM(C117:C127)","v":2},{"$f":"SUM(D117:D127)","v":2},0,2,2,3,3,0,2,2,6,6,3,0,4,4,5,2,2,3,0,0,2]
["Дальневосточный федеральный округ"]
[1,"Амурская область",null,1,null,null,1,null,null,null,null,null,null,null,null,null,1,1]
[2,"Еврейская АО",null,null,null,null,null,1]
[3,"Забайкальский край",null,null,null,null,null,null,1,null,1,null,null,null,null,null,null,null,1,null,null,1,null,null,1]
[4,"Камчатский край",null,null,null,1]
[5,"Магаданская область",null,null,null,null,1]
[6,"МИ ФНС России по Дальневосточному ФО",null,null,null,null,1,null,null,null,null,null,null,null,null,null,null,null,null,null,null,null,null,null,1]
[7,"Приморский край",1,null,null,1,null,null,null,null,null,null,null,null,null,null,1,null,1,1,1]
[8,"Республика Бурятия",null,null,null,null,null,null,1,null,null,null,1]
[9,"Республика Саха (Якутия)",null,1,null,null,null,null,1,null,null,null,null,null,null,null,null,null,null,1,1,{"$f":"3-1","v":2},null,null,2]
[10,"Сахалинская область"]
[11,"Хабаровский край",null,null,null,null,null,1,null,null,null,null,null,null,null,null,1,1,1,null,1]
[12,"Чукотский АО",null,null,20,null,null,1,null,21,null,null,null,1]
[null,"Итого:",{"$f":"SUM(C130:C141)","v":1},{"$f":"SUM(D130:D141)","v":2},20,2,3,3,3,21,1,0,1,1,0,0,3,2,3,2,3,3,0,0,4]
["Новые территории Российской Федерации "]
[1,"Донецкая Народная Республика",null,null,null,null,null,1]
[2,"Запорожская область",null,null,null,null,null,null,1,null,null,null,null,null,null,null,null,null,null,null,null,1]
[3,"Луганская Народная Республика",1,2,null,null,null,null,null,null,1,null,null,null,1,null,null,null,1,null,null,{"$f":"2-1","v":1},null,null,1]
[4,"Херсонская область"]
[null,"Итого:",{"$f":"SUM(C144:C147)","v":1},{"$f":"SUM(D144:D147)","v":2},0,0,0,1,1,0,1,0,0,0,1,0,0,0,1,0,0,2,0,0,1]
[null,"Всего:",{"$f":"C19+C55+C68+C79+C89+C106+C115+C128+C142+C148","v":25},{"$f":"D19+D55+D68+D79+D89+D106+D115+D128+D142+D148","v":25},{"$f":"E19+E55+E68+E79+E89+E106+E115+E128+E142+E148","v":21},21,24,27,27,21,23,25,25,25,25,25,24,24,24,24,24,25,12,12,21]

{"sheet":"Прил.36 (ОЗ)","index":15,"n_rows":153,"n_cols":26,"rows_kept":153,"cut":false,"hidden":false,"merged":[[16,2,16,25],[7,1,16,1],[152,1,152,4],[18,0,18,1],[21,0,21,1],[7,0,16,0],[57,0,57,1],[70,0,70,1],[81,0,81,1],[91,0,91,1],[108,0,108,1],[117,0,117,1],[130,0,130,1],[144,0,144,1],[6,0,6,24],[7,2,7,25],[8,2,8,25],[9,2,9,25],[10,2,10,25]]}
[null,null,null,null,null,null,null,null,null,null,null,null,null,null,null,null,null,null,null,null,null,null,null,null,null,"Приложение № 36"]
[null,null,null,null,null,null,null,null,null,null,null,null,null,null,null,null,null,null,null,null,null,null,null,null,null,"УТВЕРЖДЕН"]
[null,null,null,null,null,null,null,null,null,null,null,null,null,null,null,null,null,null,null,null,null,null,null,null,null,"Приказом ФНС России"]
[null,null,null,null,null,null,null,null,null,null,null,null,null,null,null,null,null,null,null,null,null,null,null,null,null,"от \"   \"                 20  г."]
[null,null,null,null,null,null,null,null,null,null,null,null,null,null,null,null,null,null,null,null,null,null,null,null,null,"№"]
[]
["План-график дополнительного профессионального образования гражданских служащих в \"Академии ФНС ЛАБ–Нева\" в 2025 году \n(очная-заочная форма обучения с применением дистанционных образовательных технологий и электронного обучения) "]
["№ п/п","Структурные подразделения ЦА ФНС России, УФНС России по субъектам РФ, межрегиональные инспекции ФНС России","Численность, человек"]
[null,null,"В том числе по программам повышения квалификации с указанием продолжительности и периодам обучения"]
[null,null,"Мастер налогового контроля и финансовых расследований***"]
[null,null,"(152 часа)"]
[null,null,"Группа 1","Группа 2","Группа 3","Группа 4","Группа 5","Группа 6","Группа 7","Группа 8","Группа 9","Группа 10","Группа 11","Группа 12","Группа 13","Группа 14","Группа 15","Группа 16","Группа 17","Группа 18","Группа 19","Группа 20","Группа 21","Группа 22","Группа 23","Группа 24"]
[null,null,"03.03-09.09","03.03-09.09","10.03-12.09","10.03-12.09","17.03-16.09","17.03-16.09","24.03-19.09","24.03-19.09","31.03-23.09","31.03-23.09","07.04-26.09","07.04-26.09","14.04-30.09","14.04-30.09","21.04-03.10","21.04-03.10","28.04-07.10","28.04-07.10","05.05-10.10","05.05-10.10","12.05-14.10","12.05-14.10","19.05-17.10","19.05-17.10"]
[null,null,"03.03-07.05*","03.03-07.05*","10.03-14.05*","10.03-14.05*","17.03-19.05*","17.03-19.05*","24.03-23.05*","24.03-23.05*","31.03-28.05*","31.03-28.05*","07.04-02.06*","07.04-02.06*","14.04-06.06*","14.04-06.06*","21.04-20.06*","21.04-20.06*","28.04-25.06*","28.04-25.06*","05.05-30.06*","05.05-30.06*","12.05-11.07*","12.05-11.07*","19.05-18.07*","19.05-18.07*"]
[null,null,"12.05-14.05**","12.05-14.05**","16.05-19.05**","16.05-19.05**","21.05-23.05**","21.05-23.05**","26.05-28.05**","26.05-28.05**","30.05-02.06**","30.05-02.06**","04.06-06.06**","04.06-06.06**","09.06-11.06**","09.06-11.06**","23.06-25.06**","23.06-25.06**","27.06-30.06**","27.06-30.06**","02.07-04.07**","02.07-04.07**","14.07-16.07**","14.07-16.07**","21.07-23.07**","21.07-23.07**"]
[null,null,"08.09-09.09**","08.09-09.09**","11.09-12.09**","11.09-12.09**","15.09-16.09**","15.09-16.09**","18.09-19.09**","18.09-19.09**","22.09-23.09**","22.09-23.09**","25.09-26.09**","25.09-26.09**","29.09-30.09**","29.09-30.09**","02.10-03.10**","02.10-03.10**","06.10-07.10**","06.10-07.10**","09.10-10.10**","09.10-10.10**","13.10-14.10**","13.10-14.10**","16.10-17.10**","16.10-17.10**"]
[null,null," * обучение с применением дистанционных образовательных технологий и электронного обучения без выезда в образовательное учреждение; \n** обучение в очной форме"]
[1,2,3,4,5,6,7,8,9,10,11,12,13,14,15,16,17,18,19,20,21,22,23,24,25,26]
["Центральный аппарат ФНС России"]
[1,"Управление профессионального развития",0,0,0,0,0,0,0,0,0,0,0,0,0,0,0,0,0,0,0,0,0,0,0,0]
[null,"Итого:",0,0,0,0,0,0,0,0,0,0,0,0,0,0,0,0,0,0,0,0,0,0,0,0]
["Центральный федеральный округ"]
[1,"Белгородская область",0,1,0,0,0,0,0,0,0,0,0,0,0,1,0,0,1,0,0,0,1,0,1,1]
[2,"Брянская область",0,1,0,1,0,0,0,0,0,0,0,1,0,0,0,1,0,0,0,1,0,0,0,0]
[3,"Владимирская область",1,0,0,0,1,0,0,0,0,0,0,0,0,1,0,1,0,0,0,0,1,0,0,0]
[4,"Воронежская область",1,0,0,1,0,0,1,0,0,1,0,1,0,0,1,0,1,0,0,0,0,0,0,1]
[5,"г.Москва",2,2,4,3,2,2,2,2,2,2,2,4,2,2,2,2,2,2,4,2,2,2,2,2]
[6,"Ивановская область",0,1,0,1,0,0,0,0,0,0,0,0,1,0,0,1,0,0,0,0,0,0,0,0]
[7,"Калужская область",1,0,0,0,0,0,0,0,0,1,0,0,0,0,0,0,1,0,1,0,0,0,0,0]
[8,"Костромская область",1,0,0,0,1,0,0,0,0,0,0,0,0,0,0,0,0,0,0,0,0,0,0,1]
[9,"Курская область",0,0,0,1,0,0,0,0,0,0,0,1,0,0,0,0,0,1,0,1,0,0,0,0]
[10,"Липецкая область",0,0,1,0,0,0,1,0,0,1,0,0,0,0,1,0,0,0,0,0,0,0,0,0]
[11,"МИ ФНС России по камеральному контролю",0,0,0,0,0,0,0,0,0,0,0,0,0,0,0,0,0,0,0,1,0,0,0,0]
[12,"МИ ФНС России по КН № 1",0,0,1,0,0,0,0,0,0,0,0,1,0,0,0,0,0,1,0,0,0,0,0,0]
[13,"МИ ФНС России по КН № 2",0,0,0,0,1,0,0,0,0,0,1,0,0,0,0,1,0,0,0,0,0,0,0,0]
[14,"МИ ФНС России по КН № 3",0,0,0,1,0,0,0,1,0,0,1,0,0,0,0,0,0,0,0,0,0,0,0,0]
[15,"МИ ФНС России по КН № 4",0,0,0,0,0,1,0,0,0,1,0,0,0,0,0,0,0,0,0,0,0,0,0,0]
[16,"МИ ФНС России по КН № 5",0,0,1,0,0,0,0,1,0,0,0,0,0,1,0,0,0,0,0,0,0,0,0,0]
[17,"МИ ФНС России по КН № 6",0,0,0,0,0,0,0,0,0,0,0,1,0,0,1,0,0,1,0,0,0,0,0,0]
[18,"МИ ФНС России по КН № 7",0,0,0,0,0,0,0,0,0,0,0,0,0,0,0,1,0,0,0,0,0,0,0,0]
[19,"МИ ФНС России по КН № 9",0,0,0,0,0,0,0,0,0,0,0,0,0,0,0,0,1,0,0,0,0,0,0,0]
[20,"МИ ФНС России по КН № 10",0,0,0,0,0,0,0,0,0,0,0,0,1,0,0,0,0,0,0,0,0,0,0,0]
[21,"МИ ФНС России по ценообразованию для целей налогообложения",0,0,0,0,0,0,0,1,0,0,0,0,0,0,0,0,0,0,0,0,0,0,0,0]
[22,"МИ ФНС России по Центральному ФО",0,0,0,0,0,0,0,0,1,0,0,0,0,0,0,0,0,0,0,0,0,0,0,0]
[23,"МИ ФНС России по ЦОД",0,0,0,0,0,0,0,0,0,0,0,0,0,0,0,0,0,0,0,0,0,0,0,0]
[24,"МИ ФНС России по ЦОД №2",0,0,0,0,0,0,0,0,0,0,0,0,0,0,0,0,0,0,0,0,0,0,0,0]
[25,"МИ ФНС России по управлению долгом",0,0,0,0,0,0,0,0,0,0,0,0,0,0,0,0,1,0,0,0,0,1,0,0]
[26,"МИ ФНС России по контролю и надзору за налогоплательщиками в сфере бюджетного финансирования",0,0,0,0,0,0,0,0,0,1,0,0,0,0,0,0,0,0,0,0,0,0,0,0]
[27,"Московская область",0,1,1,1,1,1,1,1,1,1,1,1,1,1,0,0,1,1,1,1,1,1,1,1]
[28,"Орловская область",1,0,0,0,1,0,0,0,0,0,0,0,0,0,0,0,0,1,0,0,0,0,0,1]
[29,"Рязанская область",1,0,0,0,0,0,0,0,0,0,1,0,0,0,0,0,0,1,0,0,0,0,0,0]
[30,"Смоленская область",1,0,0,1,0,0,0,0,0,0,0,0,0,0,0,0,0,0,0,0,0,0,0,1]
[31,"Тамбовская область",1,0,0,0,0,0,0,0,0,1,0,0,0,0,0,1,0,0,0,0,0,0,1,0]
[32,"Тверская область",0,1,0,1,0,0,0,1,0,0,0,0,0,1,0,0,0,0,0,0,0,0,0,0]
[33,"Тульская область",1,0,0,0,0,0,1,0,0,0,0,1,0,0,1,0,0,0,0,0,0,0,0,1]
[34,"Ярославская область",1,0,0,1,0,1,0,1,0,0,1,0,1,0,0,0,0,0,0,0,0,0,0,0]
[null,"Итого:",{"$f":"SUM(C22:C56)","v":12},{"$f":"SUM(D22:D56)","v":7},8,12,7,5,6,8,4,9,7,11,6,7,6,8,8,8,6,6,5,4,5,9]
["Северо-Западный федеральный округ"]
[1,"Архангельская область и Ненецкий АО",1,0,0,0,1,0,0,1,0,0,0,0,0,1,0,0,0,1,1,0,0,0,0,0]
[2,"Вологодская область",1,0,0,1,0,0,1,0,0,0,0,0,1,0,1,0,0,0,0,0,1,0,0,0]
[3,"г.Санкт- Петербург",1,1,1,1,1,1,1,1,1,1,1,1,1,1,1,1,1,1,1,1,1,1,1,1]
[4,"Калининградская область",1,0,0,0,1,0,1,0,0,0,0,1,0,0,0,0,0,0,0,0,0,0,0,0]
[5,"Ленинградская область",1,0,0,1,0,1,0,1,0,1,0,0,0,0,0,0,0,1,0,0,0,0,0,0]
[6,"МИ ФНС России по Северо-Западному ФО",1,0,0,0,0,0,0,0,0,0,0,0,0,0,0,0,0,0,0,0,0,0,0,0]
[7,"Мурманская область",1,0,0,0,1,0,1,0,1,0,0,0,0,0,1,0,0,0,0,0,0,0,0,0]
[8,"Новгородская область",1,0,0,0,0,0,0,0,0,1,0,0,0,0,0,0,0,0,0,0,0,0,0,0]
[9,"Псковская область",0,0,1,0,0,0,0,0,0,0,0,0,1,0,0,0,0,0,0,0,0,0,0,0]
[10,"Республика Карелия",0,1,0,0,0,1,0,1,0,0,0,0,0,0,0,0,0,0,0,0,0,0,0,0]
[11,"Республика Коми",1,0,0,1,0,0,0,0,0,0,1,0,0,0,0,0,0,0,0,0,0,0,1,1]
[null,"Итого:",{"$f":"SUM(C58:C69)","v":9},{"$f":"SUM(D58:D69)","v":2},2,4,4,3,4,4,2,3,2,2,3,2,3,1,1,3,2,1,2,1,2,2]
["Южный федеральный округ"]
[1,"Астраханская область",1,0,0,0,0,0,0,1,0,0,0,0,1,0,0,0,0,0,0,0,0,0,0,0]
[2,"Волгоградская область",0,0,1,0,1,0,1,0,1,0,0,1,0,0,1,0,0,0,0,1,0,1,0,1]
[3,"г.Севастополь",0,1,0,0,0,1,0,0,0,0,0,0,0,0,0,0,0,0,0,0,0,0,0,0]
[4,"Краснодарский край",0,0,0,1,0,0,1,0,1,0,0,1,0,1,1,0,1,1,0,1,0,1,1,1]
[5,"МИ ФНС России по Южному ФО",0,0,0,1,0,0,0,0,0,0,0,0,0,0,0,0,0,0,0,0,0,0,0,0]
[6,"Республика Адыгея",1,0,0,0,0,0,0,0,0,0,0,0,0,0,0,0,0,0,0,0,0,0,0,0]
[7,"Республика Калмыкия",0,0,0,0,0,0,0,0,0,1,0,0,0,0,0,0,0,1,0,0,0,0,0,0]
[8,"Республика Крым",0,1,0,1,0,0,1,0,1,0,0,0,1,0,0,0,0,0,0,0,1,0,1,0]
[9,"Ростовская область",0,1,0,1,0,1,0,1,0,1,0,1,0,1,1,0,1,1,1,1,0,1,1,0]
[null,"Итого:",{"$f":"SUM(C71:C80)","v":2},{"$f":"SUM(D71:D80)","v":3},1,4,1,2,3,2,3,2,0,3,2,2,3,0,2,3,1,3,1,3,3,2]
["Северо-Кавказский федеральный округ"]
[1,"Кабардино- Балкарская Республика",0,1,0,0,0,0,0,0,0,0,0,0,0,0,0,0,0,0,0,0,0,1,0,0]
[2,"Карачаево- Черкесская Республика",0,0,0,1,0,0,0,0,0,0,0,0,0,0,0,0,0,0,0,1,0,0,0,0]
[3,"МИ ФНС России по Северо-Кавказскому ФО",0,0,0,0,0,0,0,0,0,0,0,1,0,0,0,0,0,0,0,0,0,0,0,0]
[4,"Республика Дагестан",0,1,0,1,0,0,1,0,0,1,0,0,1,0,1,0,0,0,0,0,0,0,0,0]
[5,"Республика Ингушетия",0,0,0,0,0,1,0,0,0,0,0,0,0,0,0,0,0,0,0,0,0,0,0,0]
[6,"Республика Северная Осетия - Алания",0,1,0,1,0,0,0,0,0,0,0,0,0,0,0,0,0,0,0,0,0,0,0,0]
[7,"Ставропольский край",1,0,0,0,0,0,0,1,0,1,0,1,0,1,0,0,1,0,1,0,1,1,0,0]
[8,"Чеченская Республика",1,0,0,0,0,0,0,0,1,0,0,0,0,0,0,0,0,0,0,0,0,0,0,0]
[null,"Итого:",{"$f":"SUM(C82:C90)","v":2},{"$f":"SUM(D82:D90)","v":3},0,3,0,1,1,1,1,2,0,2,1,1,1,0,1,0,1,1,1,2,0,0]
["Приволжский федеральный округ"]
[1,"Кировская область",0,1,0,0,1,0,0,1,0,1,0,0,0,0,1,0,0,0,1,0,0,0,1,0]
[2,"МИ ФНС России по Приволжскому ФО",0,0,0,0,0,0,0,0,0,0,0,1,0,0,0,0,0,0,0,0,0,0,0,0]
[3,"Нижегородская область",0,1,0,0,0,1,0,1,0,1,0,0,0,1,0,1,0,1,0,0,1,0,1,1]
[4,"Оренбургская область",0,0,1,0,1,0,1,0,1,0,1,0,0,1,0,1,0,1,0,0,0,0,0,0]
[5,"Пензенская область",0,1,0,0,0,1,0,0,0,1,0,0,0,1,0,0,0,0,0,0,0,0,0,0]
[6,"Пермский край",0,1,0,0,1,0,1,0,1,0,0,1,0,1,0,1,0,1,0,1,1,1,1,1]
[7,"Республика Башкортостан",0,1,0,0,1,0,1,0,1,0,0,1,0,1,0,1,1,1,1,1,1,1,1,1]
[8,"Республика Марий Эл",0,0,1,0,0,0,0,0,0,0,0,0,1,0,0,0,0,0,0,0,0,0,0,0]
[9,"Республика Мордовия",0,1,0,0,1,0,0,0,0,0,1,0,0,0,0,0,0,0,0,0,0,0,0,0]
[10,"Республика Татарстан",0,1,0,0,0,0,1,0,0,0,1,1,1,1,1,1,1,1,1,1,1,1,1,1]
[11,"Самарская область",0,1,0,0,0,1,0,1,0,0,1,0,1,0,1,0,1,0,1,1,1,1,1,1]
[12,"Саратовская область",0,0,0,0,1,0,1,0,0,0,0,0,0,0,1,1,1,1,1,1,1,1,0,0]
[13,"Удмуртская Республика",0,0,0,1,0,1,0,1,0,0,1,0,1,0,0,0,0,0,0,0,0,0,0,1]
[14,"Ульяновская область",0,1,1,0,0,0,0,0,1,0,1,0,0,0,0,0,0,0,0,0,0,0,0,0]
[15,"Чувашская Республика",0,0,0,0,0,0,0,0,1,0,0,1,0,0,0,1,0,0,0,1,0,0,0,1]
[null,"Итого:",{"$f":"SUM(C92:C107)","v":0},{"$f":"SUM(D92:D107)","v":9},3,1,6,4,5,4,5,3,6,5,4,6,4,7,4,6,5,6,6,5,6,7]
["Уральский федеральный округ"]
[1,"Курганская область",0,0,1,0,0,0,0,0,1,0,0,0,0,1,0,0,0,0,1,0,0,0,0,0]
[2,"МИ ФНС России по Уральскому ФО",0,0,0,0,0,0,0,0,0,1,0,0,0,0,0,0,0,0,0,0,0,0,0,0]
[3,"Свердловская область",0,1,0,0,1,0,1,0,1,0,1,0,1,0,1,1,1,1,1,1,1,1,1,1]
[4,"Тюменская область",0,0,0,0,0,1,0,1,0,1,0,0,1,0,1,0,0,0,1,0,1,0,0,0]
[5,"Ханты-Мансийский АО",0,0,1,0,0,1,0,1,0,0,1,0,1,0,0,1,0,1,0,0,0,0,0,0]
[6,"Челябинская область",0,0,0,0,1,0,1,0,1,0,1,0,1,0,1,0,1,1,0,1,1,1,1,1]
[7,"Ямало-Ненецкий АО",0,0,0,0,0,0,0,0,0,0,0,0,0,0,0,0,0,0,0,0,0,0,1,0]
[null,"Итого:",{"$f":"SUM(C109:C116)","v":0},{"$f":"SUM(D109:D116)","v":1},2,0,2,2,2,2,3,2,3,0,4,1,3,2,2,3,3,2,3,2,3,2]
["Сибирский федеральный округ"]
[1,"Алтайский край",0,0,1,0,0,0,1,0,0,1,0,0,1,0,0,0,0,1,0,1,1,1,0,0]
[2,"Иркутская область",0,0,0,0,1,0,1,0,1,0,1,0,1,0,0,0,1,0,1,1,1,1,1,0]
[3,"Кемеровская область",0,0,0,0,0,1,0,1,0,1,0,1,0,1,0,0,0,0,1,1,0,1,1,1]
[4,"Красноярский край",0,0,1,0,1,0,1,1,0,1,0,1,0,1,0,0,1,0,1,1,1,1,1,0]
[5,"МИ ФНС России по Сибирскому ФО",0,0,0,0,0,0,0,1,0,0,0,0,0,0,0,0,0,0,0,0,0,0,0,0]
[6,"Новосибирская область",0,0,1,0,0,1,0,0,1,0,0,0,1,0,1,0,0,1,1,1,1,1,1,1]
[7,"Омская область",0,0,1,0,0,1,0,0,0,0,1,0,0,1,0,0,1,0,1,0,0,1,0,0]
[8,"Республика Алтай",0,0,1,0,0,0,0,0,0,0,0,0,0,0,0,0,0,0,0,0,0,0,0,0]
[9,"Республика Тыва",0,0,0,0,0,0,0,0,0,0,1,0,0,0,0,1,0,0,0,0,0,0,0,0]
[10,"Республика Хакасия",0,0,0,0,0,1,0,0,0,0,0,0,0,1,0,0,0,0,0,0,0,0,0,0]
[11,"Томская область",0,0,1,0,0,1,0,0,0,0,1,0,0,0,0,1,0,0,0,1,0,0,0,1]
[null,"Итого:",{"$f":"SUM(C118:C129)","v":0},{"$f":"SUM(D118:D129)","v":0},6,0,2,5,3,3,2,3,4,2,3,4,1,2,3,2,5,6,4,6,4,3]
["Дальневосточный федеральный округ"]
[1,"Амурская область",0,0,0,1,0,0,0,0,1,0,0,0,0,0,0,1,0,0,0,0,0,0,0,0]
[2,"Еврейская АО",0,0,0,0,0,0,0,0,0,1,0,0,0,0,0,0,0,0,0,0,0,0,0,0]
[3,"Забайкальский край",0,0,1,0,0,0,0,1,0,0,1,0,0,0,1,0,0,0,0,0,0,0,0,0]
[4,"Камчатский край",0,0,0,0,0,1,0,0,0,0,1,0,0,0,0,0,0,0,0,0,0,0,0,0]
[5,"Магаданская область",0,0,0,0,0,0,0,0,0,0,0,0,0,0,0,1,0,0,0,0,0,0,0,0]
[6,"МИ ФНС России по Дальневосточному ФО",0,0,0,0,1,0,0,0,0,0,0,0,0,0,0,0,0,0,0,0,0,0,0,0]
[7,"Приморский край",0,0,0,0,1,0,0,0,0,0,1,0,0,1,1,0,1,0,0,0,0,1,1,0]
[8,"Республика Бурятия",0,0,0,0,0,0,0,0,0,0,0,0,0,0,0,0,1,0,1,0,1,0,0,0]
[9,"Республика Саха (Якутия)",0,0,1,0,0,0,0,0,0,0,0,0,0,0,0,1,0,0,0,0,1,1,1,0]
[10,"Сахалинская область",0,0,0,0,1,0,0,0,1,0,0,0,0,0,0,1,0,0,0,0,0,0,0,0]
[11,"Хабаровский край",0,0,1,0,0,1,0,0,1,0,0,0,0,0,1,0,1,0,0,0,1,0,0,0]
[12,"Чукотский АО",0,0,0,0,0,0,0,0,1,0,0,0,0,0,0,0,0,0,0,0,0,0,0,0]
[null,"Итого:",{"$f":"SUM(C131:C143)","v":0},{"$f":"SUM(D131:D143)","v":0},3,1,3,2,0,1,4,1,3,0,0,1,3,4,3,0,1,0,3,2,2,0]
["Новые территории Российской Федерации "]
[1,"Донецкая Народная Республика",0,0,0,0,0,0,1,0,0,0,0,0,1,0,1,1,0,0,0,0,0,0,0,0]
[2,"Запорожская область",0,0,0,0,0,0,0,0,0,0,0,0,0,0,0,0,0,0,1,0,0,0,0,0]
[3,"Луганская Народная Республика",0,0,0,0,0,1,0,0,1,0,0,0,0,1,0,0,1,0,0,0,0,0,0,0]
[4,"Херсонская область",0,0,0,0,0,0,0,0,0,0,0,0,1,0,0,0,0,0,0,0,0,0,0,0]
[null,"Итого:",{"$f":"SUM(C145:C149)","v":0},{"$f":"SUM(D145:D149)","v":0},0,0,0,1,1,0,1,0,0,0,2,1,1,{"$f":"SUM(R145:R149)","v":1},1,0,1,0,0,0,0,0]
[null,"Всего:",{"$f":"C21+C57+C70+C81+C91+C108+C117+C130+C144+C150","v":25},{"$f":"D21+D57+D70+D81+D91+D108+D117+D130+D144+D150","v":25},25,25,25,25,25,25,25,25,25,25,25,25,25,25,25,25,25,25,25,25,25,25]
[]
[null,"*** перенос указанных единиц в группе на другие периоды не допускается"]

{"sheet":"Прил.37 (ПП)","index":16,"n_rows":149,"n_cols":5,"rows_kept":149,"cut":false,"hidden":false,"merged":[[68,0,68,1],[79,0,79,1],[8,2,8,4],[6,0,6,4],[7,0,14,0],[7,2,7,4],[9,3,9,4],[10,3,10,4],[11,3,11,4],[14,2,14,4],[16,0,16,4],[19,0,19,1],[55,0,55,1],[7,1,14,1],[89,0,89,1],[106,0,106,1],[115,0,115,1],[128,0,128,1],[142,0,142,1]]}
[null,null,null,null,"Приложение № 37"]
[null,null,null,null,"УТВЕРЖДЕНО"]
[null,null,null,null,"приказом ФНС России"]
[null,null,null,null,"от \"   \"                 20  г."]
[null,null,null,null,"№"]
[]
["План-график дополнительного профессионального образования гражданских служащих  в \"Академии ФНС ЛАБ–Нева\" в 2025 году \n(очная форма обучения с применением дистанционных образовательных технологий и электронного обучения)"]
["№ п/п","Структурные подразделения ЦА ФНС России, УФНС России по субъектам РФ, межрегиональные инспекции ФНС России","Численность, человек"]
[null,null,"В том числе по программам профессиональной переподготовки с указанием продолжительности, группам и категориям должностей и периодам обучения"]
[null,null,"Менеджмент государственной гражданской службы ","Налоговое администрирование "]
[null,null,"(520 часов)","(520 часов)"]
[null,null,"24.02-14.03*","17.03-04.04*"]
[null,null,"05.05-23.05**","02.06-20.06**","23.06-11.07**"]
[null,null,"06.10-24.10**","27.10-14.11**","17.11-05.12**"]
[null,null,"* обучение с применением дистанционных образовательных технологий и электронного обучения (без выезда в образовательное учреждение);\n** обучение в очной форме"]
[1,2,3,4,5]
["Центральный аппарат ФНС России"]
[1,"Управление профессионального развития"]
[null,"Итого:",{"$f":"SUM(C18:C18)","v":0},{"$f":"SUM(D18:D18)","v":0},{"$f":"SUM(E18:E18)","v":0}]
["Центральный федеральный округ"]
[1,"Белгородская область"]
[2,"Брянская область"]
[3,"Владимирская область"]
[4,"Воронежская область",null,null,1]
[5,"г.Москва",2,3,2]
[6,"Ивановская область",null,1,1]
[7,"Калужская область"]
[8,"Костромская область"]
[9,"Курская область"]
[10,"Липецкая область"]
[11,"МИ ФНС России по камеральному контролю"]
[12,"МИ ФНС России по КН № 1"]
[13,"МИ ФНС России по КН № 2"]
[14,"МИ ФНС России по КН № 3",null,1]
[15,"МИ ФНС России по КН № 4"]
[16,"МИ ФНС России по КН № 5"]
[17,"МИ ФНС России по КН № 6"]
[18,"МИ ФНС России по КН № 7"]
[19,"МИ ФНС России по КН № 9"]
[20,"МИ ФНС России по КН № 10"]
[21,"МИ ФНС России по ценообразованию для целей налогообложения",1]
[22,"МИ ФНС России по Центральному ФО"]
[23,"МИ ФНС России по ЦОД"]
[24,"МИ ФНС России по ЦОД №2"]
[25,"МИ ФНС России по управлению долгом"]
[26,"МИ ФНС России по контролю и надзору за налогоплательщиками в сфере бюджетного финансирования",1]
[27,"Московская область"]
[28,"Орловская область"]
[29,"Рязанская область",null,1]
[30,"Смоленская область"]
[31,"Тамбовская область",null,1,1]
[32,"Тверская область"]
[33,"Тульская область"]
[34,"Ярославская область",null,null,1]
[null,"Итого:",{"$f":"SUM(C21:C54)","v":4},7,6]
["Северо-Западный федеральный округ",null,"",""]
[1,"Архангельская область и Ненецкий АО",1]
[2,"Вологодская область"]
[3,"г.Санкт- Петербург",1,1,2]
[4,"Калининградская область",1]
[5,"Ленинградская область",null,null,1]
[6,"МИ ФНС России по Северо-Западному ФО"]
[7,"Мурманская область",null,1,1]
[8,"Новгородская область",2]
[9,"Псковская область"]
[10,"Республика Карелия"]
[11,"Республика Коми"]
[null,"Итого:",{"$f":"SUM(C57:C67)","v":5},2,4]
["Южный федеральный округ",null,"",""]
[1,"Астраханская область"]
[2,"Волгоградская область",null,1]
[3,"г.Севастополь"]
[4,"Краснодарский край",null,1]
[5,"МИ ФНС России по Южному ФО",1]
[6,"Республика Адыгея"]
[7,"Республика Калмыкия"]
[8,"Республика Крым"]
[9,"Ростовская область",null,1,1]
[null,"Итого:",{"$f":"SUM(C70:C78)","v":1},3,1]
["Северо-Кавказский федеральный округ",null,"",""]
[1,"Кабардино- Балкарская Республика",null,null,1]
[2,"Карачаево- Черкесская Республика"]
[3,"МИ ФНС России по Северо-Кавказскому ФО"]
[4,"Республика Дагестан"]
[5,"Республика Ингушетия",null,1,1]
[6,"Республика Северная Осетия - Алания"]
[7,"Ставропольский край"]
[8,"Чеченская Республика"]
[null,"Итого:",{"$f":"SUM(C81:C88)","v":0},1,2]
["Приволжский федеральный округ",null,"",""]
[1,"Кировская область"]
[2,"МИ ФНС России по Приволжскому ФО"]
[3,"Нижегородская область",5]
[4,"Оренбургская область"]
[5,"Пензенская область"]
[6,"Пермский край",null,null,1]
[7,"Республика Башкортостан",2,2,2]
[8,"Республика Марий Эл"]
[9,"Республика Мордовия",null,1]
[10,"Республика Татарстан"]
[11,"Самарская область"]
[12,"Саратовская область",null,2,1]
[13,"Удмуртская Республика"]
[14,"Ульяновская область",null,null,1]
[15,"Чувашская Республика"]
[null,"Итого:",{"$f":"SUM(C91:C105)","v":7},5,5]
["Уральский федеральный округ",null,"",""]
[1,"Курганская область"]
[2,"МИ ФНС России по Уральскому ФО"]
[3,"Свердловская область",null,1]
[4,"Тюменская область"]
[5,"Ханты-Мансийский АО",null,1]
[6,"Челябинская область"]
[7,"Ямало-Ненецкий АО"]
[null,"Итого:",{"$f":"SUM(C108:C114)","v":0},2,0]
["Сибирский федеральный округ",null,"",""]
[1,"Алтайский край"]
[2,"Иркутская область",3,2,2]
[3,"Кемеровская область"]
[4,"Красноярский край"]
[5,"МИ ФНС России по Сибирскому ФО"]
[6,"Новосибирская область"]
[7,"Омская область",1]
[8,"Республика Алтай"]
[9,"Республика Тыва"]
[10,"Республика Хакасия",1]
[11,"Томская область",null,null,1]
[null,"Итого:",{"$f":"SUM(C117:C127)","v":5},2,3]
["Дальневосточный федеральный округ",null,"",""]
[1,"Амурская область"]
[2,"Еврейская АО",null,1]
[3,"Забайкальский край"]
[4,"Камчатский край"]
[5,"Магаданская область",null,null,1]
[6,"МИ ФНС России по Дальневосточному ФО"]
[7,"Приморский край"]
[8,"Республика Бурятия"]
[9,"Республика Саха (Якутия)",1,null,1]
[10,"Сахалинская область"]
[11,"Хабаровский край"]
[12,"Чукотский АО",1]
[null,"Итого:",{"$f":"SUM(C130:C141)","v":2},1,2]
["Новые территории Российской Федерации",null,"",""]
[1,"Донецкая Народная Республика"]
[2,"Запорожская область"]
[3,"Луганская Народная Республика",null,null,1]
[4,"Херсонская область",null,1]
[null,"Итого:",{"$f":"SUM(C144:C147)","v":0},1,1]
[null,"Всего:",{"$f":"C19+C142+C128+C106+C115+C89+C79+C68+C55+C148","v":24},{"$f":"D19+D142+D128+D106+D115+D89+D79+D68+D55+D148","v":24},{"$f":"E19+E142+E128+E106+E115+E89+E79+E68+E55+E148","v":24}]

{"sheet":"Прил.38 (ДО)","index":17,"n_rows":155,"n_cols":23,"rows_kept":155,"cut":false,"hidden":false,"merged":[[10,1,10,22],[6,0,6,22],[7,0,8,0],[7,1,7,22],[8,1,8,22],[9,1,9,22],[16,0,18,0],[16,1,18,1],[16,2,16,6],[16,8,16,12],[16,13,16,14],[11,1,11,22],[12,1,12,22],[13,1,13,22],[14,1,14,22],[15,1,15,22],[154,1,154,12],[16,15,16,19],[16,20,16,21],[16,22,18,22],[19,2,19,6],[19,8,19,12],[19,13,19,14],[19,15,19,19],[19,20,19,21]]}
[null,null,null,null,null,null,null,null,null,null,null,null,null,null,null,null,null,null,null,null,"Приложение № 38"]
[null,null,null,null,null,null,null,null,null,null,null,null,null,null,null,null,null,null,null,null,"УТВЕРЖДЕНО"]
[null,null,null,null,null,null,null,null,null,null,null,null,null,null,null,null,null,null,null,null,"приказом ФНС России"]
[null,null,null,null,null,null,null,null,null,null,null,null,null,null,null,null,null,null,null,null,"от \"   \"                 20  г."]
[null,null,null,null,null,null,null,null,null,null,null,null,null,null,null,null,null,null,null,null,"№"]
[]
["План-график дополнительного профессионального образования гражданских служащих  в \"Академии ФНС ЛАБ–Нева\" в 2025 году \n(заочная форма обучения с применением дистанционных образовательных технологий и электронного обучения)"]
["№ п/п","Количество человеко-часов"]
[null,"по программам повышения квалификации с указанием периодов обучения*"]
[1,"Электронный документооборот в деятельности налоговых органо, 16 часов"]
[2,"Методика проведения интервью. Распознавание личности, 24 часа"]
[3,"Эффективный наставник для руководителей: лучшие практики развития лидеров отрасли, 32 часа"]
[4,"Актуальные вопросы и особенности администрирования налогоплательщиков, осуществляющих добычу нефти и газа, 36 часов"]
[5,"Логика и теория аргументации, 36 часов"]
[6,"Администрирование имущественных налогов физических лиц, 48 часов"]
[7,"Администрирование имущественных налогов юридических лиц, 48 часов"]
["№ п/п","Структурные подразделения ЦА ФНС России, УФНС России по субъектам РФ, межрегиональные инспекции ФНС России","17.03-28.03",null,null,null,null,"14.04-25.04","19.05-30.05",null,null,null,null,"16.06-27.06",null,"29.09-10.10",null,null,null,null,"13.10-24.10",null,"Всего"]
[null,null,16,24,32,36,48,48,16,24,32,36,48,36,48,16,24,32,36,48,32,48]
[null,null,"часов","часа","часа","часов","часов","часов","часов","часа","часа","часов","часов","часов","часов","часов","часа","часа","часов","часов","часа","часов"]
[1,2,3,null,null,null,null,4,5,null,null,null,null,6,null,7,null,null,null,null,8,null,9]
["Центральный аппарат ФНС России"]
[1,"Управление профессионального развития",0,144,0,144,0,0,0,144,0,144,0,144,0,0,144,0,144,0,0,0,{"$f":"SUM(C22:V22)","v":1008}]
[null,"Итого:",{"$f":"SUM(C22:C22)","v":0},144,0,144,0,0,0,144,0,144,0,144,0,0,144,0,144,0,0,0,1008]
["Центральный федеральный округ"]
[1,"Белгородская область",48,0,0,180,144,192,0,0,0,180,144,180,192,0,0,0,180,144,0,192,{"$f":"SUM(C25:V25)","v":1776}]
[2,"Брянская область",32,0,0,36,48,48,16,0,0,72,48,72,48,32,0,0,72,48,0,48,620]
[3,"Владимирская область",16,24,0,72,96,48,32,0,0,72,96,72,48,16,24,0,72,96,0,48,832]
[4,"Воронежская область",64,72,0,180,240,240,16,72,0,180,240,180,240,16,48,0,144,192,0,240,2364]
[5,"г.Москва",848,144,64,576,1104,1104,224,144,96,576,1104,576,1104,224,144,64,576,1104,96,1104,10976]
[6,"Ивановская область",48,0,32,72,96,144,16,24,0,36,96,72,96,32,0,0,72,144,0,96,1076]
[7,"Калужская область",64,48,0,72,48,48,80,24,0,72,96,72,96,80,24,32,72,96,0,96,1120]
[8,"Костромская область",112,0,0,36,96,96,32,0,0,36,96,0,96,32,24,0,36,96,0,96,884]
[9,"Курская область",16,24,0,144,144,144,32,24,32,144,144,144,192,16,0,0,144,144,32,144,1664]
[10,"Липецкая область",128,24,32,72,96,96,16,24,0,108,96,72,96,32,48,32,72,96,0,48,1188]
[11,"МИ ФНС России по камеральному контролю",16,24,32,108,0,0,16,0,32,72,0,108,0,16,24,32,108,0,32,0,620]
[12,"МИ ФНС России по КН № 1",32,0,64,72,0,0,0,24,32,36,0,72,0,16,0,32,36,0,32,0,448]
[13,"МИ ФНС России по КН № 2",48,0,0,288,48,48,16,0,0,324,48,288,48,0,0,0,324,48,0,48,1576]
[14,"МИ ФНС России по КН № 3",32,24,0,108,0,0,16,0,0,144,0,108,0,0,0,0,144,0,0,0,576]
[15,"МИ ФНС России по КН № 4",16,0,0,72,48,48,32,24,0,36,0,36,0,16,0,0,36,0,0,48,412]
[16,"МИ ФНС России по КН № 5",16,24,0,72,0,0,0,0,0,36,0,72,0,0,24,0,36,0,0,0,280]
[17,"МИ ФНС России по КН № 6",32,0,0,36,96,48,32,0,32,72,96,36,96,16,24,0,36,96,0,96,844]
[18,"МИ ФНС России по КН № 7",0,24,0,0,0,0,0,24,0,36,48,36,0,0,24,32,36,48,0,48,356]
[19,"МИ ФНС России по КН № 9",32,0,0,72,48,48,32,0,0,36,48,72,96,16,0,0,36,48,0,96,680]
[20,"МИ ФНС России по КН № 10",0,0,0,0,48,0,0,0,0,0,0,0,0,0,0,0,36,0,0,0,84]
[21,"МИ ФНС России по ценообразованию для целей налогообложения",0,24,0,36,0,0,0,0,0,36,0,36,0,0,24,0,36,0,0,0,192]
[22,"МИ ФНС России по Центральному ФО",0,0,0,0,0,0,0,0,0,0,0,0,0,0,0,0,0,0,0,0,0]
[23,"МИ ФНС России по ЦОД",0,0,0,0,0,48,0,0,0,36,0,0,0,0,0,0,36,0,0,0,120]
[24,"МИ ФНС России по ЦОД №2",0,24,0,0,0,0,0,0,0,0,0,0,0,0,0,0,0,0,0,0,24]
[25,"МИ ФНС России по управлению долгом",0,0,0,0,0,0,0,24,0,0,0,36,0,0,24,0,0,0,0,0,84]
[26,"МИ ФНС России по контролю и надзору за налогоплательщиками в сфере бюджетного финансирования",0,0,0,36,0,0,0,0,0,0,0,0,0,0,0,0,0,0,0,0,36]
[27,"Московская область",112,96,32,324,720,672,128,96,32,288,720,324,672,128,96,32,288,720,64,672,6216]
[28,"Орловская область",32,0,32,0,0,48,32,48,0,36,48,36,48,16,24,0,36,48,0,48,532]
[29,"Рязанская область",112,0,64,72,144,144,0,0,64,36,96,72,96,16,0,96,72,96,64,96,1340]
[30,"Смоленская область",96,24,0,108,96,144,32,0,0,108,96,108,96,32,24,0,108,96,0,96,1264]
[31,"Тамбовская область",64,0,0,36,192,144,64,24,0,36,144,36,144,64,0,0,36,144,0,192,1320]
[32,"Тверская область",32,24,0,72,144,192,16,24,0,108,192,72,192,32,0,0,108,192,0,144,1544]
[33,"Тульская область",48,24,0,72,144,96,48,24,0,72,96,72,96,48,24,0,72,96,0,96,1128]
[34,"Ярославская область",240,0,0,108,96,96,0,0,0,72,144,72,144,0,0,0,72,144,0,96,1284]
[null,"Итого:",{"$f":"SUM(C25:C58)","v":2336},648,352,3132,3936,3936,928,624,320,3096,3936,3132,3936,896,624,352,3132,3936,320,3888,{"$f":"SUM(W25:W58)","v":43460}]
["Северо-Западный федеральный округ"]
[1,"Архангельская область и Ненецкий АО",80,24,0,324,48,48,80,48,32,360,48,360,48,96,48,0,360,48,0,0,{"$f":"SUM(C61:V61)","v":2052}]
[2,"Вологодская область",64,0,0,36,48,96,32,0,0,36,96,0,96,16,0,0,0,96,0,96,712]
[3,"г.Санкт- Петербург",176,96,32,288,528,528,80,96,32,324,480,288,480,96,120,32,288,480,64,480,4988]
[4,"Калининградская область",112,48,0,180,96,96,96,24,0,144,96,180,96,96,24,0,180,96,0,96,1660]
[5,"Ленинградская область",32,24,0,72,96,96,48,0,0,108,96,72,96,48,0,0,108,96,0,144,1136]
[6,"МИ ФНС России по Северо-Западному ФО",32,0,0,0,0,0,0,24,0,0,0,36,0,0,0,0,0,0,0,0,92]
[7,"Мурманская область",48,0,0,180,48,48,48,0,0,216,48,216,48,48,24,0,216,48,0,48,1284]
[8,"Новгородская область",144,24,0,36,96,48,32,24,0,36,96,72,48,32,0,0,72,96,0,48,904]
[9,"Псковская область",16,0,0,72,48,48,16,0,0,72,48,36,48,16,24,0,36,48,0,48,576]
[10,"Республика Карелия",32,0,32,36,48,96,16,24,0,36,48,72,96,16,24,0,72,48,0,96,792]
[11,"Республика Коми",112,0,0,216,96,96,0,0,32,252,96,252,96,0,0,0,252,96,0,144,1740]
[null,"Итого:",{"$f":"SUM(C61:C71)","v":848},216,64,1440,1152,1200,448,240,96,1584,1152,1584,1152,464,264,32,1584,1152,64,1200,{"$f":"SUM(W61:W71)","v":15936}]
["Южный федеральный округ"]
[1,"Астраханская область",16,0,0,0,96,96,0,0,0,0,96,0,48,16,0,0,0,96,0,96,{"$f":"SUM(C74:V74)","v":560}]
[2,"Волгоградская область",32,24,32,72,192,192,16,0,0,72,192,72,192,0,24,0,36,192,0,192,1532]
[3,"г.Севастополь",0,24,0,36,0,0,0,24,0,36,48,0,48,0,0,0,0,48,0,0,264]
[4,"Краснодарский край",112,0,0,72,528,528,64,0,0,72,480,72,528,64,24,32,36,480,32,528,3652]
[5,"МИ ФНС России по Южному ФО",16,24,0,36,0,0,0,24,0,36,0,0,0,0,0,0,36,0,0,0,172]
[6,"Республика Адыгея",0,0,0,0,0,0,0,0,0,0,48,0,0,0,0,0,0,0,0,0,48]
[7,"Республика Калмыкия",0,24,0,0,48,0,0,0,0,36,0,0,0,0,0,0,0,0,0,0,108]
[8,"Республика Крым",80,0,0,36,96,96,48,24,32,36,96,36,144,64,24,0,36,96,0,96,1040]
[9,"Ростовская область",48,24,32,108,624,576,32,24,32,144,624,108,576,16,24,32,108,624,32,576,4364]
[null,"Итого:",{"$f":"SUM(C74:C82)","v":304},120,64,360,1584,1488,160,96,64,432,1584,288,1536,160,96,64,252,1536,64,1488,11740]
["Северо-Кавказский федеральный округ"]
[1,"Кабардино- Балкарская Республика",0,0,0,36,0,0,0,0,0,36,0,36,48,0,0,0,0,48,0,0,{"$f":"SUM(C85:V85)","v":204}]
[2,"Карачаево- Черкесская Республика",16,24,0,0,48,48,0,0,0,0,48,0,48,0,0,0,36,48,0,0,316]
[3,"МИ ФНС России по Северо-Кавказскому ФО",16,0,0,36,0,0,0,24,0,0,0,0,0,0,24,0,36,0,0,0,136]
[4,"Республика Дагестан",32,24,0,36,96,144,0,0,0,0,96,0,144,0,0,0,0,96,0,144,812]
[5,"Республика Ингушетия",0,0,0,0,0,0,0,0,0,0,0,0,0,0,0,0,0,0,0,0,0]
[6,"Республика Северная Осетия - Алания",0,0,0,0,48,48,16,0,0,0,48,0,48,0,0,0,36,48,0,48,340]
[7,"Ставропольский край",224,0,0,144,480,432,80,24,0,108,480,144,480,80,24,0,144,480,32,432,3788]
[8,"Чеченская Республика",0,0,0,0,0,0,0,0,0,0,0,0,0,0,0,0,0,0,0,0,0]
[null,"Итого:",{"$f":"SUM(C85:C92)","v":288},48,0,252,672,672,96,48,0,144,672,180,768,80,48,0,252,720,32,624,{"$f":"SUM(W85:W92)","v":5596}]
["Приволжский федеральный округ"]
[1,"Кировская область",0,24,0,72,48,96,16,0,0,72,48,72,48,16,0,0,72,48,0,96,{"$f":"SUM(C95:V95)","v":728}]
[2,"МИ ФНС России по Приволжскому ФО",160,0,0,0,0,0,0,0,0,0,0,0,0,0,0,0,0,0,0,0,160]
[3,"Нижегородская область",112,48,32,144,240,288,48,48,32,144,240,144,288,64,24,0,180,240,0,288,2604]
[4,"Оренбургская область",144,0,0,180,144,192,80,0,0,144,144,144,192,80,24,0,144,144,0,192,1948]
[5,"Пензенская область",320,0,0,0,192,144,0,0,0,0,192,72,144,0,0,0,0,192,0,144,1400]
[6,"Пермский край",512,24,0,288,288,288,32,24,0,324,288,324,288,32,24,32,324,288,0,288,3668]
[7,"Республика Башкортостан",112,24,0,108,384,432,48,24,0,108,432,108,432,32,24,0,108,384,0,432,3192]
[8,"Республика Марий Эл",64,0,0,0,48,0,0,24,0,36,48,36,0,0,24,0,36,48,0,0,364]
[9,"Республика Мордовия",64,24,0,36,48,96,16,0,0,36,48,36,96,0,0,0,0,96,0,96,692]
[10,"Республика Татарстан",80,24,0,144,336,288,64,48,32,144,336,72,288,80,24,32,0,336,32,288,2648]
[11,"Самарская область",80,24,0,144,288,288,64,24,0,144,288,144,288,80,48,0,144,288,32,240,2608]
[12,"Саратовская область",16,0,0,0,96,144,32,0,0,36,96,108,96,16,0,0,108,96,0,96,940]
[13,"Удмуртская Республика",16,24,0,108,288,240,16,24,0,144,288,108,240,16,0,0,144,288,0,240,2184]
[14,"Ульяновская область",128,0,0,108,96,48,0,0,0,108,48,108,96,0,0,0,108,96,0,96,1040]
[15,"Чувашская Республика",0,0,0,36,0,0,0,0,0,0,0,0,0,0,24,0,0,0,0,0,60]
[null,"Итого:",{"$f":"SUM(C95:C109)","v":1808},216,32,1368,2496,2544,416,216,64,1440,2496,1476,2496,416,216,64,1368,2544,64,{"$f":"SUM(V95:V109)","v":2496},{"$f":"SUM(W95:W109)","v":24236}]
["Уральский федеральный округ"]
[1,"Курганская область",128,0,0,0,96,48,0,0,0,0,96,0,96,16,0,0,0,96,0,96,{"$f":"SUM(C112:V112)","v":672}]
[2,"МИ ФНС России по Уральскому ФО",0,0,0,36,0,0,0,0,0,72,0,36,0,0,0,0,36,0,0,48,228]
[3,"Свердловская область",544,24,0,216,288,288,80,48,0,216,288,216,288,80,48,0,216,288,0,288,3416]
[4,"Тюменская область",32,24,32,72,48,48,48,0,0,36,96,72,48,32,0,32,72,48,0,96,836]
[5,"Ханты-Мансийский АО",144,0,0,72,144,192,16,24,0,0,144,0,192,32,0,0,72,144,0,192,1368]
[6,"Челябинская область",272,72,0,216,336,384,176,48,32,180,384,216,384,160,48,0,216,336,32,384,3876]
[7,"Ямало-Ненецкий АО",32,0,0,72,48,96,16,0,0,72,48,72,48,32,0,32,72,48,0,96,784]
[null,"Итого:",{"$f":"SUM(C112:C118)","v":1152},120,32,684,960,1056,336,120,32,576,1056,612,1056,352,96,64,684,960,32,1200,11180]
["Сибирский федеральный округ"]
[1,"Алтайский край",96,0,0,72,144,144,64,24,0,72,144,72,144,48,24,0,72,144,0,144,{"$f":"SUM(C121:V121)","v":1408}]
[2,"Иркутская область",32,0,0,180,192,240,0,0,32,144,192,144,192,16,0,0,180,240,0,192,1976]
[3,"Кемеровская область",128,48,0,72,240,240,16,24,0,108,240,72,240,16,48,0,108,288,0,240,2128]
[4,"Красноярский край",496,48,0,180,192,144,48,48,0,216,144,180,192,64,48,0,216,192,0,192,2600]
[5,"МИ ФНС России по Сибирскому ФО",32,24,0,0,48,0,0,0,0,36,48,36,0,0,0,0,0,0,0,0,224]
[6,"Новосибирская область",160,24,0,72,336,288,48,24,0,108,288,108,288,48,24,0,108,288,0,288,2500]
[7,"Омская область",64,24,0,180,192,192,64,48,0,216,192,180,192,48,48,0,216,144,0,192,2192]
[8,"Республика Алтай",32,0,32,36,0,48,0,24,0,36,48,36,48,0,0,0,36,0,0,0,376]
[9,"Республика Тыва",208,24,0,36,96,48,0,24,0,0,48,0,48,16,0,0,36,48,0,48,680]
[10,"Республика Хакасия",16,0,0,0,0,0,16,0,0,36,48,0,0,0,0,0,0,48,0,48,212]
[11,"Томская область",48,0,0,108,0,48,0,0,0,108,48,108,0,16,24,0,108,0,0,0,616]
[null,"Итого:",{"$f":"SUM(C121:C131)","v":1312},192,32,936,1440,1392,256,216,32,1080,1440,936,1344,272,216,0,1080,1392,0,1344,{"$f":"SUM(W121:W131)","v":14912}]
["Дальневосточный федеральный округ"]
[1,"Амурская область",272,24,0,36,96,48,0,0,0,0,96,0,48,0,0,0,0,96,0,0,{"$f":"SUM(C134:V134)","v":716}]
[2,"Еврейская АО",16,0,0,0,0,0,0,0,0,0,0,0,0,0,0,0,0,0,0,0,16]
[3,"Забайкальский край",272,24,32,36,48,96,16,24,0,36,96,72,48,16,24,0,36,96,0,96,1068]
[4,"Камчатский край",32,0,0,36,48,48,16,0,0,36,0,36,48,0,24,0,36,48,0,48,456]
[5,"Магаданская область",16,0,0,108,0,48,0,0,0,36,0,36,48,0,0,0,0,0,0,0,292]
[6,"МИ ФНС России по Дальневосточному ФО",16,0,0,72,48,0,0,0,0,36,48,72,0,0,0,0,72,48,0,48,460]
[7,"Приморский край",528,24,0,72,144,192,48,24,0,72,144,72,192,48,24,0,36,144,0,192,1956]
[8,"Республика Бурятия",112,0,0,36,0,0,0,0,0,36,48,36,0,16,0,32,72,0,0,0,388]
[9,"Республика Саха (Якутия)",128,0,0,72,48,48,16,24,0,72,48,72,48,0,0,0,36,48,0,48,708]
[10,"Сахалинская область",16,0,0,0,96,48,0,0,0,0,48,0,48,0,24,0,0,48,0,48,376]
[11,"Хабаровский край",0,0,0,144,48,48,0,0,0,180,48,180,48,0,0,0,180,48,0,48,972]
[12,"Чукотский АО",0,0,0,36,0,0,0,0,0,0,0,0,0,16,0,0,0,0,0,0,52]
[null,"Итого:",{"$f":"SUM(C134:C145)","v":1408},72,32,648,576,576,96,72,0,504,576,576,528,96,96,32,468,576,0,528,{"$f":"SUM(W134:W145)","v":7460}]
["Новые территории Российской Федерации"]
[1,"Донецкая Народная Республика",128,24,0,36,48,48,32,0,0,36,48,72,96,32,0,0,72,96,0,96,{"$f":"SUM(C148:V148)","v":864}]
[2,"Запорожская область",0,0,0,36,48,48,16,0,0,0,48,0,0,16,24,0,0,0,0,0,{"$f":"SUM(C149:V149)","v":236}]
[3,"Луганская Народная Республика",288,72,32,108,288,240,48,96,32,108,240,144,240,64,72,32,108,240,32,240,{"$f":"SUM(C150:V150)","v":2724}]
[4,"Херсонская область",0,0,0,0,0,48,0,0,0,0,0,0,48,16,0,0,0,48,0,48,{"$f":"SUM(C151:V151)","v":208}]
[null,"Итого:",416,{"$f":"SUM(D148:D151)","v":96},32,180,384,384,96,96,32,144,336,216,384,128,96,32,180,384,32,384,4032]
[null,"Всего:",{"$f":"C23+C59+C72+C83+C93+C110+C119+C132+C146+C152","v":9872},1872,640,9144,13200,13248,2832,1872,640,9144,13248,9144,13200,2864,1896,640,9144,13200,608,13152,{"$f":"W23+W59+W72+W83+W93+W110+W119+W132+W146+W152","v":139560}]
[]
["*","Структурные подразделения  ЦА ФНС России и ТНО ФНС России выбирают самостоятельно из перечня учебные программы для обучающихся, исходя из указанных человеко-часов"]

{"sheet":"Прил.39 (ДО)","index":18,"n_rows":171,"n_cols":22,"rows_kept":171,"cut":false,"hidden":false,"merged":[[170,1,170,21],[32,15,32,17],[32,18,32,20],[32,21,34,21],[35,2,35,3],[35,4,35,5],[35,6,35,8],[35,9,35,11],[35,12,35,14],[35,15,35,17],[35,18,35,20],[29,1,29,21],[30,1,30,21],[31,1,31,21],[32,0,34,0],[32,1,34,1],[32,2,32,3],[32,4,32,5],[32,6,32,8],[32,9,32,11],[32,12,32,14],[28,1,28,21],[17,1,17,21],[18,1,18,21],[19,1,19,21],[20,1,20,21],[21,1,21,21],[22,1,22,21],[23,1,23,21],[24,1,24,21],[25,1,25,21],[26,1,26,21],[27,1,27,21],[16,1,16,21],[6,0,6,21],[7,0,8,0],[7,1,7,21],[8,1,8,21],[9,1,9,21],[10,1,10,21],[11,1,11,21],[12,1,12,21],[13,1,13,21],[14,1,14,21],[15,1,15,21]]}
[null,null,null,null,null,null,null,null,null,null,null,null,null,null,null,null,null,null,"Приложение № 39"]
[null,null,null,null,null,null,null,null,null,null,null,null,null,null,null,null,null,null,"УТВЕРЖДЕН"]
[null,null,null,null,null,null,null,null,null,null,null,null,null,null,null,null,null,null,"Приказом ФНС России"]
[null,null,null,null,null,null,null,null,null,null,null,null,null,null,null,null,null,null,"от \"   \"                 20  г."]
[null,null,null,null,null,null,null,null,null,null,null,null,null,null,null,null,null,null,"№ "]
[]
["План-график дополнительного профессионального образования гражданских служащих в  в \"Академии ФНС ЛАБ–Нева\" в 2025 году \n(заочная форма обучения с применением дистанционных образовательных технологий и электронного обучения)"]
["№ п/п","Количество человеко-часов"]
[null,"по программам повышения квалификации с указанием периодов обучения*"]
[1,"Администрирование акцизов, 56 часов"]
[{"$f":"A10+1","v":2},"Администрирование налога на добычу полезных ископаемых, ресурсных платежей, 56 часов"]
[{"$f":"A11+1","v":3},"Организация делопроизводства и архивного дела, 56 часов"]
[4,"Предупреждение коррупции на государственной службе, 56 часов"]
[5,"Администрирование страховых взносов (базовый уровень), 72 часа"]
[6,"Администрирование страховых взносов (повышенный уровень), 72 часа"]
[7,"Анализ и прогнозирование налоговых и неналоговых поступлений в бюджетную систему Российской Федерации (базовый уровень), 72 часа"]
[8,"Анализ и прогнозирование налоговых и неналоговых поступлений в бюджетную систему Российской Федерации (повышенный уровень), 72 часа"]
[9,"Досудебное урегулирование налоговых споров, 72 часа"]
[10,"Инструменты анализа данных в современных офисных приложениях. Анализ больших данных, 72 часа"]
[11,"Личностное и профессиональное развитие руководителя. Современные коммуникации, 72 часа"]
[12,"Налогообложение доходов физических лиц (повышенный уровень), 72 часа"]
[13,"Наставничество в системе налоговой службы, 72 часа"]
[14,"Проектное управление, 72 часа"]
[15,"Совершенствование навыков письменной деловой коммуникации, 72 часа"]
[16,"Школа кадровика (базовый уровень), 72 часа"]
[17,"Эффективное взаимодействие с налогоплательщиками (базовый уровень), 72 часа"]
[18,"Анализ финансовой деятельности в целях налогового контроля (базовый уровень), 96 часов"]
[19,"Анализ финансовой деятельности в целях налогового контроля (повышенный уровень), 96 часов"]
[20,"Контроль и надзор за применением контрольно-кассовой техники и полнотой учета выручки. Контроль за использованием специальных банковских счетов (базовый уровень), 96 часов"]
[21,"Налогообложение при применении специальных налоговых режимов (базовый уровень), 96 часов"]
[22,"Налогообложение при применении специальных налоговых режимов (повышенный уровень), 96 часов"]
[23,"Учебный доктринальный курс по правовым и судебным аспектам деятельности налоговых органов (повышенный уровень), 96 часов"]
["№ п/п","Структурные подразделения ЦА ФНС России, УФНС России по субъектам РФ, межрегиональные инспекции ФНС России","03.03-28.03",null,"31.03-25.04",null,"28.04-30.05",null,null,"02.06-27.06",null,null,"11.08-05.09",null,null,"15.09-10.10",null,null,"20.10-14.11",null,null,"Всего"]
[null,null,72,96,72,96,56,72,96,56,72,96,56,72,96,56,72,96,56,72,96]
[null,null,"часа","часов","часа","часов","часов","часа","часов","часов","часа","часов","часов","часа","часов","часов","часа","часов","часов","часа","часов"]
[1,2,3,null,4,null,5,null,null,6,null,null,7,null,null,8,null,null,9,null,null,10]
["Центральный аппарат ФНС России"]
[1,"Управление профессионального развития",288,0,288,0,112,288,192,112,288,96,112,288,0,112,216,0,0,216,0,{"$f":"SUM(C38:U38)","v":2608}]
[null,"Итого:",{"$f":"SUM(C38:C38)","v":288},0,288,0,112,288,192,112,288,96,112,288,0,112,216,0,0,216,0,2608]
["Центральный федеральный округ"]
[1,"Белгородская область",288,288,2304,192,224,3384,192,224,288,192,224,216,192,168,216,192,224,216,192,{"$f":"SUM(C41:U41)","v":9416}]
[2,"Брянская область",576,288,1584,288,168,1512,288,112,504,288,112,504,384,168,504,384,112,504,384,8664]
[3,"Владимирская область",504,288,2232,384,168,2448,384,168,432,384,168,432,384,168,432,384,112,432,384,10288]
[4,"Воронежская область",720,0,1224,480,224,2664,480,280,720,480,224,720,480,224,720,480,224,648,384,11376]
[5,"г.Москва",5112,2688,16416,2592,1624,40392,2592,1624,5040,2592,1624,5040,2592,1624,5040,2592,1624,5040,2592,108440]
[6,"Ивановская область",288,0,432,192,0,2232,192,0,288,192,0,288,192,112,216,0,112,216,0,4952]
[7,"Калужская область",504,0,504,0,56,432,288,56,432,192,56,432,192,0,432,192,0,432,192,4392]
[8,"Костромская область",936,0,2880,288,168,5904,288,168,936,288,168,936,288,168,936,288,168,936,192,15936]
[9,"Курская область",864,288,1800,0,168,1584,288,112,864,288,112,864,288,168,792,288,112,792,288,9960]
[10,"Липецкая область",1008,288,1368,0,224,5976,192,224,1008,192,224,1008,192,224,1008,192,224,936,192,14680]
[11,"МИ ФНС России по камеральному контролю",216,0,216,0,0,288,0,0,216,288,0,216,0,168,216,0,0,216,0,2040]
[12,"МИ ФНС России по КН № 1",288,0,1008,0,0,2592,0,0,288,0,168,288,288,0,288,0,0,216,0,5424]
[13,"МИ ФНС России по КН № 2",288,0,2016,288,224,4176,288,224,288,192,112,216,192,0,216,192,0,216,192,9320]
[14,"МИ ФНС России по КН № 3",504,0,936,288,0,1944,288,0,432,288,168,432,288,168,432,192,112,432,0,6904]
[15,"МИ ФНС России по КН № 4",216,0,1368,0,0,1656,0,224,144,0,0,144,0,0,144,192,0,144,192,4424]
[16,"МИ ФНС России по КН № 5",216,0,216,192,168,1008,192,168,144,192,168,144,192,168,144,0,168,144,0,3624]
[17,"МИ ФНС России по КН № 6",432,0,576,192,168,360,0,112,360,192,0,360,0,0,360,192,0,360,0,3664]
[18,"МИ ФНС России по КН № 7",288,0,288,0,0,216,192,0,216,192,168,216,192,0,216,192,0,216,192,2784]
[19,"МИ ФНС России по КН № 9",216,0,216,0,0,432,0,0,288,192,0,288,192,112,288,0,0,288,0,2512]
[20,"МИ ФНС России по КН № 10",0,0,0,0,112,0,0,168,0,0,168,0,0,112,144,0,168,144,0,1016]
[21,"МИ ФНС России по ценообразованию для \nцелей налогообложения",0,0,144,192,0,144,192,168,144,192,0,144,192,null,0,192,0,0,0,1704]
[22,"МИ ФНС России по Центральному ФО",144,null,144,0,0,0,0,0,0,0,56,0,0,0,0,192,0,0,192,728]
[23,"МИ ФНС России по ЦОД",0,0,0,0,0,144,0,null,144,0,0,144,0,112,72,0,112,0,0,728]
[24,"МИ ФНС России по ЦОД №2",0,0,0,0,0,144,0,0,0,0,0,0,0,0,72,0,0,0,0,216]
[25,"МИ ФНС России по управлению долгом",0,192,792,192,112,792,0,0,144,0,0,144,0,0,144,0,0,144,0,2656]
[26,"МИ ФНС России по контролю и надзору за \nналогоплательщиками в сфере бюджетного финансирования",0,0,216,0,0,216,0,0,0,0,0,0,0,0,0,0,0,0,0,432]
[27,"Московская область",2808,1728,11376,1728,560,12168,1728,560,2880,1728,560,2880,1728,560,2808,1728,560,2808,1728,52624]
[28,"Орловская область",360,0,432,192,112,2376,192,168,360,192,168,360,192,112,432,192,112,432,192,6576]
[29,"Рязанская область",936,288,936,288,224,3600,288,280,864,288,224,864,288,224,864,288,224,864,288,12120]
[30,"Смоленская область",720,288,2232,288,224,4680,288,224,720,192,224,720,288,224,720,288,168,648,288,13424]
[31,"Тамбовская область",432,480,1296,0,56,2952,480,112,432,480,0,360,480,56,360,480,0,360,480,9296]
[32,"Тверская область",720,384,1008,0,112,720,384,168,720,384,168,720,384,112,720,384,112,720,288,8208]
[33,"Тульская область",504,0,504,288,0,648,288,168,432,288,0,432,288,0,432,288,0,432,192,5184]
[34,"Ярославская область",720,384,1944,480,168,2088,0,168,648,384,112,648,384,168,648,384,168,648,384,10528]
[null,"Итого:",{"$f":"SUM(C41:C74)","v":20808},7872,58608,9024,5264,109872,9984,5880,20376,10752,5376,20160,10752,5320,20016,10368,4816,19584,9408,{"$f":"SUM(V41:V74)","v":364240}]
["Северо-Западный федеральный округ"]
[1,"Архангельская область и Ненецкий АО",936,0,4464,384,112,27792,288,168,864,288,112,864,288,168,864,288,112,864,288,{"$f":"SUM(C77:U77)","v":39144}]
[2,"Вологодская область",432,0,648,288,224,1296,288,280,432,288,224,432,288,224,360,288,224,360,288,6864]
[3,"г.Санкт- Петербург",2592,1248,12888,1248,672,8784,1248,672,2592,1248,616,2592,1152,672,2592,1152,616,2592,1152,46328]
[4,"Калининградская область",1152,288,2232,384,224,2016,288,280,1152,0,280,1152,288,280,1152,288,224,1080,288,13048]
[5,"Ленинградская область",720,0,3384,288,224,5112,288,224,720,192,224,648,192,224,648,192,168,648,192,14288]
[6,"МИ ФНС России по Северо-Западному ФО",0,0,0,0,112,288,0,0,0,192,0,0,0,0,144,0,0,144,0,880]
[7,"Мурманская область",288,0,288,0,112,1440,192,168,288,192,168,288,288,168,216,288,112,216,288,5000]
[8,"Новгородская область",360,0,1584,288,0,5112,288,0,360,288,0,432,288,0,432,288,56,432,192,10400]
[9,"Псковская область",504,0,648,0,0,7056,288,56,504,288,56,504,0,56,504,0,0,504,0,10968]
[10,"Республика Карелия",576,0,1440,0,112,1368,192,168,504,192,112,504,288,112,504,288,168,504,288,7320]
[11,"Республика Коми",1296,576,4608,672,224,4608,672,224,1224,672,224,1224,672,224,1224,0,280,1224,576,20424]
[null,"Итого:",{"$f":"SUM(C77:C87)","v":8856},2112,32184,3552,2016,64872,4032,2240,8640,3840,2016,8640,3744,2128,8640,3072,1960,8568,3552,174664]
["Южный федеральный округ"]
[1,"Астраханская область",144,0,144,0,0,1800,0,112,144,0,0,216,0,0,216,288,0,216,192,{"$f":"SUM(C90:U90)","v":3472}]
[2,"Волгоградская область",1008,672,2016,672,392,2304,672,392,864,672,392,864,576,392,936,576,392,936,576,15304]
[3,"г.Севастополь",216,0,936,0,0,504,0,0,216,0,168,216,288,0,216,192,0,72,192,3216]
[4,"Краснодарский край",1512,768,2664,672,616,2304,672,616,1440,672,616,1440,672,616,1440,672,560,1440,672,20064]
[5,"МИ ФНС России по Южному ФО",0,0,0,192,0,360,192,0,144,192,0,144,192,112,144,192,0,144,0,2008]
[6,"Республика Адыгея",144,192,216,0,0,504,0,0,144,192,0,144,288,0,0,288,224,0,288,2624]
[7,"Республика Калмыкия",144,0,144,288,0,504,0,0,216,0,0,144,0,0,144,0,0,144,0,1728]
[8,"Республика Крым",648,0,7272,768,280,7272,768,224,576,768,280,576,768,280,576,768,224,576,768,23392]
[9,"Ростовская область",1512,0,4248,1248,560,10728,1248,616,1440,1248,616,1440,1248,616,1440,1152,616,1440,1152,32568]
[null,"Итого:",{"$f":"SUM(C90:C98)","v":5328},1632,17640,3840,1848,26280,3552,1960,5184,3744,2072,5184,4032,2016,5112,4128,2016,4968,3840,104376]
["Северо-Кавказский федеральный округ"]
[1,"Кабардино- Балкарская Республика",288,0,288,192,0,216,0,0,216,0,0,216,0,0,216,0,0,216,0,{"$f":"SUM(C101:U101)","v":1848}]
[2,"Карачаево- Черкесская Республика",144,192,216,0,0,504,192,0,216,192,0,216,192,0,216,192,0,216,192,2880]
[3,"МИ ФНС России по Северо-Кавказскому ФО",0,0,0,0,0,216,0,0,144,0,56,144,0,0,144,0,0,null,288,992]
[4,"Республика Дагестан",432,480,432,576,0,936,576,0,432,576,0,360,0,112,360,480,0,360,480,6592]
[5,"Республика Ингушетия",0,0,72,0,0,288,0,0,0,0,0,144,0,0,0,0,0,0,192,696]
[6,"Республика Северная Осетия - Алания",216,0,216,192,0,216,192,0,144,192,112,144,192,168,144,192,168,144,192,2824]
[7,"Ставропольский край",1584,1152,4536,0,560,3888,1152,616,1584,1152,616,1512,1056,616,1512,1056,560,1512,1056,25720]
[8,"Чеченская Республика",0,0,216,0,0,144,0,0,144,288,0,144,0,0,144,0,0,144,0,1224]
[null,"Итого:",{"$f":"SUM(C101:C108)","v":2664},1824,5976,960,560,6408,2112,616,2880,2400,784,2880,1440,896,2736,1920,728,2592,2400,42776]
["Приволжский федеральный округ"]
[1,"Кировская область",864,192,1080,192,168,2088,288,224,792,288,224,792,288,224,792,288,224,792,288,{"$f":"SUM(C111:U111)","v":10088}]
[2,"МИ ФНС России по Приволжскому ФО",0,0,864,0,0,648,0,0,0,0,0,0,0,0,0,0,0,0,0,1512]
[3,"Нижегородская область",1656,960,3816,960,392,5400,960,392,1584,864,448,1584,864,448,1584,864,448,1584,864,25672]
[4,"Оренбургская область",1080,576,4464,576,336,6912,576,336,1080,576,336,1080,576,336,1152,576,336,1152,480,22536]
[5,"Пензенская область",576,192,720,0,168,5904,0,168,504,288,168,504,288,168,504,288,112,504,288,11344]
[6,"Пермский край",2160,672,8568,672,336,2160,672,280,2160,672,280,2088,576,280,2088,576,280,2088,576,27184]
[7,"Республика Башкортостан",1440,576,4104,576,448,6048,576,448,1440,480,504,1440,480,504,1368,480,448,1368,480,23208]
[8,"Республика Марий Эл",216,0,432,192,0,3744,192,0,144,288,168,144,192,0,144,0,168,144,0,6168]
[9,"Республика Мордовия",648,288,1080,288,112,648,288,112,648,288,112,720,384,112,720,384,0,720,384,7936]
[10,"Республика Татарстан",1296,768,2304,768,560,4392,768,560,1296,768,560,1296,768,560,1296,672,560,1296,672,21160]
[11,"Самарская область",1152,576,1440,576,392,2088,576,392,1080,480,392,1080,480,448,1080,480,448,1080,480,14720]
[12,"Саратовская область",504,384,1152,384,224,864,384,224,504,384,224,504,288,224,504,288,168,432,288,7928]
[13,"Удмуртская Республика",720,576,720,576,168,1440,576,224,648,576,224,648,480,224,648,480,168,648,480,10224]
[14,"Ульяновская область",504,0,504,384,112,1944,384,112,504,384,112,504,288,112,432,288,0,432,288,7288]
[15,"Чувашская Республика",576,0,576,0,0,504,0,0,504,0,112,504,0,168,504,0,112,504,0,4064]
[null,"Итого:",{"$f":"SUM(C111:C125)","v":13392},5760,31824,6144,3416,44784,6240,3472,12888,6336,3864,12888,5952,3808,12816,5664,3472,12744,5568,201032]
["Уральский федеральный округ"]
[1,"Курганская область",216,0,1008,0,0,648,0,112,216,288,168,216,0,0,216,0,0,216,0,{"$f":"SUM(C128:U128)","v":3304}]
[2,"МИ ФНС России по Уральскому ФО",0,0,144,0,0,144,0,0,144,0,0,144,96,112,144,0,112,144,0,1184]
[3,"Свердловская область",1800,864,11016,864,392,13464,768,392,1728,768,448,1728,768,448,1728,768,392,1728,768,40832]
[4,"Тюменская область",576,0,2808,0,168,8208,0,224,576,288,168,576,288,168,576,288,168,648,0,15728]
[5,"Ханты-Мансийский АО",792,384,4752,384,224,1296,384,224,864,384,224,864,384,280,864,384,224,864,288,14064]
[6,"Челябинская область",1728,864,7632,864,448,1656,864,448,1656,864,448,1656,768,448,1656,768,448,1656,768,25640]
[7,"Ямало-Ненецкий АО",576,288,648,288,0,1008,192,112,504,192,112,504,192,0,504,192,0,504,192,6008]
[null,"Итого:",{"$f":"SUM(C128:C134)","v":5688},2400,28008,2400,1232,26424,2208,1512,5688,2784,1568,5688,2496,1456,5688,2400,1344,5760,2016,106760]
["Сибирский федеральный округ"]
[1,"Алтайский край",576,576,1368,576,224,1008,576,224,576,480,224,576,480,224,576,480,168,576,480,{"$f":"SUM(C137:U137)","v":9968}]
[2,"Иркутская область",1080,480,1368,384,280,1008,384,336,1008,384,336,1008,384,280,1008,384,280,1008,384,11784]
[3,"Кемеровская область",1584,768,4464,768,672,2016,672,728,1512,672,672,1512,672,672,1512,672,672,1512,672,22424]
[4,"Красноярский край",1080,384,3024,384,224,2664,384,280,1224,384,224,1224,384,280,1224,384,280,1224,288,15544]
[5,"МИ ФНС России по Сибирскому ФО",0,0,432,0,168,792,0,168,144,0,0,144,0,0,0,96,0,0,0,1944]
[6,"Новосибирская область",1152,576,1512,576,280,1584,576,280,1080,576,280,1080,480,224,1080,480,224,1080,480,13600]
[7,"Омская область",1224,0,3744,288,280,1656,288,280,1224,288,280,1224,288,280,1152,192,280,1152,192,14312]
[8,"Республика Алтай",216,0,792,0,0,576,0,0,144,0,0,144,0,112,144,96,168,144,0,2536]
[9,"Республика Тыва",360,0,1872,0,0,792,0,112,360,192,168,288,192,0,288,192,0,288,192,5296]
[10,"Республика Хакасия",0,0,0,0,168,648,96,0,144,0,0,0,0,0,0,0,0,0,0,1056]
[11,"Томская область",432,0,2664,0,0,864,0,0,432,192,0,432,192,168,432,192,168,360,192,6720]
[null,"Итого:",{"$f":"SUM(C137:C147)","v":7704},2784,21240,2976,2296,13608,2976,2408,7848,3168,2184,7632,3072,2240,7416,3168,2240,7344,2880,105184]
["Дальневосточный федеральный округ"]
[1,"Амурская область",432,0,1584,192,168,648,288,0,360,192,0,360,0,0,360,0,0,360,0,{"$f":"SUM(C150:U150)","v":4944}]
[2,"Еврейская АО",0,0,144,0,0,144,0,168,0,0,168,0,288,168,0,0,168,0,0,1248]
[3,"Забайкальский край",720,0,1080,288,112,648,288,112,720,288,168,648,288,0,648,192,112,648,0,6960]
[4,"Камчатский край",360,0,360,0,168,648,0,168,360,0,168,360,0,168,360,0,168,288,96,3672]
[5,"Магаданская область",144,0,864,0,112,648,0,112,216,0,112,216,0,112,216,0,112,216,288,3368]
[6,"МИ ФНС России по Дальневосточному ФО",144,0,288,0,0,576,0,0,144,0,0,216,0,0,0,192,56,0,0,1616]
[7,"Приморский край",432,288,2952,288,224,864,288,168,432,288,224,432,288,168,432,192,168,504,192,8824]
[8,"Республика Бурятия",216,0,360,0,112,648,0,112,216,0,112,216,0,112,144,192,112,144,0,2696]
[9,"Республика Саха (Якутия)",432,288,1584,288,0,864,192,112,432,192,112,432,192,112,432,192,112,360,288,6616]
[10,"Сахалинская область",216,0,360,0,112,648,0,168,144,0,168,144,96,112,144,0,112,144,0,2568]
[11,"Хабаровский край",432,384,576,288,0,360,288,0,360,288,0,360,288,0,360,288,168,360,288,5088]
[12,"Чукотский АО",0,0,0,0,0,432,0,168,216,0,168,144,192,0,144,0,0,144,0,1608]
[null,"Итого:",{"$f":"SUM(C150:C161)","v":3528},960,10152,1344,1008,7128,1344,1288,3600,1248,1400,3528,1632,952,3240,1248,1288,3168,1152,{"$f":"SUM(V150:V161)","v":49208}]
["Новые территории Российской Федерации"]
[1,"Донецкая Народная Республика",576,384,936,384,112,936,384,168,576,384,168,576,288,168,576,288,112,504,192,{"$f":"SUM(C164:U164)","v":7712}]
[2,"Запорожская область",144,0,144,0,112,144,192,112,144,192,112,144,192,112,144,192,0,144,192,{"$f":"SUM(C165:U165)","v":2416}]
[3,"Луганская Народная Республика",936,0,1296,576,224,1224,576,224,864,576,224,864,576,224,864,576,224,864,384,{"$f":"SUM(C166:U166)","v":11296}]
[4,"Херсонская область",0,0,0,0,null,0,0,0,360,192,0,0,0,0,0,0,0,0,0,{"$f":"SUM(C167:U167)","v":552}]
[null,"Итого:",{"$f":"SUM(C164:C167)","v":1656},{"$f":"SUM(D164:D167)","v":384},2376,960,448,2304,1152,504,1944,1344,504,1584,1056,504,1584,1056,336,1512,768,{"$f":"SUM(V164:V167)","v":21976}]
[null,"Всего:",{"$f":"C168+C162+C148+C135+C126+C109+C99+C88+C75+C39","v":69912},25728,208296,31200,18200,301968,33792,19992,69336,35712,19880,68472,34176,19432,67464,33024,18200,66456,31584,{"$f":"V168+V162+V148+V135+V126+V109+V99+V88+V75+V39","v":1172824}]
[]
["*","Структурные подразделения  ЦА ФНС России и ТНО ФНС России выбирают самостоятельно из перечня учебные программы для обучающихся, исходя из указанных человеко-часов"]

{"sheet":"Прил.40 (ДО)","index":19,"n_rows":160,"n_cols":15,"rows_kept":160,"cut":false,"hidden":false,"merged":[[159,1,159,14],[21,10,21,11],[21,12,21,13],[21,14,23,14],[24,2,24,3],[24,4,24,5],[24,6,24,7],[24,8,24,9],[24,10,24,11],[24,12,24,13],[17,1,17,14],[18,1,18,14],[19,1,19,14],[20,1,20,14],[21,0,23,0],[21,1,23,1],[21,2,21,3],[21,4,21,5],[21,6,21,7],[21,8,21,9],[16,1,16,14],[6,0,6,14],[7,0,8,0],[7,1,7,14],[8,1,8,14],[9,1,9,14],[10,1,10,14],[11,1,11,14],[12,1,12,14],[13,1,13,14],[14,1,14,14],[15,1,15,14]]}
[null,null,null,null,null,null,null,null,null,null,null,null,null,"Приложение № 40"]
[null,null,null,null,null,null,null,null,null,null,null,null,null,"УТВЕРЖДЕН"]
[null,null,null,null,null,null,null,null,null,null,null,null,null,"Приказом ФНС России"]
[null,null,null,null,null,null,null,null,null,null,null,null,null,"от \"      \"                   202    г."]
[null,null,null,null,null,null,null,null,null,null,null,null,null,"№ "]
[]
["План-график дополнительного профессионального образования гражданских служащих в \"Академии ФНС ЛАБ–Нева\" в 2025 году \n(заочная форма обучения с применением дистанционных образовательных технологий и электронного обучения)"]
["№ п/п","Количество человеко-часов"]
[null,"по программам повышения квалификации с указанием периодов обучения*"]
[1,"Организация и осуществление внутреннего финансового аудита, 72 часа"]
[{"$f":"A10+1","v":2},"Организация и технология проведения камеральных налоговых проверок (базовый уровень), 72 часа"]
[3,"Организация и технология проведения камеральных налоговых проверок (повышенный уровень), 72 часа"]
[4,"Планирование, организация и проведение выездных налоговых проверок (базовый уровень), 72 часа"]
[5,"Планирование, организация и проведение выездных налоговых проверок (повышенный уровень), 72 часа"]
[6,"Контрольно-аналитическая работа налоговых органов по устранению «налоговых разрывов», 96 часов"]
[7,"Налог на добавленную стоимость (базовый уровень), 96 часов"]
[8,"Налог на добавленную стоимость (повышенный уровень), 96 часов"]
[9,"Обеспечение процедур банкротства (базовый уровень), 96 часов"]
[10,"Обеспечение процедур банкротства (повышенный уровень), 96 часов"]
[11,"Формирование доказательственной базы при выявлении нарушений пределов осуществления прав по исчислению налоговой базы и (или) суммы налога, сбора, страховых взносов (базовый уровень), 96 часов"]
[12,"Формирование доказательственной базы при выявлении нарушений пределов осуществления прав по исчислению налоговой базы и (или) суммы налога, сбора, страховых взносов (повышенный уровень) , 96 часов"]
["№ п/п","Структурные подразделения ЦА ФНС России, УФНС России по субъектам РФ, межрегиональные инспекции ФНС России","31.03-25.04",null,"28.04-30.05",null,"02.06-27.06",null,"11.08-05.09",null,"15.09-10.10",null,"20.10-14.11",null,"Всего"]
[null,null,72,96,72,96,72,96,72,96,72,96,72,96]
[null,null,"часа","часов","часа","часов","часа","часов","часа","часов","часа","часов","часа","часов"]
[1,2,3,null,4,null,5,null,6,null,7,null,8,null,9]
["Центральный аппарат ФНС России"]
[1,"Управление профессионального развития",72,192,0,192,72,96,72,192,72,192,72,96,{"$f":"SUM(C27:N27)","v":1320}]
[null,"Итого:",{"$f":"SUM(C27:C27)","v":72},192,0,192,72,96,72,192,72,192,72,96,1320]
["Центральный федеральный округ"]
[1,"Белгородская область",72,864,0,768,0,672,72,672,0,768,0,768,{"$f":"SUM(C30:N30)","v":4656}]
[2,"Брянская область",216,288,216,288,144,192,216,192,144,288,144,192,2520]
[3,"Владимирская область",144,384,144,288,216,288,144,192,216,288,144,96,2544]
[4,"Воронежская область",288,1440,360,1440,288,1344,216,1440,288,1344,216,768,9432]
[5,"г.Москва",5040,6816,5040,6720,5040,6720,5040,6720,5400,7008,4320,6720,70584]
[6,"Ивановская область",144,384,72,384,72,384,72,384,72,384,72,384,2808]
[7,"Калужская область",144,288,144,288,144,288,144,384,144,192,144,288,2592]
[8,"Костромская область",0,384,72,384,72,384,72,384,72,384,72,384,2664]
[9,"Курская область",0,384,144,384,72,384,216,384,144,384,144,288,2928]
[10,"Липецкая область",72,192,0,288,0,288,144,192,72,288,72,288,1896]
[11,"МИ ФНС России по камеральному контролю",0,96,0,96,0,0,0,96,0,96,0,96,480]
[12,"МИ ФНС России по КН № 1",72,384,72,384,144,288,0,384,72,384,72,288,2544]
[13,"МИ ФНС России по КН № 2",72,288,144,384,0,288,0,384,72,288,72,384,2376]
[14,"МИ ФНС России по КН № 3",288,480,216,480,288,480,216,480,360,480,216,480,4464]
[15,"МИ ФНС России по КН № 4",0,192,72,288,0,192,72,192,72,192,0,192,1464]
[16,"МИ ФНС России по КН № 5",72,384,0,384,72,384,0,288,0,192,72,288,2136]
[17,"МИ ФНС России по КН № 6",0,192,72,192,0,96,72,96,0,192,0,96,1008]
[18,"МИ ФНС России по КН № 7",144,0,144,96,0,0,144,96,144,192,72,96,1128]
[19,"МИ ФНС России по КН № 9",72,192,216,192,144,192,72,192,144,192,72,192,1872]
[20,"МИ ФНС России по КН № 10",0,0,0,0,0,0,0,0,0,0,0,0,0]
[21,"МИ ФНС России по ценообразованию для \nцелей налогообложения",0,0,0,0,0,0,0,0,0,0,0,0,0]
[22,"МИ ФНС России по Центральному ФО",0,96,72,96,0,96,0,96,0,0,0,0,456]
[23,"МИ ФНС России по ЦОД",0,0,0,0,0,0,0,0,0,0,0,0,0]
[24,"МИ ФНС России по ЦОД №2",0,0,0,0,0,0,0,0,0,0,0,0,0]
[25,"МИ ФНС России по управлению долгом",0,0,0,96,0,0,0,0,72,96,0,0,264]
[26,"МИ ФНС России по контролю и надзору за \nналогоплательщиками в сфере бюджетного финансирования",0,192,72,288,0,192,72,192,0,192,0,192,1392]
[27,"Московская область",792,2304,864,2304,864,2112,720,2112,1008,2208,936,2208,18432]
[28,"Орловская область",144,384,144,384,144,384,144,384,144,288,144,288,2976]
[29,"Рязанская область",504,576,432,576,360,576,360,480,576,384,504,480,5808]
[30,"Смоленская область",288,576,288,672,216,576,288,576,216,576,72,672,5016]
[31,"Тамбовская область",72,288,72,288,0,288,72,288,0,288,72,288,2016]
[32,"Тверская область",288,480,144,480,216,480,144,384,144,384,144,480,3768]
[33,"Тульская область",144,288,144,288,144,288,144,288,144,288,144,288,2592]
[34,"Ярославская область",216,480,288,480,216,480,144,480,216,576,144,576,4296]
[null,"Итого:",{"$f":"SUM(C30:C63)","v":9288},{"$f":"SUM(D30:D63)","v":19296},9648,19680,8856,18336,9000,18432,9936,18816,8064,17760,167112]
["Северо-Западный федеральный округ"]
[1,"Архангельская область и Ненецкий АО",648,480,648,480,648,576,648,576,648,672,576,480,{"$f":"SUM(C66:N66)","v":7080}]
[2,"Вологодская область",288,768,360,768,144,768,144,768,216,768,216,768,5976]
[3,"г.Санкт- Петербург",792,1152,720,1152,720,1152,720,1152,792,1152,720,864,11088]
[4,"Калининградская область",0,576,144,576,0,480,72,480,144,480,0,480,3432]
[5,"Ленинградская область",144,576,0,576,72,480,0,576,0,576,144,576,3720]
[6,"МИ ФНС России по Северо-Западному ФО",0,0,0,96,0,0,0,0,0,0,0,0,96]
[7,"Мурманская область",144,576,72,384,0,384,72,384,144,480,72,480,3192]
[8,"Новгородская область",72,96,72,192,72,96,72,96,72,96,0,192,1128]
[9,"Псковская область",0,96,72,96,72,96,72,96,72,96,0,0,768]
[10,"Республика Карелия",144,192,144,288,0,192,144,192,216,288,0,288,2088]
[11,"Республика Коми",144,864,144,768,144,672,144,768,144,672,216,864,5544]
[null,"Итого:",{"$f":"SUM(C66:C76)","v":2376},{"$f":"SUM(D66:D76)","v":5376},2376,5376,1872,4896,2088,5088,2448,5280,1944,4992,44112]
["Южный федеральный округ"]
[1,"Астраханская область",0,96,72,96,0,96,72,96,0,96,0,96,{"$f":"SUM(C79:N79)","v":720}]
[2,"Волгоградская область",648,672,648,672,576,576,648,576,648,672,576,576,7488]
[3,"г.Севастополь",0,288,72,192,0,96,144,96,72,192,0,96,1248]
[4,"Краснодарский край",576,672,576,672,576,672,576,672,576,672,576,768,7584]
[5,"МИ ФНС России по Южному ФО",72,96,0,96,0,96,0,96,72,96,0,96,720]
[6,"Республика Адыгея",144,288,144,192,72,192,144,288,72,288,72,192,2088]
[7,"Республика Калмыкия",0,96,72,96,72,96,0,96,0,96,72,96,792]
[8,"Республика Крым",360,576,288,576,144,480,144,480,288,384,288,288,4296]
[9,"Ростовская область",504,1248,504,1248,504,1248,504,1440,504,1440,576,1152,10872]
[null,"Итого:",{"$f":"SUM(C79:C87)","v":2304},{"$f":"SUM(D79:D87)","v":4032},2376,3840,1944,3552,2232,3840,2232,3936,2160,3360,35808]
["Северо-Кавказский федеральный округ"]
[1,"Кабардино- Балкарская Республика",72,0,72,0,0,96,0,0,72,0,0,0,{"$f":"SUM(C90:N90)","v":312}]
[2,"Карачаево- Черкесская Республика",0,192,72,96,72,0,0,0,144,192,0,0,768]
[3,"МИ ФНС России по Северо-Кавказскому ФО",0,0,0,0,0,0,0,0,0,96,0,0,96]
[4,"Республика Дагестан",144,480,216,384,0,288,72,192,144,480,0,384,2784]
[5,"Республика Ингушетия",0,0,0,96,0,0,0,0,0,0,0,0,96]
[6,"Республика Северная Осетия - Алания",72,0,72,96,0,0,0,0,72,192,0,96,600]
[7,"Ставропольский край",576,1056,576,960,576,960,576,960,576,1056,720,960,9552]
[8,"Чеченская Республика",0,0,72,0,0,0,0,0,0,0,0,0,72]
[null,"Итого:",{"$f":"SUM(C90:C97)","v":864},{"$f":"SUM(D90:D97)","v":1728},1080,1632,648,1344,648,1152,1008,2016,720,1440,14280]
["Приволжский федеральный округ"]
[1,"Кировская область",216,576,216,672,216,576,216,576,216,576,216,672,{"$f":"SUM(C100:N100)","v":4944}]
[2,"МИ ФНС России по Приволжскому ФО",0,0,72,96,0,0,0,0,72,0,0,0,240]
[3,"Нижегородская область",432,1344,432,1248,432,1248,432,1248,360,1344,432,1248,10200]
[4,"Оренбургская область",360,1152,432,1056,360,1056,360,1056,432,1152,432,1056,8904]
[5,"Пензенская область",288,480,288,480,288,480,360,480,216,480,144,480,4464]
[6,"Пермский край",504,960,432,864,432,864,504,960,432,960,432,864,8208]
[7,"Республика Башкортостан",720,1152,720,1152,648,1056,648,1152,720,1152,648,1056,10824]
[8,"Республика Марий Эл",72,288,72,288,72,288,72,288,72,288,144,192,2136]
[9,"Республика Мордовия",72,384,144,384,72,384,72,384,72,384,72,480,2904]
[10,"Республика Татарстан",720,1824,720,1824,648,1824,720,1728,720,1920,720,1920,15288]
[11,"Самарская область",432,864,432,864,432,864,432,864,432,864,432,768,7680]
[12,"Саратовская область",216,576,288,480,144,576,72,480,216,288,144,384,3864]
[13,"Удмуртская Республика",216,576,216,576,216,576,216,480,216,576,216,576,4656]
[14,"Ульяновская область",72,480,0,384,0,384,72,384,144,384,0,480,2784]
[15,"Чувашская Республика",0,96,0,192,0,96,0,96,0,96,0,96,672]
[null,"Итого:",{"$f":"SUM(C100:C114)","v":4320},{"$f":"SUM(D100:D114)","v":10752},4464,10560,3960,10272,4176,10176,4320,10464,4032,10272,87768]
["Уральский федеральный округ"]
[1,"Курганская область",72,96,72,96,72,96,72,96,72,0,72,0,{"$f":"SUM(C117:N117)","v":816}]
[2,"МИ ФНС России по Уральскому ФО",72,0,72,0,72,0,0,0,72,0,72,0,360]
[3,"Свердловская область",792,1344,720,1344,720,1440,720,1536,720,1536,720,1248,12840]
[4,"Тюменская область",648,384,648,384,576,288,{"$f":"6*I23","v":432},288,576,384,576,384,5568]
[5,"Ханты-Мансийский АО",432,768,360,768,432,768,360,768,432,768,360,864,7080]
[6,"Челябинская область",648,1056,648,1056,576,960,576,960,576,960,576,960,9552]
[7,"Ямало-Ненецкий АО",0,192,72,288,0,192,0,192,72,192,0,192,1392]
[null,"Итого:",{"$f":"SUM(C117:C123)","v":2664},{"$f":"SUM(D117:D123)","v":3840},2592,3936,2448,3744,2160,3840,2520,3840,2376,3648,37608]
["Сибирский федеральный округ"]
[1,"Алтайский край",360,672,360,768,288,672,288,768,288,672,288,672,{"$f":"SUM(C126:N126)","v":6096}]
[2,"Иркутская область",288,960,288,960,216,768,360,768,288,864,360,864,6984]
[3,"Кемеровская область",504,1536,432,1344,360,1344,504,1344,432,1440,432,1536,11208]
[4,"Красноярский край",360,768,360,768,360,576,360,672,360,480,360,384,5808]
[5,"МИ ФНС России по Сибирскому ФО",0,0,0,96,0,96,0,96,72,0,0,0,360]
[6,"Новосибирская область",504,768,360,768,288,768,360,768,504,672,360,672,6792]
[7,"Омская область",504,192,432,192,288,192,360,288,504,288,360,192,3792]
[8,"Республика Алтай",72,96,72,96,72,0,72,96,72,96,72,96,912]
[9,"Республика Тыва",144,192,216,192,0,96,72,192,144,96,144,0,1488]
[10,"Республика Хакасия",0,96,72,96,72,0,0,96,72,96,72,96,768]
[11,"Томская область",72,288,144,288,72,192,72,288,72,384,72,384,2328]
[null,"Итого:",{"$f":"SUM(C126:C136)","v":2808},{"$f":"SUM(D126:D136)","v":5568},2736,5568,2016,4704,2448,5376,2808,5088,2520,4896,46536]
["Дальневосточный федеральный округ"]
[1,"Амурская область",144,480,144,480,144,480,144,576,144,480,144,480,{"$f":"SUM(C139:N139)","v":3840}]
[2,"Еврейская АО",0,0,0,0,0,0,0,0,0,0,0,0,0]
[3,"Забайкальский край",0,192,72,192,72,96,72,96,72,192,0,192,1248]
[4,"Камчатский край",72,0,72,96,72,96,72,96,72,96,72,96,912]
[5,"Магаданская область",0,0,72,96,0,96,0,96,72,96,72,96,696]
[6,"МИ ФНС России по Дальневосточному ФО",72,0,0,96,0,0,72,96,0,96,0,0,432]
[7,"Приморский край",216,384,216,384,216,384,216,384,288,384,216,480,3768]
[8,"Республика Бурятия",72,96,0,192,0,96,72,96,72,96,72,96,960]
[9,"Республика Саха (Якутия)",0,192,72,192,0,192,0,192,0,192,0,192,1224]
[10,"Сахалинская область",72,192,0,192,0,96,0,96,0,96,72,96,912]
[11,"Хабаровский край",144,480,72,480,144,384,72,480,144,480,216,480,3576]
[12,"Чукотский АО",0,0,0,0,0,96,0,0,0,0,0,0,96]
[null,"Итого:",{"$f":"SUM(C139:C150)","v":792},{"$f":"SUM(D139:D150)","v":2016},720,2400,648,2016,720,2208,864,2208,864,2208,{"$f":"SUM(O139:O150)","v":17664}]
["Новые территории Российской Федерации"]
[1,"Донецкая Народная Республика",72,192,72,96,72,192,72,192,144,192,72,192,{"$f":"SUM(C153:N153)","v":1560}]
[2,"Запорожская область",144,96,72,96,72,0,72,96,144,96,72,96,{"$f":"SUM(C154:N154)","v":1056}]
[3,"Луганская Народная Республика",360,960,216,960,216,768,216,960,360,960,288,576,{"$f":"SUM(C155:N155)","v":6840}]
[4,"Херсонская область",0,0,72,0,0,0,0,0,72,0,0,0,{"$f":"SUM(C156:N156)","v":144}]
[null,"Итого:",{"$f":"SUM(C153:C156)","v":576},1248,432,1152,360,960,360,1248,720,1248,432,864,{"$f":"SUM(O153:O156)","v":9600}]
[null,"Всего:",{"$f":"C157+C151+C137+C124+C115+C98+C88+C77+C64+C28","v":26064},{"$f":"D157+D151+D137+D124+D115+D98+D88+D77+D64+D28","v":54048},26424,54336,22824,49920,23904,51552,26928,53088,23184,49536,{"$f":"O157+O151+O137+O124+O115+O98+O88+O77+O64+O28","v":461808}]
[]
["*","Структурные подразделения  ЦА ФНС России и ТНО ФНС России выбирают самостоятельно из перечня учебные программы для обучающихся, исходя из указанных человеко-часов"]

{"sheet":"Прил.41 (ДО)","index":20,"n_rows":155,"n_cols":12,"rows_kept":155,"cut":false,"hidden":false,"merged":[[19,3,19,4],[19,8,19,9],[154,1,154,11],[11,1,11,11],[12,1,12,11],[13,1,13,11],[14,1,14,11],[15,1,15,11],[16,0,18,0],[16,1,18,1],[16,3,16,4],[16,8,16,9],[16,11,18,11],[10,1,10,11],[6,0,6,11],[7,0,8,0],[7,1,7,11],[8,1,8,11],[9,1,9,11]]}
[null,null,null,null,null,null,null,null,null,"Приложение № 41"]
[null,null,null,null,null,null,null,null,null,"УТВЕРЖДЕН"]
[null,null,null,null,null,null,null,null,null,"Приказом ФНС России"]
[null,null,null,null,null,null,null,null,null,"от \"   \"                        20    г."]
[null,null,null,null,null,null,null,null,null,"№ "]
[]
["План-график дополнительного профессионального образования гражданских служащих в \"Академии ФНС ЛАБ–Нева\" в 2025 году \n(заочная форма обучения с применением дистанционных образовательных технологий и электронного обучения)"]
["№ п/п","Количество человеко-часов"]
[null,"по программам повышения квалификации с указанием периодов обучения*"]
[1,"Контрактная система в сфере закупок товаров, работ, услуг для обеспечения государственных нужд (базовый уровень), 112 часов"]
[2,"Контрактная система в сфере закупок товаров, работ, услуг для обеспечения государственных нужд (повышенный уровень), 112 часов"]
[3,"Налогообложение прибыли организаций  (базовый уровень), 112 часов"]
[4,"Налогообложение прибыли организаций (повышенный уровень), 112 часов"]
[5,"Урегулирование и взыскание задолженности  (базовый уровень), 112 часов"]
[6,"Урегулирование и взыскание задолженности (повышенный уровень), 112 часов"]
[7,"Организация продуктивных коммуникаций в закупочной деятельности, 128 часов"]
["№ п/п","Структурные подразделения ЦА ФНС России, УФНС России по субъектам РФ, межрегиональные инспекции ФНС России","24.02-28.03","24.03-25.04",null,"28.04-30.05","26.05-27.06","04.08-05.09","08.09-10.10",null,"13.10-14.11","Всего"]
[null,null,112,112,128,112,112,112,112,128,112]
[null,null,"часов","часов","часов","часов","часов","часов","часов","часов","часов"]
[1,2,3,4,null,5,6,7,8,null,9,10]
["Центральный аппарат ФНС России"]
[1,"Управление профессионального развития",112,112,0,112,112,224,112,0,112,{"$f":"SUM(C22:K22)","v":896}]
[null,"Итого:",{"$f":"SUM(C22:C22)","v":112},112,0,112,112,224,112,0,112,{"$f":"SUM(L22:L22)","v":896}]
["Центральный федеральный округ"]
[1,"Белгородская область",336,336,0,336,448,448,448,0,336,{"$f":"SUM(C25:K25)","v":2688}]
[2,"Брянская область",672,672,256,672,672,784,672,0,672,5072]
[3,"Владимирская область",112,224,640,224,224,112,224,0,224,1984]
[4,"Воронежская область",560,448,256,560,560,448,448,256,560,4096]
[5,"г.Москва",3584,3696,5504,3696,3696,3696,3696,384,3696,31648]
[6,"Ивановская область",224,224,384,224,224,112,224,0,224,1840]
[7,"Калужская область",560,560,128,560,560,560,560,0,560,4048]
[8,"Костромская область",336,336,128,448,448,448,448,128,336,3056]
[9,"Курская область",336,336,0,336,448,448,448,0,448,2800]
[10,"Липецкая область",336,448,512,448,448,448,448,256,448,3792]
[11,"МИ ФНС России по камеральному контролю",0,0,384,0,0,0,0,256,0,640]
[12,"МИ ФНС России по КН № 1",224,224,512,224,336,336,224,0,336,2416]
[13,"МИ ФНС России по КН № 2",672,784,1280,672,672,672,672,256,672,6352]
[14,"МИ ФНС России по КН № 3",336,336,256,336,336,224,448,256,224,2752]
[15,"МИ ФНС России по КН № 4",336,336,384,336,448,336,336,0,448,2960]
[16,"МИ ФНС России по КН № 5",112,112,896,224,224,224,224,0,224,2240]
[17,"МИ ФНС России по КН № 6",224,224,512,224,224,224,336,0,224,2192]
[18,"МИ ФНС России по КН № 7",112,112,0,112,112,112,0,0,0,560]
[19,"МИ ФНС России по КН № 9",112,112,0,112,112,224,224,0,112,1008]
[20,"МИ ФНС России по КН № 10",0,0,128,0,0,112,112,256,0,608]
[21,"МИ ФНС России по ценообразованию для целей налогообложения",0,0,0,112,112,112,112,0,112,560]
[22,"МИ ФНС России по Центральному ФО",112,112,0,0,0,0,0,0,0,224]
[23,"МИ ФНС России по ЦОД",0,0,0,0,112,0,0,0,0,112]
[24,"МИ ФНС России по ЦОД №2",0,0,128,0,0,0,0,0,0,128]
[25,"МИ ФНС России по управлению долгом",336,336,384,336,336,336,336,0,336,2736]
[26,"МИ ФНС России по контролю и надзору за налогоплательщиками в сфере бюджетного финансирования",112,112,128,112,0,0,0,0,0,464]
[27,"Московская область",1904,1904,2560,2016,1904,2016,1904,0,1904,16112]
[28,"Орловская область",112,112,128,112,224,224,224,0,112,1248]
[29,"Рязанская область",448,560,512,560,560,560,560,0,560,4320]
[30,"Смоленская область",672,672,896,672,784,784,672,256,672,6080]
[31,"Тамбовская область",448,448,0,448,448,560,560,0,448,3360]
[32,"Тверская область",448,448,128,448,560,560,448,0,448,3488]
[33,"Тульская область",448,560,0,560,448,448,448,0,448,3360]
[34,"Ярославская область",112,112,0,112,0,112,112,0,112,672]
[null,"Итого:",{"$f":"SUM(C25:C58)","v":14336},14896,17024,15232,15680,15680,15568,2304,14896,125616]
["Северо-Западный федеральный округ"]
[1,"Архангельская область и Ненецкий АО",336,336,1920,336,448,448,448,0,448,{"$f":"SUM(C61:K61)","v":4720}]
[2,"Вологодская область",672,672,384,672,784,672,672,0,672,5200]
[3,"г.Санкт- Петербург",1680,1680,1792,1792,1792,1792,1792,0,1792,14112]
[4,"Калининградская область",672,672,128,672,784,784,672,256,784,5424]
[5,"Ленинградская область",224,336,384,336,336,336,336,0,336,2624]
[6,"МИ ФНС России по Северо-Западному ФО",112,112,128,112,0,0,0,0,0,464]
[7,"Мурманская область",336,448,128,336,448,448,448,0,448,3040]
[8,"Новгородская область",112,112,0,112,224,224,224,0,224,1232]
[9,"Псковская область",224,224,0,224,224,112,112,0,224,1344]
[10,"Республика Карелия",224,224,512,224,336,224,224,0,224,2192]
[11,"Республика Коми",560,560,512,448,448,448,560,0,560,4096]
[null,"Итого:",{"$f":"SUM(C61:C71)","v":5152},5376,5888,5264,5824,5488,5488,256,5712,44448]
["Южный федеральный округ"]
[1,"Астраханская область",112,112,256,224,224,112,224,256,224,{"$f":"SUM(C74:K74)","v":1744}]
[2,"Волгоградская область",672,784,384,672,672,784,784,0,784,5536]
[3,"г.Севастополь",112,112,128,112,112,112,112,256,112,1168]
[4,"Краснодарский край",112,112,512,112,224,224,112,256,112,1776]
[5,"МИ ФНС России по Южному ФО",0,0,128,0,0,0,112,0,0,240]
[6,"Республика Адыгея",112,112,0,112,112,224,112,0,112,896]
[7,"Республика Калмыкия",0,0,0,0,0,0,0,0,0,0]
[8,"Республика Крым",336,336,896,336,448,448,448,0,336,3584]
[9,"Ростовская область",1232,1344,1408,1344,1344,1232,1344,0,1344,10592]
[null,"Итого:",{"$f":"SUM(C74:C82)","v":2688},2912,3712,2912,3136,3136,3248,768,3024,25536]
["Северо-Кавказский федеральный округ"]
[1,"Кабардино- Балкарская Республика",0,0,256,112,0,0,0,0,0,{"$f":"SUM(C85:K85)","v":368}]
[2,"Карачаево- Черкесская Республика",224,224,256,224,336,224,224,256,224,2192]
[3,"МИ ФНС России по Северо-Кавказскому ФО",0,0,0,0,0,112,0,0,0,112]
[4,"Республика Дагестан",112,112,256,112,224,224,224,0,112,1376]
[5,"Республика Ингушетия",0,0,0,0,112,112,112,0,0,336]
[6,"Республика Северная Осетия - Алания",336,336,128,336,224,224,336,128,336,2384]
[7,"Ставропольский край",784,784,512,784,784,784,896,0,784,6112]
[8,"Чеченская Республика",112,112,128,112,0,0,0,0,0,464]
[null,"Итого:",{"$f":"SUM(C85:C92)","v":1568},1568,1536,1680,1680,1680,1792,384,1456,13344]
["Приволжский федеральный округ"]
[1,"Кировская область",448,448,0,448,448,448,560,128,560,{"$f":"SUM(C95:K95)","v":3488}]
[2,"МИ ФНС России по Приволжскому ФО",0,0,640,0,0,0,0,128,0,768]
[3,"Нижегородская область",1120,1232,1280,1232,1232,1232,1232,128,1232,9920]
[4,"Оренбургская область",560,672,1024,672,560,560,560,128,672,5408]
[5,"Пензенская область",896,784,0,896,784,896,896,128,896,6176]
[6,"Пермский край",672,672,1408,784,784,784,784,128,784,6800]
[7,"Республика Башкортостан",1456,1456,512,1456,1456,1456,1456,128,1456,10832]
[8,"Республика Марий Эл",112,112,1280,112,224,224,224,128,224,2640]
[9,"Республика Мордовия",336,336,0,336,336,336,448,128,448,2704]
[10,"Республика Татарстан",1008,1008,384,1120,1120,1120,1120,128,1120,8128]
[11,"Самарская область",336,336,0,336,448,448,448,128,448,2928]
[12,"Саратовская область",448,448,0,448,448,336,448,128,448,3152]
[13,"Удмуртская Республика",224,224,0,336,224,224,224,128,224,1808]
[14,"Ульяновская область",224,224,128,224,224,224,336,128,224,1936]
[15,"Чувашская Республика",112,112,0,0,112,0,112,128,0,576]
[null,"Итого:",{"$f":"SUM(C95:C109)","v":7952},8064,6656,8400,8400,8288,8848,1920,8736,67264]
["Уральский федеральный округ"]
[1,"Курганская область",224,224,128,224,224,224,224,128,224,{"$f":"SUM(C112:K112)","v":1824}]
[2,"МИ ФНС России по Уральскому ФО",112,112,0,112,112,0,0,128,0,576]
[3,"Свердловская область",1120,1120,640,1120,1120,1120,1232,128,1120,8720]
[4,"Тюменская область",560,560,1024,560,560,672,672,128,560,5296]
[5,"Ханты-Мансийский АО",448,448,0,560,560,448,448,128,448,3488]
[6,"Челябинская область",1008,1008,1152,1008,1008,1008,1008,256,1120,8576]
[7,"Ямало-Ненецкий АО",336,448,0,448,448,448,448,128,448,3152]
[null,"Итого:",{"$f":"SUM(C112:C118)","v":3808},3920,2944,4032,4032,3920,4032,1024,3920,31632]
["Сибирский федеральный округ"]
[1,"Алтайский край",448,448,768,448,448,560,560,128,448,{"$f":"SUM(C121:K121)","v":4256}]
[2,"Иркутская область",896,896,256,896,896,896,1008,128,896,6768]
[3,"Кемеровская область",784,784,128,784,784,784,784,256,784,5872]
[4,"Красноярский край",336,336,512,336,336,336,336,128,336,2992]
[5,"МИ ФНС России по Сибирскому ФО",112,112,128,0,0,112,112,128,0,704]
[6,"Новосибирская область",448,448,512,560,560,560,560,256,560,4464]
[7,"Омская область",336,336,1024,336,336,336,224,0,336,3264]
[8,"Республика Алтай",0,0,512,112,112,112,0,256,112,1216]
[9,"Республика Тыва",112,112,1408,112,0,0,0,128,0,1872]
[10,"Республика Хакасия",0,0,0,0,0,112,0,128,0,240]
[11,"Томская область",112,0,256,112,0,0,112,128,0,720]
[null,"Итого:",{"$f":"SUM(C121:C131)","v":3584},3472,5504,3696,3472,3808,3696,1664,3472,32368]
["Дальневосточный федеральный округ"]
[1,"Амурская область",0,0,1024,112,112,112,112,128,112,{"$f":"SUM(C134:K134)","v":1712}]
[2,"Еврейская АО",112,112,128,112,112,0,0,128,0,704]
[3,"Забайкальский край",112,112,896,112,112,112,112,0,224,1792]
[4,"Камчатский край",112,112,384,112,224,224,224,128,224,1744]
[5,"Магаданская область",0,0,0,0,112,112,112,128,0,464]
[6,"МИ ФНС России по Дальневосточному ФО",0,0,256,0,0,0,0,256,0,512]
[7,"Приморский край",112,112,1024,112,112,224,224,0,224,2144]
[8,"Республика Бурятия",112,112,256,112,0,0,0,0,0,592]
[9,"Республика Саха (Якутия)",112,112,768,112,224,112,112,0,112,1664]
[10,"Сахалинская область",112,112,0,112,112,112,112,0,112,784]
[11,"Хабаровский край",112,112,0,112,112,112,112,0,0,672]
[12,"Чукотский АО",0,0,128,0,0,112,112,0,112,464]
[null,"Итого:",{"$f":"SUM(C134:C145)","v":896},896,4864,1008,1232,1232,1232,768,1120,13248]
["Новые территории Российской Федерации"]
[1,"Донецкая Народная Республика",0,0,128,0,112,112,0,256,0,{"$f":"SUM(C148:K148)","v":608}]
[2,"Запорожская область",112,112,0,0,0,0,112,0,0,{"$f":"SUM(C149:K149)","v":336}]
[3,"Луганская Народная Республика",560,560,128,560,560,560,672,0,560,{"$f":"SUM(C150:K150)","v":4160}]
[4,"Херсонская область",0,0,0,0,0,0,112,0,0,{"$f":"SUM(C151:K151)","v":112}]
[null,"Итого:",{"$f":"SUM(C148:C151)","v":672},672,256,560,672,672,896,256,560,5216]
[null,"Всего:",{"$f":"C23+C59+C72+C83+C93+C110+C119+C132+C146+C152","v":40768},41888,48384,42896,44240,44128,44912,9344,43008,{"$f":"L152+L146+L132+L119+L110+L93+L83+L72+L59+L23","v":359568}]
[]
["*","Структурные подразделения  ЦА ФНС России и ТНО ФНС России выбирают самостоятельно из перечня учебные программы для обучающихся, исходя из указанных человеко-часов"]

{"sheet":"Прил.42 (ДО)","index":21,"n_rows":169,"n_cols":3,"rows_kept":169,"cut":false,"hidden":false,"merged":[[30,0,31,0],[30,1,31,1],[6,0,6,2],[7,0,8,0],[7,1,7,2],[8,1,8,2],[9,0,9,2],[30,2,31,2],[10,2,29,2]]}
[null,null,"Приложение № 42"]
[null,null,"УТВЕРЖДЕН"]
[null,null,"Приказом ФНС России"]
[null,null,"от \"      \"                   202    г."]
[null,null,"№ "]
[]
["План-график дополнительного профессионального образования гражданских служащих в  в \"Академии ФНС ЛАБ–Нева\" в 2025 году \n(заочная форма обучения с применением дистанционных образовательных технологий и электронного обучения)"]
["№ п/п","Количество человеко-часов"]
[null,"по программе повышения квалификации для гражданских служащих, приступающих к исполнению должностных обязанностей после выхода из отпуска по уходу за ребенком*"]
["Мама в курсе по направлениям**:"]
[1,"Аналитическая работа","16 часов"]
[{"$f":"A11+1","v":2},"Выездные налоговые проверки"]
[3,"Внутренний аудит"]
[4,"Государственная регистрация юридических лиц и индивидуальных предпринимателей"]
[5,"Делопроизводство в налоговых органах"]
[6,"Досудебное урегулирование налоговых споров"]
[7,"Имущественные налоги"]
[8,"Информационные технологии в работе налоговых органов"]
[9,"Кадровое обеспечение в налоговых органах"]
[10,"Контрольно-аналитическая работа"]
[11,"Налог на прибыль организаций"]
[12,"Налог на добавленную стоимость. Акцизы"]
[13,"Налог на доходы физических лиц"]
[14,"Обеспечение процедур банкротства"]
[15,"Оперативный контроль"]
[16,"Правовые и судебные аспекты деятельности налоговых органов"]
[17,"Противодействие коррупции в налоговых органах"]
[18,"Работа с налогоплательщиками"]
[19,"Урегулирование и взыскание задолженности"]
[20,"Учет организаций и физических лиц"]
["№ п/п","Структурные подразделения ЦА ФНС России, УФНС России по субъектам РФ, межрегиональные инспекции ФНС России","14.01-19.12"]
[]
[1,2,3]
["Центральный аппарат ФНС России"]
[1,"Управление профессионального развития",0]
[null,"Итого:",{"$f":"SUM(C35:C35)","v":0}]
["Центральный федеральный округ"]
[1,"Белгородская область",64]
[2,"Брянская область",64]
[3,"Владимирская область",64]
[4,"Воронежская область",64]
[5,"г.Москва",96]
[6,"Ивановская область",64]
[7,"Калужская область",64]
[8,"Костромская область",64]
[9,"Курская область",64]
[10,"Липецкая область",64]
[11,"МИ ФНС России по камеральному контролю",32]
[12,"МИ ФНС России по КН № 1",32]
[13,"МИ ФНС России по КН № 2",32]
[14,"МИ ФНС России по КН № 3",32]
[15,"МИ ФНС России по КН № 4",32]
[16,"МИ ФНС России по КН № 5",32]
[17,"МИ ФНС России по КН № 6",32]
[18,"МИ ФНС России по КН № 7",32]
[19,"МИ ФНС России по КН № 9",32]
[20,"МИ ФНС России по КН № 10",32]
[21,"МИ ФНС России по ценообразованию для \nцелей налогообложения",32]
[22,"МИ ФНС России по Центральному ФО",32]
[23,"МИ ФНС России по ЦОД",32]
[24,"МИ ФНС России по ЦОД №2",32]
[25,"МИ ФНС России по управлению долгом",32]
[26,"МИ ФНС России по контролю и надзору за \nналогоплательщиками в сфере бюджетного финансирования",32]
[27,"Московская область",96]
[28,"Орловская область",64]
[29,"Рязанская область",64]
[30,"Смоленская область",64]
[31,"Тамбовская область",64]
[32,"Тверская область",64]
[33,"Тульская область",64]
[34,"Ярославская область",64]
[null,"Итого:",{"$f":"SUM(C38:C71)","v":1728}]
["Северо-Западный федеральный округ"]
[1,"Архангельская область и Ненецкий АО",64]
[2,"Вологодская область",64]
[3,"г.Санкт- Петербург",80]
[4,"Калининградская область",64]
[5,"Ленинградская область",64]
[6,"МИ ФНС России по Северо-Западному ФО",32]
[7,"Мурманская область",64]
[8,"Новгородская область",64]
[9,"Псковская область",64]
[10,"Республика Карелия",64]
[11,"Республика Коми",64]
[null,"Итого:",{"$f":"SUM(C74:C84)","v":688}]
["Южный федеральный округ"]
[1,"Астраханская область",64]
[2,"Волгоградская область",64]
[3,"г.Севастополь",48]
[4,"Краснодарский край",80]
[5,"МИ ФНС России по Южному ФО",32]
[6,"Республика Адыгея",48]
[7,"Республика Калмыкия",48]
[8,"Республика Крым",64]
[9,"Ростовская область",64]
[null,"Итого:",{"$f":"SUM(C87:C95)","v":512}]
["Северо-Кавказский федеральный округ"]
[1,"Кабардино- Балкарская Республика",64]
[2,"Карачаево- Черкесская Республика",64]
[3,"МИ ФНС России по Северо-Кавказскому ФО",32]
[4,"Республика Дагестан",64]
[5,"Республика Ингушетия",48]
[6,"Республика Северная Осетия - Алания",64]
[7,"Ставропольский край",64]
[8,"Чеченская Республика",48]
[null,"Итого:",{"$f":"SUM(C98:C105)","v":448}]
["Приволжский федеральный округ"]
[1,"Кировская область",64]
[2,"МИ ФНС России по Приволжскому ФО",32]
[3,"Нижегородская область",80]
[4,"Оренбургская область",64]
[5,"Пензенская область",64]
[6,"Пермский край",64]
[7,"Республика Башкортостан",80]
[8,"Республика Марий Эл",64]
[9,"Республика Мордовия",64]
[10,"Республика Татарстан",96]
[11,"Самарская область",64]
[12,"Саратовская область",64]
[13,"Удмуртская Республика",64]
[14,"Ульяновская область",64]
[15,"Чувашская Республика",64]
[null,"Итого:",{"$f":"SUM(C108:C122)","v":992}]
["Уральский федеральный округ"]
[1,"Курганская область",64]
[2,"МИ ФНС России по Уральскому ФО",32]
[3,"Свердловская область",80]
[4,"Тюменская область",64]
[5,"Ханты-Мансийский АО",64]
[6,"Челябинская область",64]
[7,"Ямало-Ненецкий АО",64]
[null,"Итого:",{"$f":"SUM(C125:C131)","v":432}]
["Сибирский федеральный округ"]
[1,"Алтайский край",64]
[2,"Иркутская область",64]
[3,"Кемеровская область",64]
[4,"Красноярский край",80]
[5,"МИ ФНС России по Сибирскому ФО",32]
[6,"Новосибирская область",64]
[7,"Омская область",80]
[8,"Республика Алтай",64]
[9,"Республика Тыва",64]
[10,"Республика Хакасия",64]
[11,"Томская область",64]
[null,"Итого:",{"$f":"SUM(C134:C144)","v":704}]
["Дальневосточный федеральный округ"]
[1,"Амурская область",64]
[2,"Еврейская АО",64]
[3,"Забайкальский край",64]
[4,"Камчатский край",48]
[5,"Магаданская область",48]
[6,"МИ ФНС России по Дальневосточному ФО",32]
[7,"Приморский край",80]
[8,"Республика Бурятия",64]
[9,"Республика Саха (Якутия)",64]
[10,"Сахалинская область",48]
[11,"Хабаровский край",64]
[12,"Чукотский АО",48]
[null,"Итого:",{"$f":"SUM(C147:C158)","v":688}]
["Новые территории Российской Федерации"]
[1,"Донецкая Народная Республика",32]
[2,"Запорожская область",32]
[3,"Луганская Народная Республика",32]
[4,"Херсонская область",32]
[null,"Итого:",{"$f":"SUM(C161:C164)","v":128}]
[null,"Всего:",{"$f":"C165+C159+C145+C132+C123+C106+C96+C85+C72+C36","v":6320}]
[]
["*","Зачисление осуществляется каждые две недели, начиная с 14.01.2025. Последний поток с 09.12.2025 по 19.12.2025"]
["**","Направление обучения выбирается при зачислении на программу"]